{"text_format":"1","workbook":"xlsx","n_sheets":3,"sheets":["аналитика","перечень","списки"],"not_rendered":{"charts":0,"images":0,"macros":1,"external_links":0,"defined_names":6,"comments":0,"pivot_tables":1},"unopened":[],"bounds":{"document_bytes":16777216,"sheet_cells":100000,"rows_first":2000,"rows_last":500,"rows_between":2000,"halvings":0,"cell_chars":16384,"cell_head_chars":4096},"cells_cut":0,"cells_raw":0,"read":"whole","date_system":"1900"}

{"sheet":"аналитика","index":0,"n_rows":29,"n_cols":3,"rows_kept":29,"cut":false,"hidden":false,"merged":[]}
[]
[]
[]
[]
[]
[]
[]
[]
[]
[]
[]
[]
[]
[]
[]
[]
[]
[]
[]
[]
[]
[]
[]
[]
["ФИО","ОСНОВАНИЕ","ДЛИТЕЛЬНОСТЬ"]
["(пусто)","(пусто)","(пусто)"]
["c1","ОТ (отпуск)",15]
["c2","К  (командировка)",5]
["c3","ОТ (отпуск)",9]

{"sheet":"перечень","index":1,"n_rows":381,"n_cols":6,"rows_kept":381,"cut":false,"hidden":false,"merged":[]}
[]
[]
[]
[]
[]
[]
[]
[]
[null,"ФИО","ДАТА НАЧАЛА","ДЛИТЕЛЬНОСТЬ","ОСНОВАНИЕ","ДАТА ОКОНЧАНИЕ"]
[null,"c1","2018-01-01",15,"ОТ (отпуск)",{"$f":"IF(ISNUMBER(Перечень[[#This Row],[ДЛИТЕЛЬНОСТЬ]]),IF(Перечень[[#This Row],[ОСНОВАНИЕ]]=\"ОТ (отпуск)\",Перечень[[#This Row],[ДАТА НАЧАЛА]]+Перечень[[#This Row],[ДЛИТЕЛЬНОСТЬ]]-1+SUMPRODUCT((Праздники[праздники]>=Перечень[[#This Row],[ДАТА НАЧАЛА]])*(Праздники[праздники]<=(Перечень[[#This Row],[ДАТА НАЧАЛА]]+Перечень[[#This Row],[ДЛИТЕЛЬНОСТЬ]]-1))),Перечень[[#This Row],[ДАТА НАЧАЛА]]+Перечень[[#This Row],[ДЛИТЕЛЬНОСТЬ]]-1),\"\")","v":"2018-01-21"}]
[null,"c2","2018-01-12",5,"К  (командировка)",{"$f":"IF(ISNUMBER(Перечень[[#This Row],[ДЛИТЕЛЬНОСТЬ]]),IF(Перечень[[#This Row],[ОСНОВАНИЕ]]=\"ОТ (отпуск)\",Перечень[[#This Row],[ДАТА НАЧАЛА]]+Перечень[[#This Row],[ДЛИТЕЛЬНОСТЬ]]-1+SUMPRODUCT((Праздники[праздники]>=Перечень[[#This Row],[ДАТА НАЧАЛА]])*(Праздники[праздники]<=(Перечень[[#This Row],[ДАТА НАЧАЛА]]+Перечень[[#This Row],[ДЛИТЕЛЬНОСТЬ]]-1))),Перечень[[#This Row],[ДАТА НАЧАЛА]]+Перечень[[#This Row],[ДЛИТЕЛЬНОСТЬ]]-1),\"\")","v":"2018-01-16"}]
[null,"c3","2018-04-20",9,"ОТ (отпуск)",{"$f":"IF(ISNUMBER(Перечень[[#This Row],[ДЛИТЕЛЬНОСТЬ]]),IF(Перечень[[#This Row],[ОСНОВАНИЕ]]=\"ОТ (отпуск)\",Перечень[[#This Row],[ДАТА НАЧАЛА]]+Перечень[[#This Row],[ДЛИТЕЛЬНОСТЬ]]-1+SUMPRODUCT((Праздники[праздники]>=Перечень[[#This Row],[ДАТА НАЧАЛА]])*(Праздники[праздники]<=(Перечень[[#This Row],[ДАТА НАЧАЛА]]+Перечень[[#This Row],[ДЛИТЕЛЬНОСТЬ]]-1))),Перечень[[#This Row],[ДАТА НАЧАЛА]]+Перечень[[#This Row],[ДЛИТЕЛЬНОСТЬ]]-1),\"\")","v":"2018-04-28"}]
[null,null,null,null,null,{"$f":"IF(ISNUMBER(Перечень[[#This Row],[ДЛИТЕЛЬНОСТЬ]]),IF(Перечень[[#This Row],[ОСНОВАНИЕ]]=\"ОТ (отпуск)\",Перечень[[#This Row],[ДАТА НАЧАЛА]]+Перечень[[#This Row],[ДЛИТЕЛЬНОСТЬ]]-1+SUMPRODUCT((Праздники[праздники]>=Перечень[[#This Row],[ДАТА НАЧАЛА]])*(Праздники[праздники]<=(Перечень[[#This Row],[ДАТА НАЧАЛА]]+Перечень[[#This Row],[ДЛИТЕЛЬНОСТЬ]]-1))),Перечень[[#This Row],[ДАТА НАЧАЛА]]+Перечень[[#This Row],[ДЛИТЕЛЬНОСТЬ]]-1),\"\")","v":""}]
[null,null,null,null,null,{"$f":"IF(ISNUMBER(Перечень[[#This Row],[ДЛИТЕЛЬНОСТЬ]]),IF(Перечень[[#This Row],[ОСНОВАНИЕ]]=\"ОТ (отпуск)\",Перечень[[#This Row],[ДАТА НАЧАЛА]]+Перечень[[#This Row],[ДЛИТЕЛЬНОСТЬ]]-1+SUMPRODUCT((Праздники[праздники]>=Перечень[[#This Row],[ДАТА НАЧАЛА]])*(Праздники[праздники]<=(Перечень[[#This Row],[ДАТА НАЧАЛА]]+Перечень[[#This Row],[ДЛИТЕЛЬНОСТЬ]]-1))),Перечень[[#This Row],[ДАТА НАЧАЛА]]+Перечень[[#This Row],[ДЛИТЕЛЬНОСТЬ]]-1),\"\")","v":""}]
[null,null,null,null,null,{"$f":"IF(ISNUMBER(Перечень[[#This Row],[ДЛИТЕЛЬНОСТЬ]]),IF(Перечень[[#This Row],[ОСНОВАНИЕ]]=\"ОТ (отпуск)\",Перечень[[#This Row],[ДАТА НАЧАЛА]]+Перечень[[#This Row],[ДЛИТЕЛЬНОСТЬ]]-1+SUMPRODUCT((Праздники[праздники]>=Перечень[[#This Row],[ДАТА НАЧАЛА]])*(Праздники[праздники]<=(Перечень[[#This Row],[ДАТА НАЧАЛА]]+Перечень[[#This Row],[ДЛИТЕЛЬНОСТЬ]]-1))),Перечень[[#This Row],[ДАТА НАЧАЛА]]+Перечень[[#This Row],[ДЛИТЕЛЬНОСТЬ]]-1),\"\")","v":""}]
[null,null,null,null,null,{"$f":"IF(ISNUMBER(Перечень[[#This Row],[ДЛИТЕЛЬНОСТЬ]]),IF(Перечень[[#This Row],[ОСНОВАНИЕ]]=\"ОТ (отпуск)\",Перечень[[#This Row],[ДАТА НАЧАЛА]]+Перечень[[#This Row],[ДЛИТЕЛЬНОСТЬ]]-1+SUMPRODUCT((Праздники[праздники]>=Перечень[[#This Row],[ДАТА НАЧАЛА]])*(Праздники[праздники]<=(Перечень[[#This Row],[ДАТА НАЧАЛА]]+Перечень[[#This Row],[ДЛИТЕЛЬНОСТЬ]]-1))),Перечень[[#This Row],[ДАТА НАЧАЛА]]+Перечень[[#This Row],[ДЛИТЕЛЬНОСТЬ]]-1),\"\")","v":""}]
[null,null,null,null,null,{"$f":"IF(ISNUMBER(Перечень[[#This Row],[ДЛИТЕЛЬНОСТЬ]]),IF(Перечень[[#This Row],[ОСНОВАНИЕ]]=\"ОТ (отпуск)\",Перечень[[#This Row],[ДАТА НАЧАЛА]]+Перечень[[#This Row],[ДЛИТЕЛЬНОСТЬ]]-1+SUMPRODUCT((Праздники[праздники]>=Перечень[[#This Row],[ДАТА НАЧАЛА]])*(Праздники[праздники]<=(Перечень[[#This Row],[ДАТА НАЧАЛА]]+Перечень[[#This Row],[ДЛИТЕЛЬНОСТЬ]]-1))),Перечень[[#This Row],[ДАТА НАЧАЛА]]+Перечень[[#This Row],[ДЛИТЕЛЬНОСТЬ]]-1),\"\")","v":""}]
[null,null,null,null,null,{"$f":"IF(ISNUMBER(Перечень[[#This Row],[ДЛИТЕЛЬНОСТЬ]]),IF(Перечень[[#This Row],[ОСНОВАНИЕ]]=\"ОТ (отпуск)\",Перечень[[#This Row],[ДАТА НАЧАЛА]]+Перечень[[#This Row],[ДЛИТЕЛЬНОСТЬ]]-1+SUMPRODUCT((Праздники[праздники]>=Перечень[[#This Row],[ДАТА НАЧАЛА]])*(Праздники[праздники]<=(Перечень[[#This Row],[ДАТА НАЧАЛА]]+Перечень[[#This Row],[ДЛИТЕЛЬНОСТЬ]]-1))),Перечень[[#This Row],[ДАТА НАЧАЛА]]+Перечень[[#This Row],[ДЛИТЕЛЬНОСТЬ]]-1),\"\")","v":""}]
[null,null,null,null,null,{"$f":"IF(ISNUMBER(Перечень[[#This Row],[ДЛИТЕЛЬНОСТЬ]]),IF(Перечень[[#This Row],[ОСНОВАНИЕ]]=\"ОТ (отпуск)\",Перечень[[#This Row],[ДАТА НАЧАЛА]]+Перечень[[#This Row],[ДЛИТЕЛЬНОСТЬ]]-1+SUMPRODUCT((Праздники[праздники]>=Перечень[[#This Row],[ДАТА НАЧАЛА]])*(Праздники[праздники]<=(Перечень[[#This Row],[ДАТА НАЧАЛА]]+Перечень[[#This Row],[ДЛИТЕЛЬНОСТЬ]]-1))),Перечень[[#This Row],[ДАТА НАЧАЛА]]+Перечень[[#This Row],[ДЛИТЕЛЬНОСТЬ]]-1),\"\")","v":""}]
[null,null,null,null,null,{"$f":"IF(ISNUMBER(Перечень[[#This Row],[ДЛИТЕЛЬНОСТЬ]]),IF(Перечень[[#This Row],[ОСНОВАНИЕ]]=\"ОТ (отпуск)\",Перечень[[#This Row],[ДАТА НАЧАЛА]]+Перечень[[#This Row],[ДЛИТЕЛЬНОСТЬ]]-1+SUMPRODUCT((Праздники[праздники]>=Перечень[[#This Row],[ДАТА НАЧАЛА]])*(Праздники[праздники]<=(Перечень[[#This Row],[ДАТА НАЧАЛА]]+Перечень[[#This Row],[ДЛИТЕЛЬНОСТЬ]]-1))),Перечень[[#This Row],[ДАТА НАЧАЛА]]+Перечень[[#This Row],[ДЛИТЕЛЬНОСТЬ]]-1),\"\")","v":""}]
[null,null,null,null,null,{"$f":"IF(ISNUMBER(Перечень[[#This Row],[ДЛИТЕЛЬНОСТЬ]]),IF(Перечень[[#This Row],[ОСНОВАНИЕ]]=\"ОТ (отпуск)\",Перечень[[#This Row],[ДАТА НАЧАЛА]]+Перечень[[#This Row],[ДЛИТЕЛЬНОСТЬ]]-1+SUMPRODUCT((Праздники[праздники]>=Перечень[[#This Row],[ДАТА НАЧАЛА]])*(Праздники[праздники]<=(Перечень[[#This Row],[ДАТА НАЧАЛА]]+Перечень[[#This Row],[ДЛИТЕЛЬНОСТЬ]]-1))),Перечень[[#This Row],[ДАТА НАЧАЛА]]+Перечень[[#This Row],[ДЛИТЕЛЬНОСТЬ]]-1),\"\")","v":""}]
[null,null,null,null,null,{"$f":"IF(ISNUMBER(Перечень[[#This Row],[ДЛИТЕЛЬНОСТЬ]]),IF(Перечень[[#This Row],[ОСНОВАНИЕ]]=\"ОТ (отпуск)\",Перечень[[#This Row],[ДАТА НАЧАЛА]]+Перечень[[#This Row],[ДЛИТЕЛЬНОСТЬ]]-1+SUMPRODUCT((Праздники[праздники]>=Перечень[[#This Row],[ДАТА НАЧАЛА]])*(Праздники[праздники]<=(Перечень[[#This Row],[ДАТА НАЧАЛА]]+Перечень[[#This Row],[ДЛИТЕЛЬНОСТЬ]]-1))),Перечень[[#This Row],[ДАТА НАЧАЛА]]+Перечень[[#This Row],[ДЛИТЕЛЬНОСТЬ]]-1),\"\")","v":""}]
[null,null,null,null,null,{"$f":"IF(ISNUMBER(Перечень[[#This Row],[ДЛИТЕЛЬНОСТЬ]]),IF(Перечень[[#This Row],[ОСНОВАНИЕ]]=\"ОТ (отпуск)\",Перечень[[#This Row],[ДАТА НАЧАЛА]]+Перечень[[#This Row],[ДЛИТЕЛЬНОСТЬ]]-1+SUMPRODUCT((Праздники[праздники]>=Перечень[[#This Row],[ДАТА НАЧАЛА]])*(Праздники[праздники]<=(Перечень[[#This Row],[ДАТА НАЧАЛА]]+Перечень[[#This Row],[ДЛИТЕЛЬНОСТЬ]]-1))),Перечень[[#This Row],[ДАТА НАЧАЛА]]+Перечень[[#This Row],[ДЛИТЕЛЬНОСТЬ]]-1),\"\")","v":""}]
[null,null,null,null,null,{"$f":"IF(ISNUMBER(Перечень[[#This Row],[ДЛИТЕЛЬНОСТЬ]]),IF(Перечень[[#This Row],[ОСНОВАНИЕ]]=\"ОТ (отпуск)\",Перечень[[#This Row],[ДАТА НАЧАЛА]]+Перечень[[#This Row],[ДЛИТЕЛЬНОСТЬ]]-1+SUMPRODUCT((Праздники[праздники]>=Перечень[[#This Row],[ДАТА НАЧАЛА]])*(Праздники[праздники]<=(Перечень[[#This Row],[ДАТА НАЧАЛА]]+Перечень[[#This Row],[ДЛИТЕЛЬНОСТЬ]]-1))),Перечень[[#This Row],[ДАТА НАЧАЛА]]+Перечень[[#This Row],[ДЛИТЕЛЬНОСТЬ]]-1),\"\")","v":""}]
[null,null,null,null,null,{"$f":"IF(ISNUMBER(Перечень[[#This Row],[ДЛИТЕЛЬНОСТЬ]]),IF(Перечень[[#This Row],[ОСНОВАНИЕ]]=\"ОТ (отпуск)\",Перечень[[#This Row],[ДАТА НАЧАЛА]]+Перечень[[#This Row],[ДЛИТЕЛЬНОСТЬ]]-1+SUMPRODUCT((Праздники[праздники]>=Перечень[[#This Row],[ДАТА НАЧАЛА]])*(Праздники[праздники]<=(Перечень[[#This Row],[ДАТА НАЧАЛА]]+Перечень[[#This Row],[ДЛИТЕЛЬНОСТЬ]]-1))),Перечень[[#This Row],[ДАТА НАЧАЛА]]+Перечень[[#This Row],[ДЛИТЕЛЬНОСТЬ]]-1),\"\")","v":""}]
[null,null,null,null,null,{"$f":"IF(ISNUMBER(Перечень[[#This Row],[ДЛИТЕЛЬНОСТЬ]]),IF(Перечень[[#This Row],[ОСНОВАНИЕ]]=\"ОТ (отпуск)\",Перечень[[#This Row],[ДАТА НАЧАЛА]]+Перечень[[#This Row],[ДЛИТЕЛЬНОСТЬ]]-1+SUMPRODUCT((Праздники[праздники]>=Перечень[[#This Row],[ДАТА НАЧАЛА]])*(Праздники[праздники]<=(Перечень[[#This Row],[ДАТА НАЧАЛА]]+Перечень[[#This Row],[ДЛИТЕЛЬНОСТЬ]]-1))),Перечень[[#This Row],[ДАТА НАЧАЛА]]+Перечень[[#This Row],[ДЛИТЕЛЬНОСТЬ]]-1),\"\")","v":""}]
[null,null,null,null,null,{"$f":"IF(ISNUMBER(Перечень[[#This Row],[ДЛИТЕЛЬНОСТЬ]]),IF(Перечень[[#This Row],[ОСНОВАНИЕ]]=\"ОТ (отпуск)\",Перечень[[#This Row],[ДАТА НАЧАЛА]]+Перечень[[#This Row],[ДЛИТЕЛЬНОСТЬ]]-1+SUMPRODUCT((Праздники[праздники]>=Перечень[[#This Row],[ДАТА НАЧАЛА]])*(Праздники[праздники]<=(Перечень[[#This Row],[ДАТА НАЧАЛА]]+Перечень[[#This Row],[ДЛИТЕЛЬНОСТЬ]]-1))),Перечень[[#This Row],[ДАТА НАЧАЛА]]+Перечень[[#This Row],[ДЛИТЕЛЬНОСТЬ]]-1),\"\")","v":""}]
[null,null,null,null,null,{"$f":"IF(ISNUMBER(Перечень[[#This Row],[ДЛИТЕЛЬНОСТЬ]]),IF(Перечень[[#This Row],[ОСНОВАНИЕ]]=\"ОТ (отпуск)\",Перечень[[#This Row],[ДАТА НАЧАЛА]]+Перечень[[#This Row],[ДЛИТЕЛЬНОСТЬ]]-1+SUMPRODUCT((Праздники[праздники]>=Перечень[[#This Row],[ДАТА НАЧАЛА]])*(Праздники[праздники]<=(Перечень[[#This Row],[ДАТА НАЧАЛА]]+Перечень[[#This Row],[ДЛИТЕЛЬНОСТЬ]]-1))),Перечень[[#This Row],[ДАТА НАЧАЛА]]+Перечень[[#This Row],[ДЛИТЕЛЬНОСТЬ]]-1),\"\")","v":""}]
[null,null,null,null,null,{"$f":"IF(ISNUMBER(Перечень[[#This Row],[ДЛИТЕЛЬНОСТЬ]]),IF(Перечень[[#This Row],[ОСНОВАНИЕ]]=\"ОТ (отпуск)\",Перечень[[#This Row],[ДАТА НАЧАЛА]]+Перечень[[#This Row],[ДЛИТЕЛЬНОСТЬ]]-1+SUMPRODUCT((Праздники[праздники]>=Перечень[[#This Row],[ДАТА НАЧАЛА]])*(Праздники[праздники]<=(Перечень[[#This Row],[ДАТА НАЧАЛА]]+Перечень[[#This Row],[ДЛИТЕЛЬНОСТЬ]]-1))),Перечень[[#This Row],[ДАТА НАЧАЛА]]+Перечень[[#This Row],[ДЛИТЕЛЬНОСТЬ]]-1),\"\")","v":""}]
[null,null,null,null,null,{"$f":"IF(ISNUMBER(Перечень[[#This Row],[ДЛИТЕЛЬНОСТЬ]]),IF(Перечень[[#This Row],[ОСНОВАНИЕ]]=\"ОТ (отпуск)\",Перечень[[#This Row],[ДАТА НАЧАЛА]]+Перечень[[#This Row],[ДЛИТЕЛЬНОСТЬ]]-1+SUMPRODUCT((Праздники[праздники]>=Перечень[[#This Row],[ДАТА НАЧАЛА]])*(Праздники[праздники]<=(Перечень[[#This Row],[ДАТА НАЧАЛА]]+Перечень[[#This Row],[ДЛИТЕЛЬНОСТЬ]]-1))),Перечень[[#This Row],[ДАТА НАЧАЛА]]+Перечень[[#This Row],[ДЛИТЕЛЬНОСТЬ]]-1),\"\")","v":""}]
[null,null,null,null,null,{"$f":"IF(ISNUMBER(Перечень[[#This Row],[ДЛИТЕЛЬНОСТЬ]]),IF(Перечень[[#This Row],[ОСНОВАНИЕ]]=\"ОТ (отпуск)\",Перечень[[#This Row],[ДАТА НАЧАЛА]]+Перечень[[#This Row],[ДЛИТЕЛЬНОСТЬ]]-1+SUMPRODUCT((Праздники[праздники]>=Перечень[[#This Row],[ДАТА НАЧАЛА]])*(Праздники[праздники]<=(Перечень[[#This Row],[ДАТА НАЧАЛА]]+Перечень[[#This Row],[ДЛИТЕЛЬНОСТЬ]]-1))),Перечень[[#This Row],[ДАТА НАЧАЛА]]+Перечень[[#This Row],[ДЛИТЕЛЬНОСТЬ]]-1),\"\")","v":""}]
[null,null,null,null,null,{"$f":"IF(ISNUMBER(Перечень[[#This Row],[ДЛИТЕЛЬНОСТЬ]]),IF(Перечень[[#This Row],[ОСНОВАНИЕ]]=\"ОТ (отпуск)\",Перечень[[#This Row],[ДАТА НАЧАЛА]]+Перечень[[#This Row],[ДЛИТЕЛЬНОСТЬ]]-1+SUMPRODUCT((Праздники[праздники]>=Перечень[[#This Row],[ДАТА НАЧАЛА]])*(Праздники[праздники]<=(Перечень[[#This Row],[ДАТА НАЧАЛА]]+Перечень[[#This Row],[ДЛИТЕЛЬНОСТЬ]]-1))),Перечень[[#This Row],[ДАТА НАЧАЛА]]+Перечень[[#This Row],[ДЛИТЕЛЬНОСТЬ]]-1),\"\")","v":""}]
[null,null,null,null,null,{"$f":"IF(ISNUMBER(Перечень[[#This Row],[ДЛИТЕЛЬНОСТЬ]]),IF(Перечень[[#This Row],[ОСНОВАНИЕ]]=\"ОТ (отпуск)\",Перечень[[#This Row],[ДАТА НАЧАЛА]]+Перечень[[#This Row],[ДЛИТЕЛЬНОСТЬ]]-1+SUMPRODUCT((Праздники[праздники]>=Перечень[[#This Row],[ДАТА НАЧАЛА]])*(Праздники[праздники]<=(Перечень[[#This Row],[ДАТА НАЧАЛА]]+Перечень[[#This Row],[ДЛИТЕЛЬНОСТЬ]]-1))),Перечень[[#This Row],[ДАТА НАЧАЛА]]+Перечень[[#This Row],[ДЛИТЕЛЬНОСТЬ]]-1),\"\")","v":""}]
[null,null,null,null,null,{"$f":"IF(ISNUMBER(Перечень[[#This Row],[ДЛИТЕЛЬНОСТЬ]]),IF(Перечень[[#This Row],[ОСНОВАНИЕ]]=\"ОТ (отпуск)\",Перечень[[#This Row],[ДАТА НАЧАЛА]]+Перечень[[#This Row],[ДЛИТЕЛЬНОСТЬ]]-1+SUMPRODUCT((Праздники[праздники]>=Перечень[[#This Row],[ДАТА НАЧАЛА]])*(Праздники[праздники]<=(Перечень[[#This Row],[ДАТА НАЧАЛА]]+Перечень[[#This Row],[ДЛИТЕЛЬНОСТЬ]]-1))),Перечень[[#This Row],[ДАТА НАЧАЛА]]+Перечень[[#This Row],[ДЛИТЕЛЬНОСТЬ]]-1),\"\")","v":""}]
[null,null,null,null,null,{"$f":"IF(ISNUMBER(Перечень[[#This Row],[ДЛИТЕЛЬНОСТЬ]]),IF(Перечень[[#This Row],[ОСНОВАНИЕ]]=\"ОТ (отпуск)\",Перечень[[#This Row],[ДАТА НАЧАЛА]]+Перечень[[#This Row],[ДЛИТЕЛЬНОСТЬ]]-1+SUMPRODUCT((Праздники[праздники]>=Перечень[[#This Row],[ДАТА НАЧАЛА]])*(Праздники[праздники]<=(Перечень[[#This Row],[ДАТА НАЧАЛА]]+Перечень[[#This Row],[ДЛИТЕЛЬНОСТЬ]]-1))),Перечень[[#This Row],[ДАТА НАЧАЛА]]+Перечень[[#This Row],[ДЛИТЕЛЬНОСТЬ]]-1),\"\")","v":""}]
[null,null,null,null,null,{"$f":"IF(ISNUMBER(Перечень[[#This Row],[ДЛИТЕЛЬНОСТЬ]]),IF(Перечень[[#This Row],[ОСНОВАНИЕ]]=\"ОТ (отпуск)\",Перечень[[#This Row],[ДАТА НАЧАЛА]]+Перечень[[#This Row],[ДЛИТЕЛЬНОСТЬ]]-1+SUMPRODUCT((Праздники[праздники]>=Перечень[[#This Row],[ДАТА НАЧАЛА]])*(Праздники[праздники]<=(Перечень[[#This Row],[ДАТА НАЧАЛА]]+Перечень[[#This Row],[ДЛИТЕЛЬНОСТЬ]]-1))),Перечень[[#This Row],[ДАТА НАЧАЛА]]+Перечень[[#This Row],[ДЛИТЕЛЬНОСТЬ]]-1),\"\")","v":""}]
[null,null,null,null,null,{"$f":"IF(ISNUMBER(Перечень[[#This Row],[ДЛИТЕЛЬНОСТЬ]]),IF(Перечень[[#This Row],[ОСНОВАНИЕ]]=\"ОТ (отпуск)\",Перечень[[#This Row],[ДАТА НАЧАЛА]]+Перечень[[#This Row],[ДЛИТЕЛЬНОСТЬ]]-1+SUMPRODUCT((Праздники[праздники]>=Перечень[[#This Row],[ДАТА НАЧАЛА]])*(Праздники[праздники]<=(Перечень[[#This Row],[ДАТА НАЧАЛА]]+Перечень[[#This Row],[ДЛИТЕЛЬНОСТЬ]]-1))),Перечень[[#This Row],[ДАТА НАЧАЛА]]+Перечень[[#This Row],[ДЛИТЕЛЬНОСТЬ]]-1),\"\")","v":""}]
[null,null,null,null,null,{"$f":"IF(ISNUMBER(Перечень[[#This Row],[ДЛИТЕЛЬНОСТЬ]]),IF(Перечень[[#This Row],[ОСНОВАНИЕ]]=\"ОТ (отпуск)\",Перечень[[#This Row],[ДАТА НАЧАЛА]]+Перечень[[#This Row],[ДЛИТЕЛЬНОСТЬ]]-1+SUMPRODUCT((Праздники[праздники]>=Перечень[[#This Row],[ДАТА НАЧАЛА]])*(Праздники[праздники]<=(Перечень[[#This Row],[ДАТА НАЧАЛА]]+Перечень[[#This Row],[ДЛИТЕЛЬНОСТЬ]]-1))),Перечень[[#This Row],[ДАТА НАЧАЛА]]+Перечень[[#This Row],[ДЛИТЕЛЬНОСТЬ]]-1),\"\")","v":""}]
[null,null,null,null,null,{"$f":"IF(ISNUMBER(Перечень[[#This Row],[ДЛИТЕЛЬНОСТЬ]]),IF(Перечень[[#This Row],[ОСНОВАНИЕ]]=\"ОТ (отпуск)\",Перечень[[#This Row],[ДАТА НАЧАЛА]]+Перечень[[#This Row],[ДЛИТЕЛЬНОСТЬ]]-1+SUMPRODUCT((Праздники[праздники]>=Перечень[[#This Row],[ДАТА НАЧАЛА]])*(Праздники[праздники]<=(Перечень[[#This Row],[ДАТА НАЧАЛА]]+Перечень[[#This Row],[ДЛИТЕЛЬНОСТЬ]]-1))),Перечень[[#This Row],[ДАТА НАЧАЛА]]+Перечень[[#This Row],[ДЛИТЕЛЬНОСТЬ]]-1),\"\")","v":""}]
[null,null,null,null,null,{"$f":"IF(ISNUMBER(Перечень[[#This Row],[ДЛИТЕЛЬНОСТЬ]]),IF(Перечень[[#This Row],[ОСНОВАНИЕ]]=\"ОТ (отпуск)\",Перечень[[#This Row],[ДАТА НАЧАЛА]]+Перечень[[#This Row],[ДЛИТЕЛЬНОСТЬ]]-1+SUMPRODUCT((Праздники[праздники]>=Перечень[[#This Row],[ДАТА НАЧАЛА]])*(Праздники[праздники]<=(Перечень[[#This Row],[ДАТА НАЧАЛА]]+Перечень[[#This Row],[ДЛИТЕЛЬНОСТЬ]]-1))),Перечень[[#This Row],[ДАТА НАЧАЛА]]+Перечень[[#This Row],[ДЛИТЕЛЬНОСТЬ]]-1),\"\")","v":""}]
[null,null,null,null,null,{"$f":"IF(ISNUMBER(Перечень[[#This Row],[ДЛИТЕЛЬНОСТЬ]]),IF(Перечень[[#This Row],[ОСНОВАНИЕ]]=\"ОТ (отпуск)\",Перечень[[#This Row],[ДАТА НАЧАЛА]]+Перечень[[#This Row],[ДЛИТЕЛЬНОСТЬ]]-1+SUMPRODUCT((Праздники[праздники]>=Перечень[[#This Row],[ДАТА НАЧАЛА]])*(Праздники[праздники]<=(Перечень[[#This Row],[ДАТА НАЧАЛА]]+Перечень[[#This Row],[ДЛИТЕЛЬНОСТЬ]]-1))),Перечень[[#This Row],[ДАТА НАЧАЛА]]+Перечень[[#This Row],[ДЛИТЕЛЬНОСТЬ]]-1),\"\")","v":""}]
[null,null,null,null,null,{"$f":"IF(ISNUMBER(Перечень[[#This Row],[ДЛИТЕЛЬНОСТЬ]]),IF(Перечень[[#This Row],[ОСНОВАНИЕ]]=\"ОТ (отпуск)\",Перечень[[#This Row],[ДАТА НАЧАЛА]]+Перечень[[#This Row],[ДЛИТЕЛЬНОСТЬ]]-1+SUMPRODUCT((Праздники[праздники]>=Перечень[[#This Row],[ДАТА НАЧАЛА]])*(Праздники[праздники]<=(Перечень[[#This Row],[ДАТА НАЧАЛА]]+Перечень[[#This Row],[ДЛИТЕЛЬНОСТЬ]]-1))),Перечень[[#This Row],[ДАТА НАЧАЛА]]+Перечень[[#This Row],[ДЛИТЕЛЬНОСТЬ]]-1),\"\")","v":""}]
[null,null,null,null,null,{"$f":"IF(ISNUMBER(Перечень[[#This Row],[ДЛИТЕЛЬНОСТЬ]]),IF(Перечень[[#This Row],[ОСНОВАНИЕ]]=\"ОТ (отпуск)\",Перечень[[#This Row],[ДАТА НАЧАЛА]]+Перечень[[#This Row],[ДЛИТЕЛЬНОСТЬ]]-1+SUMPRODUCT((Праздники[праздники]>=Перечень[[#This Row],[ДАТА НАЧАЛА]])*(Праздники[праздники]<=(Перечень[[#This Row],[ДАТА НАЧАЛА]]+Перечень[[#This Row],[ДЛИТЕЛЬНОСТЬ]]-1))),Перечень[[#This Row],[ДАТА НАЧАЛА]]+Перечень[[#This Row],[ДЛИТЕЛЬНОСТЬ]]-1),\"\")","v":""}]
[null,null,null,null,null,{"$f":"IF(ISNUMBER(Перечень[[#This Row],[ДЛИТЕЛЬНОСТЬ]]),IF(Перечень[[#This Row],[ОСНОВАНИЕ]]=\"ОТ (отпуск)\",Перечень[[#This Row],[ДАТА НАЧАЛА]]+Перечень[[#This Row],[ДЛИТЕЛЬНОСТЬ]]-1+SUMPRODUCT((Праздники[праздники]>=Перечень[[#This Row],[ДАТА НАЧАЛА]])*(Праздники[праздники]<=(Перечень[[#This Row],[ДАТА НАЧАЛА]]+Перечень[[#This Row],[ДЛИТЕЛЬНОСТЬ]]-1))),Перечень[[#This Row],[ДАТА НАЧАЛА]]+Перечень[[#This Row],[ДЛИТЕЛЬНОСТЬ]]-1),\"\")","v":""}]
[null,null,null,null,null,{"$f":"IF(ISNUMBER(Перечень[[#This Row],[ДЛИТЕЛЬНОСТЬ]]),IF(Перечень[[#This Row],[ОСНОВАНИЕ]]=\"ОТ (отпуск)\",Перечень[[#This Row],[ДАТА НАЧАЛА]]+Перечень[[#This Row],[ДЛИТЕЛЬНОСТЬ]]-1+SUMPRODUCT((Праздники[праздники]>=Перечень[[#This Row],[ДАТА НАЧАЛА]])*(Праздники[праздники]<=(Перечень[[#This Row],[ДАТА НАЧАЛА]]+Перечень[[#This Row],[ДЛИТЕЛЬНОСТЬ]]-1))),Перечень[[#This Row],[ДАТА НАЧАЛА]]+Перечень[[#This Row],[ДЛИТЕЛЬНОСТЬ]]-1),\"\")","v":""}]
[null,null,null,null,null,{"$f":"IF(ISNUMBER(Перечень[[#This Row],[ДЛИТЕЛЬНОСТЬ]]),IF(Перечень[[#This Row],[ОСНОВАНИЕ]]=\"ОТ (отпуск)\",Перечень[[#This Row],[ДАТА НАЧАЛА]]+Перечень[[#This Row],[ДЛИТЕЛЬНОСТЬ]]-1+SUMPRODUCT((Праздники[праздники]>=Перечень[[#This Row],[ДАТА НАЧАЛА]])*(Праздники[праздники]<=(Перечень[[#This Row],[ДАТА НАЧАЛА]]+Перечень[[#This Row],[ДЛИТЕЛЬНОСТЬ]]-1))),Перечень[[#This Row],[ДАТА НАЧАЛА]]+Перечень[[#This Row],[ДЛИТЕЛЬНОСТЬ]]-1),\"\")","v":""}]
[null,null,null,null,null,{"$f":"IF(ISNUMBER(Перечень[[#This Row],[ДЛИТЕЛЬНОСТЬ]]),IF(Перечень[[#This Row],[ОСНОВАНИЕ]]=\"ОТ (отпуск)\",Перечень[[#This Row],[ДАТА НАЧАЛА]]+Перечень[[#This Row],[ДЛИТЕЛЬНОСТЬ]]-1+SUMPRODUCT((Праздники[праздники]>=Перечень[[#This Row],[ДАТА НАЧАЛА]])*(Праздники[праздники]<=(Перечень[[#This Row],[ДАТА НАЧАЛА]]+Перечень[[#This Row],[ДЛИТЕЛЬНОСТЬ]]-1))),Перечень[[#This Row],[ДАТА НАЧАЛА]]+Перечень[[#This Row],[ДЛИТЕЛЬНОСТЬ]]-1),\"\")","v":""}]
[null,null,null,null,null,{"$f":"IF(ISNUMBER(Перечень[[#This Row],[ДЛИТЕЛЬНОСТЬ]]),IF(Перечень[[#This Row],[ОСНОВАНИЕ]]=\"ОТ (отпуск)\",Перечень[[#This Row],[ДАТА НАЧАЛА]]+Перечень[[#This Row],[ДЛИТЕЛЬНОСТЬ]]-1+SUMPRODUCT((Праздники[праздники]>=Перечень[[#This Row],[ДАТА НАЧАЛА]])*(Праздники[праздники]<=(Перечень[[#This Row],[ДАТА НАЧАЛА]]+Перечень[[#This Row],[ДЛИТЕЛЬНОСТЬ]]-1))),Перечень[[#This Row],[ДАТА НАЧАЛА]]+Перечень[[#This Row],[ДЛИТЕЛЬНОСТЬ]]-1),\"\")","v":""}]
[null,null,null,null,null,{"$f":"IF(ISNUMBER(Перечень[[#This Row],[ДЛИТЕЛЬНОСТЬ]]),IF(Перечень[[#This Row],[ОСНОВАНИЕ]]=\"ОТ (отпуск)\",Перечень[[#This Row],[ДАТА НАЧАЛА]]+Перечень[[#This Row],[ДЛИТЕЛЬНОСТЬ]]-1+SUMPRODUCT((Праздники[праздники]>=Перечень[[#This Row],[ДАТА НАЧАЛА]])*(Праздники[праздники]<=(Перечень[[#This Row],[ДАТА НАЧАЛА]]+Перечень[[#This Row],[ДЛИТЕЛЬНОСТЬ]]-1))),Перечень[[#This Row],[ДАТА НАЧАЛА]]+Перечень[[#This Row],[ДЛИТЕЛЬНОСТЬ]]-1),\"\")","v":""}]
[null,null,null,null,null,{"$f":"IF(ISNUMBER(Перечень[[#This Row],[ДЛИТЕЛЬНОСТЬ]]),IF(Перечень[[#This Row],[ОСНОВАНИЕ]]=\"ОТ (отпуск)\",Перечень[[#This Row],[ДАТА НАЧАЛА]]+Перечень[[#This Row],[ДЛИТЕЛЬНОСТЬ]]-1+SUMPRODUCT((Праздники[праздники]>=Перечень[[#This Row],[ДАТА НАЧАЛА]])*(Праздники[праздники]<=(Перечень[[#This Row],[ДАТА НАЧАЛА]]+Перечень[[#This Row],[ДЛИТЕЛЬНОСТЬ]]-1))),Перечень[[#This Row],[ДАТА НАЧАЛА]]+Перечень[[#This Row],[ДЛИТЕЛЬНОСТЬ]]-1),\"\")","v":""}]
[null,null,null,null,null,{"$f":"IF(ISNUMBER(Перечень[[#This Row],[ДЛИТЕЛЬНОСТЬ]]),IF(Перечень[[#This Row],[ОСНОВАНИЕ]]=\"ОТ (отпуск)\",Перечень[[#This Row],[ДАТА НАЧАЛА]]+Перечень[[#This Row],[ДЛИТЕЛЬНОСТЬ]]-1+SUMPRODUCT((Праздники[праздники]>=Перечень[[#This Row],[ДАТА НАЧАЛА]])*(Праздники[праздники]<=(Перечень[[#This Row],[ДАТА НАЧАЛА]]+Перечень[[#This Row],[ДЛИТЕЛЬНОСТЬ]]-1))),Перечень[[#This Row],[ДАТА НАЧАЛА]]+Перечень[[#This Row],[ДЛИТЕЛЬНОСТЬ]]-1),\"\")","v":""}]
[null,null,null,null,null,{"$f":"IF(ISNUMBER(Перечень[[#This Row],[ДЛИТЕЛЬНОСТЬ]]),IF(Перечень[[#This Row],[ОСНОВАНИЕ]]=\"ОТ (отпуск)\",Перечень[[#This Row],[ДАТА НАЧАЛА]]+Перечень[[#This Row],[ДЛИТЕЛЬНОСТЬ]]-1+SUMPRODUCT((Праздники[праздники]>=Перечень[[#This Row],[ДАТА НАЧАЛА]])*(Праздники[праздники]<=(Перечень[[#This Row],[ДАТА НАЧАЛА]]+Перечень[[#This Row],[ДЛИТЕЛЬНОСТЬ]]-1))),Перечень[[#This Row],[ДАТА НАЧАЛА]]+Перечень[[#This Row],[ДЛИТЕЛЬНОСТЬ]]-1),\"\")","v":""}]
[null,null,null,null,null,{"$f":"IF(ISNUMBER(Перечень[[#This Row],[ДЛИТЕЛЬНОСТЬ]]),IF(Перечень[[#This Row],[ОСНОВАНИЕ]]=\"ОТ (отпуск)\",Перечень[[#This Row],[ДАТА НАЧАЛА]]+Перечень[[#This Row],[ДЛИТЕЛЬНОСТЬ]]-1+SUMPRODUCT((Праздники[праздники]>=Перечень[[#This Row],[ДАТА НАЧАЛА]])*(Праздники[праздники]<=(Перечень[[#This Row],[ДАТА НАЧАЛА]]+Перечень[[#This Row],[ДЛИТЕЛЬНОСТЬ]]-1))),Перечень[[#This Row],[ДАТА НАЧАЛА]]+Перечень[[#This Row],[ДЛИТЕЛЬНОСТЬ]]-1),\"\")","v":""}]
[null,null,null,null,null,{"$f":"IF(ISNUMBER(Перечень[[#This Row],[ДЛИТЕЛЬНОСТЬ]]),IF(Перечень[[#This Row],[ОСНОВАНИЕ]]=\"ОТ (отпуск)\",Перечень[[#This Row],[ДАТА НАЧАЛА]]+Перечень[[#This Row],[ДЛИТЕЛЬНОСТЬ]]-1+SUMPRODUCT((Праздники[праздники]>=Перечень[[#This Row],[ДАТА НАЧАЛА]])*(Праздники[праздники]<=(Перечень[[#This Row],[ДАТА НАЧАЛА]]+Перечень[[#This Row],[ДЛИТЕЛЬНОСТЬ]]-1))),Перечень[[#This Row],[ДАТА НАЧАЛА]]+Перечень[[#This Row],[ДЛИТЕЛЬНОСТЬ]]-1),\"\")","v":""}]
[null,null,null,null,null,{"$f":"IF(ISNUMBER(Перечень[[#This Row],[ДЛИТЕЛЬНОСТЬ]]),IF(Перечень[[#This Row],[ОСНОВАНИЕ]]=\"ОТ (отпуск)\",Перечень[[#This Row],[ДАТА НАЧАЛА]]+Перечень[[#This Row],[ДЛИТЕЛЬНОСТЬ]]-1+SUMPRODUCT((Праздники[праздники]>=Перечень[[#This Row],[ДАТА НАЧАЛА]])*(Праздники[праздники]<=(Перечень[[#This Row],[ДАТА НАЧАЛА]]+Перечень[[#This Row],[ДЛИТЕЛЬНОСТЬ]]-1))),Перечень[[#This Row],[ДАТА НАЧАЛА]]+Перечень[[#This Row],[ДЛИТЕЛЬНОСТЬ]]-1),\"\")","v":""}]
[null,null,null,null,null,{"$f":"IF(ISNUMBER(Перечень[[#This Row],[ДЛИТЕЛЬНОСТЬ]]),IF(Перечень[[#This Row],[ОСНОВАНИЕ]]=\"ОТ (отпуск)\",Перечень[[#This Row],[ДАТА НАЧАЛА]]+Перечень[[#This Row],[ДЛИТЕЛЬНОСТЬ]]-1+SUMPRODUCT((Праздники[праздники]>=Перечень[[#This Row],[ДАТА НАЧАЛА]])*(Праздники[праздники]<=(Перечень[[#This Row],[ДАТА НАЧАЛА]]+Перечень[[#This Row],[ДЛИТЕЛЬНОСТЬ]]-1))),Перечень[[#This Row],[ДАТА НАЧАЛА]]+Перечень[[#This Row],[ДЛИТЕЛЬНОСТЬ]]-1),\"\")","v":""}]
[null,null,null,null,null,{"$f":"IF(ISNUMBER(Перечень[[#This Row],[ДЛИТЕЛЬНОСТЬ]]),IF(Перечень[[#This Row],[ОСНОВАНИЕ]]=\"ОТ (отпуск)\",Перечень[[#This Row],[ДАТА НАЧАЛА]]+Перечень[[#This Row],[ДЛИТЕЛЬНОСТЬ]]-1+SUMPRODUCT((Праздники[праздники]>=Перечень[[#This Row],[ДАТА НАЧАЛА]])*(Праздники[праздники]<=(Перечень[[#This Row],[ДАТА НАЧАЛА]]+Перечень[[#This Row],[ДЛИТЕЛЬНОСТЬ]]-1))),Перечень[[#This Row],[ДАТА НАЧАЛА]]+Перечень[[#This Row],[ДЛИТЕЛЬНОСТЬ]]-1),\"\")","v":""}]
[null,null,null,null,null,{"$f":"IF(ISNUMBER(Перечень[[#This Row],[ДЛИТЕЛЬНОСТЬ]]),IF(Перечень[[#This Row],[ОСНОВАНИЕ]]=\"ОТ (отпуск)\",Перечень[[#This Row],[ДАТА НАЧАЛА]]+Перечень[[#This Row],[ДЛИТЕЛЬНОСТЬ]]-1+SUMPRODUCT((Праздники[праздники]>=Перечень[[#This Row],[ДАТА НАЧАЛА]])*(Праздники[праздники]<=(Перечень[[#This Row],[ДАТА НАЧАЛА]]+Перечень[[#This Row],[ДЛИТЕЛЬНОСТЬ]]-1))),Перечень[[#This Row],[ДАТА НАЧАЛА]]+Перечень[[#This Row],[ДЛИТЕЛЬНОСТЬ]]-1),\"\")","v":""}]
[null,null,null,null,null,{"$f":"IF(ISNUMBER(Перечень[[#This Row],[ДЛИТЕЛЬНОСТЬ]]),IF(Перечень[[#This Row],[ОСНОВАНИЕ]]=\"ОТ (отпуск)\",Перечень[[#This Row],[ДАТА НАЧАЛА]]+Перечень[[#This Row],[ДЛИТЕЛЬНОСТЬ]]-1+SUMPRODUCT((Праздники[праздники]>=Перечень[[#This Row],[ДАТА НАЧАЛА]])*(Праздники[праздники]<=(Перечень[[#This Row],[ДАТА НАЧАЛА]]+Перечень[[#This Row],[ДЛИТЕЛЬНОСТЬ]]-1))),Перечень[[#This Row],[ДАТА НАЧАЛА]]+Перечень[[#This Row],[ДЛИТЕЛЬНОСТЬ]]-1),\"\")","v":""}]
[null,null,null,null,null,{"$f":"IF(ISNUMBER(Перечень[[#This Row],[ДЛИТЕЛЬНОСТЬ]]),IF(Перечень[[#This Row],[ОСНОВАНИЕ]]=\"ОТ (отпуск)\",Перечень[[#This Row],[ДАТА НАЧАЛА]]+Перечень[[#This Row],[ДЛИТЕЛЬНОСТЬ]]-1+SUMPRODUCT((Праздники[праздники]>=Перечень[[#This Row],[ДАТА НАЧАЛА]])*(Праздники[праздники]<=(Перечень[[#This Row],[ДАТА НАЧАЛА]]+Перечень[[#This Row],[ДЛИТЕЛЬНОСТЬ]]-1))),Перечень[[#This Row],[ДАТА НАЧАЛА]]+Перечень[[#This Row],[ДЛИТЕЛЬНОСТЬ]]-1),\"\")","v":""}]
[null,null,null,null,null,{"$f":"IF(ISNUMBER(Перечень[[#This Row],[ДЛИТЕЛЬНОСТЬ]]),IF(Перечень[[#This Row],[ОСНОВАНИЕ]]=\"ОТ (отпуск)\",Перечень[[#This Row],[ДАТА НАЧАЛА]]+Перечень[[#This Row],[ДЛИТЕЛЬНОСТЬ]]-1+SUMPRODUCT((Праздники[праздники]>=Перечень[[#This Row],[ДАТА НАЧАЛА]])*(Праздники[праздники]<=(Перечень[[#This Row],[ДАТА НАЧАЛА]]+Перечень[[#This Row],[ДЛИТЕЛЬНОСТЬ]]-1))),Перечень[[#This Row],[ДАТА НАЧАЛА]]+Перечень[[#This Row],[ДЛИТЕЛЬНОСТЬ]]-1),\"\")","v":""}]
[null,null,null,null,null,{"$f":"IF(ISNUMBER(Перечень[[#This Row],[ДЛИТЕЛЬНОСТЬ]]),IF(Перечень[[#This Row],[ОСНОВАНИЕ]]=\"ОТ (отпуск)\",Перечень[[#This Row],[ДАТА НАЧАЛА]]+Перечень[[#This Row],[ДЛИТЕЛЬНОСТЬ]]-1+SUMPRODUCT((Праздники[праздники]>=Перечень[[#This Row],[ДАТА НАЧАЛА]])*(Праздники[праздники]<=(Перечень[[#This Row],[ДАТА НАЧАЛА]]+Перечень[[#This Row],[ДЛИТЕЛЬНОСТЬ]]-1))),Перечень[[#This Row],[ДАТА НАЧАЛА]]+Перечень[[#This Row],[ДЛИТЕЛЬНОСТЬ]]-1),\"\")","v":""}]
[null,null,null,null,null,{"$f":"IF(ISNUMBER(Перечень[[#This Row],[ДЛИТЕЛЬНОСТЬ]]),IF(Перечень[[#This Row],[ОСНОВАНИЕ]]=\"ОТ (отпуск)\",Перечень[[#This Row],[ДАТА НАЧАЛА]]+Перечень[[#This Row],[ДЛИТЕЛЬНОСТЬ]]-1+SUMPRODUCT((Праздники[праздники]>=Перечень[[#This Row],[ДАТА НАЧАЛА]])*(Праздники[праздники]<=(Перечень[[#This Row],[ДАТА НАЧАЛА]]+Перечень[[#This Row],[ДЛИТЕЛЬНОСТЬ]]-1))),Перечень[[#This Row],[ДАТА НАЧАЛА]]+Перечень[[#This Row],[ДЛИТЕЛЬНОСТЬ]]-1),\"\")","v":""}]
[null,null,null,null,null,{"$f":"IF(ISNUMBER(Перечень[[#This Row],[ДЛИТЕЛЬНОСТЬ]]),IF(Перечень[[#This Row],[ОСНОВАНИЕ]]=\"ОТ (отпуск)\",Перечень[[#This Row],[ДАТА НАЧАЛА]]+Перечень[[#This Row],[ДЛИТЕЛЬНОСТЬ]]-1+SUMPRODUCT((Праздники[праздники]>=Перечень[[#This Row],[ДАТА НАЧАЛА]])*(Праздники[праздники]<=(Перечень[[#This Row],[ДАТА НАЧАЛА]]+Перечень[[#This Row],[ДЛИТЕЛЬНОСТЬ]]-1))),Перечень[[#This Row],[ДАТА НАЧАЛА]]+Перечень[[#This Row],[ДЛИТЕЛЬНОСТЬ]]-1),\"\")","v":""}]
[null,null,null,null,null,{"$f":"IF(ISNUMBER(Перечень[[#This Row],[ДЛИТЕЛЬНОСТЬ]]),IF(Перечень[[#This Row],[ОСНОВАНИЕ]]=\"ОТ (отпуск)\",Перечень[[#This Row],[ДАТА НАЧАЛА]]+Перечень[[#This Row],[ДЛИТЕЛЬНОСТЬ]]-1+SUMPRODUCT((Праздники[праздники]>=Перечень[[#This Row],[ДАТА НАЧАЛА]])*(Праздники[праздники]<=(Перечень[[#This Row],[ДАТА НАЧАЛА]]+Перечень[[#This Row],[ДЛИТЕЛЬНОСТЬ]]-1))),Перечень[[#This Row],[ДАТА НАЧАЛА]]+Перечень[[#This Row],[ДЛИТЕЛЬНОСТЬ]]-1),\"\")","v":""}]
[null,null,null,null,null,{"$f":"IF(ISNUMBER(Перечень[[#This Row],[ДЛИТЕЛЬНОСТЬ]]),IF(Перечень[[#This Row],[ОСНОВАНИЕ]]=\"ОТ (отпуск)\",Перечень[[#This Row],[ДАТА НАЧАЛА]]+Перечень[[#This Row],[ДЛИТЕЛЬНОСТЬ]]-1+SUMPRODUCT((Праздники[праздники]>=Перечень[[#This Row],[ДАТА НАЧАЛА]])*(Праздники[праздники]<=(Перечень[[#This Row],[ДАТА НАЧАЛА]]+Перечень[[#This Row],[ДЛИТЕЛЬНОСТЬ]]-1))),Перечень[[#This Row],[ДАТА НАЧАЛА]]+Перечень[[#This Row],[ДЛИТЕЛЬНОСТЬ]]-1),\"\")","v":""}]
[null,null,null,null,null,{"$f":"IF(ISNUMBER(Перечень[[#This Row],[ДЛИТЕЛЬНОСТЬ]]),IF(Перечень[[#This Row],[ОСНОВАНИЕ]]=\"ОТ (отпуск)\",Перечень[[#This Row],[ДАТА НАЧАЛА]]+Перечень[[#This Row],[ДЛИТЕЛЬНОСТЬ]]-1+SUMPRODUCT((Праздники[праздники]>=Перечень[[#This Row],[ДАТА НАЧАЛА]])*(Праздники[праздники]<=(Перечень[[#This Row],[ДАТА НАЧАЛА]]+Перечень[[#This Row],[ДЛИТЕЛЬНОСТЬ]]-1))),Перечень[[#This Row],[ДАТА НАЧАЛА]]+Перечень[[#This Row],[ДЛИТЕЛЬНОСТЬ]]-1),\"\")","v":""}]
[null,null,null,null,null,{"$f":"IF(ISNUMBER(Перечень[[#This Row],[ДЛИТЕЛЬНОСТЬ]]),IF(Перечень[[#This Row],[ОСНОВАНИЕ]]=\"ОТ (отпуск)\",Перечень[[#This Row],[ДАТА НАЧАЛА]]+Перечень[[#This Row],[ДЛИТЕЛЬНОСТЬ]]-1+SUMPRODUCT((Праздники[праздники]>=Перечень[[#This Row],[ДАТА НАЧАЛА]])*(Праздники[праздники]<=(Перечень[[#This Row],[ДАТА НАЧАЛА]]+Перечень[[#This Row],[ДЛИТЕЛЬНОСТЬ]]-1))),Перечень[[#This Row],[ДАТА НАЧАЛА]]+Перечень[[#This Row],[ДЛИТЕЛЬНОСТЬ]]-1),\"\")","v":""}]
[null,null,null,null,null,{"$f":"IF(ISNUMBER(Перечень[[#This Row],[ДЛИТЕЛЬНОСТЬ]]),IF(Перечень[[#This Row],[ОСНОВАНИЕ]]=\"ОТ (отпуск)\",Перечень[[#This Row],[ДАТА НАЧАЛА]]+Перечень[[#This Row],[ДЛИТЕЛЬНОСТЬ]]-1+SUMPRODUCT((Праздники[праздники]>=Перечень[[#This Row],[ДАТА НАЧАЛА]])*(Праздники[праздники]<=(Перечень[[#This Row],[ДАТА НАЧАЛА]]+Перечень[[#This Row],[ДЛИТЕЛЬНОСТЬ]]-1))),Перечень[[#This Row],[ДАТА НАЧАЛА]]+Перечень[[#This Row],[ДЛИТЕЛЬНОСТЬ]]-1),\"\")","v":""}]
[null,null,null,null,null,{"$f":"IF(ISNUMBER(Перечень[[#This Row],[ДЛИТЕЛЬНОСТЬ]]),IF(Перечень[[#This Row],[ОСНОВАНИЕ]]=\"ОТ (отпуск)\",Перечень[[#This Row],[ДАТА НАЧАЛА]]+Перечень[[#This Row],[ДЛИТЕЛЬНОСТЬ]]-1+SUMPRODUCT((Праздники[праздники]>=Перечень[[#This Row],[ДАТА НАЧАЛА]])*(Праздники[праздники]<=(Перечень[[#This Row],[ДАТА НАЧАЛА]]+Перечень[[#This Row],[ДЛИТЕЛЬНОСТЬ]]-1))),Перечень[[#This Row],[ДАТА НАЧАЛА]]+Перечень[[#This Row],[ДЛИТЕЛЬНОСТЬ]]-1),\"\")","v":""}]
[null,null,null,null,null,{"$f":"IF(ISNUMBER(Перечень[[#This Row],[ДЛИТЕЛЬНОСТЬ]]),IF(Перечень[[#This Row],[ОСНОВАНИЕ]]=\"ОТ (отпуск)\",Перечень[[#This Row],[ДАТА НАЧАЛА]]+Перечень[[#This Row],[ДЛИТЕЛЬНОСТЬ]]-1+SUMPRODUCT((Праздники[праздники]>=Перечень[[#This Row],[ДАТА НАЧАЛА]])*(Праздники[праздники]<=(Перечень[[#This Row],[ДАТА НАЧАЛА]]+Перечень[[#This Row],[ДЛИТЕЛЬНОСТЬ]]-1))),Перечень[[#This Row],[ДАТА НАЧАЛА]]+Перечень[[#This Row],[ДЛИТЕЛЬНОСТЬ]]-1),\"\")","v":""}]
[null,null,null,null,null,{"$f":"IF(ISNUMBER(Перечень[[#This Row],[ДЛИТЕЛЬНОСТЬ]]),IF(Перечень[[#This Row],[ОСНОВАНИЕ]]=\"ОТ (отпуск)\",Перечень[[#This Row],[ДАТА НАЧАЛА]]+Перечень[[#This Row],[ДЛИТЕЛЬНОСТЬ]]-1+SUMPRODUCT((Праздники[праздники]>=Перечень[[#This Row],[ДАТА НАЧАЛА]])*(Праздники[праздники]<=(Перечень[[#This Row],[ДАТА НАЧАЛА]]+Перечень[[#This Row],[ДЛИТЕЛЬНОСТЬ]]-1))),Перечень[[#This Row],[ДАТА НАЧАЛА]]+Перечень[[#This Row],[ДЛИТЕЛЬНОСТЬ]]-1),\"\")","v":""}]
[null,null,null,null,null,{"$f":"IF(ISNUMBER(Перечень[[#This Row],[ДЛИТЕЛЬНОСТЬ]]),IF(Перечень[[#This Row],[ОСНОВАНИЕ]]=\"ОТ (отпуск)\",Перечень[[#This Row],[ДАТА НАЧАЛА]]+Перечень[[#This Row],[ДЛИТЕЛЬНОСТЬ]]-1+SUMPRODUCT((Праздники[праздники]>=Перечень[[#This Row],[ДАТА НАЧАЛА]])*(Праздники[праздники]<=(Перечень[[#This Row],[ДАТА НАЧАЛА]]+Перечень[[#This Row],[ДЛИТЕЛЬНОСТЬ]]-1))),Перечень[[#This Row],[ДАТА НАЧАЛА]]+Перечень[[#This Row],[ДЛИТЕЛЬНОСТЬ]]-1),\"\")","v":""}]
[null,null,null,null,null,{"$f":"IF(ISNUMBER(Перечень[[#This Row],[ДЛИТЕЛЬНОСТЬ]]),IF(Перечень[[#This Row],[ОСНОВАНИЕ]]=\"ОТ (отпуск)\",Перечень[[#This Row],[ДАТА НАЧАЛА]]+Перечень[[#This Row],[ДЛИТЕЛЬНОСТЬ]]-1+SUMPRODUCT((Праздники[праздники]>=Перечень[[#This Row],[ДАТА НАЧАЛА]])*(Праздники[праздники]<=(Перечень[[#This Row],[ДАТА НАЧАЛА]]+Перечень[[#This Row],[ДЛИТЕЛЬНОСТЬ]]-1))),Перечень[[#This Row],[ДАТА НАЧАЛА]]+Перечень[[#This Row],[ДЛИТЕЛЬНОСТЬ]]-1),\"\")","v":""}]
[null,null,null,null,null,{"$f":"IF(ISNUMBER(Перечень[[#This Row],[ДЛИТЕЛЬНОСТЬ]]),IF(Перечень[[#This Row],[ОСНОВАНИЕ]]=\"ОТ (отпуск)\",Перечень[[#This Row],[ДАТА НАЧАЛА]]+Перечень[[#This Row],[ДЛИТЕЛЬНОСТЬ]]-1+SUMPRODUCT((Праздники[праздники]>=Перечень[[#This Row],[ДАТА НАЧАЛА]])*(Праздники[праздники]<=(Перечень[[#This Row],[ДАТА НАЧАЛА]]+Перечень[[#This Row],[ДЛИТЕЛЬНОСТЬ]]-1))),Перечень[[#This Row],[ДАТА НАЧАЛА]]+Перечень[[#This Row],[ДЛИТЕЛЬНОСТЬ]]-1),\"\")","v":""}]
[null,null,null,null,null,{"$f":"IF(ISNUMBER(Перечень[[#This Row],[ДЛИТЕЛЬНОСТЬ]]),IF(Перечень[[#This Row],[ОСНОВАНИЕ]]=\"ОТ (отпуск)\",Перечень[[#This Row],[ДАТА НАЧАЛА]]+Перечень[[#This Row],[ДЛИТЕЛЬНОСТЬ]]-1+SUMPRODUCT((Праздники[праздники]>=Перечень[[#This Row],[ДАТА НАЧАЛА]])*(Праздники[праздники]<=(Перечень[[#This Row],[ДАТА НАЧАЛА]]+Перечень[[#This Row],[ДЛИТЕЛЬНОСТЬ]]-1))),Перечень[[#This Row],[ДАТА НАЧАЛА]]+Перечень[[#This Row],[ДЛИТЕЛЬНОСТЬ]]-1),\"\")","v":""}]
[null,null,null,null,null,{"$f":"IF(ISNUMBER(Перечень[[#This Row],[ДЛИТЕЛЬНОСТЬ]]),IF(Перечень[[#This Row],[ОСНОВАНИЕ]]=\"ОТ (отпуск)\",Перечень[[#This Row],[ДАТА НАЧАЛА]]+Перечень[[#This Row],[ДЛИТЕЛЬНОСТЬ]]-1+SUMPRODUCT((Праздники[праздники]>=Перечень[[#This Row],[ДАТА НАЧАЛА]])*(Праздники[праздники]<=(Перечень[[#This Row],[ДАТА НАЧАЛА]]+Перечень[[#This Row],[ДЛИТЕЛЬНОСТЬ]]-1))),Перечень[[#This Row],[ДАТА НАЧАЛА]]+Перечень[[#This Row],[ДЛИТЕЛЬНОСТЬ]]-1),\"\")","v":""}]
[null,null,null,null,null,{"$f":"IF(ISNUMBER(Перечень[[#This Row],[ДЛИТЕЛЬНОСТЬ]]),IF(Перечень[[#This Row],[ОСНОВАНИЕ]]=\"ОТ (отпуск)\",Перечень[[#This Row],[ДАТА НАЧАЛА]]+Перечень[[#This Row],[ДЛИТЕЛЬНОСТЬ]]-1+SUMPRODUCT((Праздники[праздники]>=Перечень[[#This Row],[ДАТА НАЧАЛА]])*(Праздники[праздники]<=(Перечень[[#This Row],[ДАТА НАЧАЛА]]+Перечень[[#This Row],[ДЛИТЕЛЬНОСТЬ]]-1))),Перечень[[#This Row],[ДАТА НАЧАЛА]]+Перечень[[#This Row],[ДЛИТЕЛЬНОСТЬ]]-1),\"\")","v":""}]
[null,null,null,null,null,{"$f":"IF(ISNUMBER(Перечень[[#This Row],[ДЛИТЕЛЬНОСТЬ]]),IF(Перечень[[#This Row],[ОСНОВАНИЕ]]=\"ОТ (отпуск)\",Перечень[[#This Row],[ДАТА НАЧАЛА]]+Перечень[[#This Row],[ДЛИТЕЛЬНОСТЬ]]-1+SUMPRODUCT((Праздники[праздники]>=Перечень[[#This Row],[ДАТА НАЧАЛА]])*(Праздники[праздники]<=(Перечень[[#This Row],[ДАТА НАЧАЛА]]+Перечень[[#This Row],[ДЛИТЕЛЬНОСТЬ]]-1))),Перечень[[#This Row],[ДАТА НАЧАЛА]]+Перечень[[#This Row],[ДЛИТЕЛЬНОСТЬ]]-1),\"\")","v":""}]
[null,null,null,null,null,{"$f":"IF(ISNUMBER(Перечень[[#This Row],[ДЛИТЕЛЬНОСТЬ]]),IF(Перечень[[#This Row],[ОСНОВАНИЕ]]=\"ОТ (отпуск)\",Перечень[[#This Row],[ДАТА НАЧАЛА]]+Перечень[[#This Row],[ДЛИТЕЛЬНОСТЬ]]-1+SUMPRODUCT((Праздники[праздники]>=Перечень[[#This Row],[ДАТА НАЧАЛА]])*(Праздники[праздники]<=(Перечень[[#This Row],[ДАТА НАЧАЛА]]+Перечень[[#This Row],[ДЛИТЕЛЬНОСТЬ]]-1))),Перечень[[#This Row],[ДАТА НАЧАЛА]]+Перечень[[#This Row],[ДЛИТЕЛЬНОСТЬ]]-1),\"\")","v":""}]
[null,null,null,null,null,{"$f":"IF(ISNUMBER(Перечень[[#This Row],[ДЛИТЕЛЬНОСТЬ]]),IF(Перечень[[#This Row],[ОСНОВАНИЕ]]=\"ОТ (отпуск)\",Перечень[[#This Row],[ДАТА НАЧАЛА]]+Перечень[[#This Row],[ДЛИТЕЛЬНОСТЬ]]-1+SUMPRODUCT((Праздники[праздники]>=Перечень[[#This Row],[ДАТА НАЧАЛА]])*(Праздники[праздники]<=(Перечень[[#This Row],[ДАТА НАЧАЛА]]+Перечень[[#This Row],[ДЛИТЕЛЬНОСТЬ]]-1))),Перечень[[#This Row],[ДАТА НАЧАЛА]]+Перечень[[#This Row],[ДЛИТЕЛЬНОСТЬ]]-1),\"\")","v":""}]
[null,null,null,null,null,{"$f":"IF(ISNUMBER(Перечень[[#This Row],[ДЛИТЕЛЬНОСТЬ]]),IF(Перечень[[#This Row],[ОСНОВАНИЕ]]=\"ОТ (отпуск)\",Перечень[[#This Row],[ДАТА НАЧАЛА]]+Перечень[[#This Row],[ДЛИТЕЛЬНОСТЬ]]-1+SUMPRODUCT((Праздники[праздники]>=Перечень[[#This Row],[ДАТА НАЧАЛА]])*(Праздники[праздники]<=(Перечень[[#This Row],[ДАТА НАЧАЛА]]+Перечень[[#This Row],[ДЛИТЕЛЬНОСТЬ]]-1))),Перечень[[#This Row],[ДАТА НАЧАЛА]]+Перечень[[#This Row],[ДЛИТЕЛЬНОСТЬ]]-1),\"\")","v":""}]
[null,null,null,null,null,{"$f":"IF(ISNUMBER(Перечень[[#This Row],[ДЛИТЕЛЬНОСТЬ]]),IF(Перечень[[#This Row],[ОСНОВАНИЕ]]=\"ОТ (отпуск)\",Перечень[[#This Row],[ДАТА НАЧАЛА]]+Перечень[[#This Row],[ДЛИТЕЛЬНОСТЬ]]-1+SUMPRODUCT((Праздники[праздники]>=Перечень[[#This Row],[ДАТА НАЧАЛА]])*(Праздники[праздники]<=(Перечень[[#This Row],[ДАТА НАЧАЛА]]+Перечень[[#This Row],[ДЛИТЕЛЬНОСТЬ]]-1))),Перечень[[#This Row],[ДАТА НАЧАЛА]]+Перечень[[#This Row],[ДЛИТЕЛЬНОСТЬ]]-1),\"\")","v":""}]
[null,null,null,null,null,{"$f":"IF(ISNUMBER(Перечень[[#This Row],[ДЛИТЕЛЬНОСТЬ]]),IF(Перечень[[#This Row],[ОСНОВАНИЕ]]=\"ОТ (отпуск)\",Перечень[[#This Row],[ДАТА НАЧАЛА]]+Перечень[[#This Row],[ДЛИТЕЛЬНОСТЬ]]-1+SUMPRODUCT((Праздники[праздники]>=Перечень[[#This Row],[ДАТА НАЧАЛА]])*(Праздники[праздники]<=(Перечень[[#This Row],[ДАТА НАЧАЛА]]+Перечень[[#This Row],[ДЛИТЕЛЬНОСТЬ]]-1))),Перечень[[#This Row],[ДАТА НАЧАЛА]]+Перечень[[#This Row],[ДЛИТЕЛЬНОСТЬ]]-1),\"\")","v":""}]
[null,null,null,null,null,{"$f":"IF(ISNUMBER(Перечень[[#This Row],[ДЛИТЕЛЬНОСТЬ]]),IF(Перечень[[#This Row],[ОСНОВАНИЕ]]=\"ОТ (отпуск)\",Перечень[[#This Row],[ДАТА НАЧАЛА]]+Перечень[[#This Row],[ДЛИТЕЛЬНОСТЬ]]-1+SUMPRODUCT((Праздники[праздники]>=Перечень[[#This Row],[ДАТА НАЧАЛА]])*(Праздники[праздники]<=(Перечень[[#This Row],[ДАТА НАЧАЛА]]+Перечень[[#This Row],[ДЛИТЕЛЬНОСТЬ]]-1))),Перечень[[#This Row],[ДАТА НАЧАЛА]]+Перечень[[#This Row],[ДЛИТЕЛЬНОСТЬ]]-1),\"\")","v":""}]
[null,null,null,null,null,{"$f":"IF(ISNUMBER(Перечень[[#This Row],[ДЛИТЕЛЬНОСТЬ]]),IF(Перечень[[#This Row],[ОСНОВАНИЕ]]=\"ОТ (отпуск)\",Перечень[[#This Row],[ДАТА НАЧАЛА]]+Перечень[[#This Row],[ДЛИТЕЛЬНОСТЬ]]-1+SUMPRODUCT((Праздники[праздники]>=Перечень[[#This Row],[ДАТА НАЧАЛА]])*(Праздники[праздники]<=(Перечень[[#This Row],[ДАТА НАЧАЛА]]+Перечень[[#This Row],[ДЛИТЕЛЬНОСТЬ]]-1))),Перечень[[#This Row],[ДАТА НАЧАЛА]]+Перечень[[#This Row],[ДЛИТЕЛЬНОСТЬ]]-1),\"\")","v":""}]
[null,null,null,null,null,{"$f":"IF(ISNUMBER(Перечень[[#This Row],[ДЛИТЕЛЬНОСТЬ]]),IF(Перечень[[#This Row],[ОСНОВАНИЕ]]=\"ОТ (отпуск)\",Перечень[[#This Row],[ДАТА НАЧАЛА]]+Перечень[[#This Row],[ДЛИТЕЛЬНОСТЬ]]-1+SUMPRODUCT((Праздники[праздники]>=Перечень[[#This Row],[ДАТА НАЧАЛА]])*(Праздники[праздники]<=(Перечень[[#This Row],[ДАТА НАЧАЛА]]+Перечень[[#This Row],[ДЛИТЕЛЬНОСТЬ]]-1))),Перечень[[#This Row],[ДАТА НАЧАЛА]]+Перечень[[#This Row],[ДЛИТЕЛЬНОСТЬ]]-1),\"\")","v":""}]
[null,null,null,null,null,{"$f":"IF(ISNUMBER(Перечень[[#This Row],[ДЛИТЕЛЬНОСТЬ]]),IF(Перечень[[#This Row],[ОСНОВАНИЕ]]=\"ОТ (отпуск)\",Перечень[[#This Row],[ДАТА НАЧАЛА]]+Перечень[[#This Row],[ДЛИТЕЛЬНОСТЬ]]-1+SUMPRODUCT((Праздники[праздники]>=Перечень[[#This Row],[ДАТА НАЧАЛА]])*(Праздники[праздники]<=(Перечень[[#This Row],[ДАТА НАЧАЛА]]+Перечень[[#This Row],[ДЛИТЕЛЬНОСТЬ]]-1))),Перечень[[#This Row],[ДАТА НАЧАЛА]]+Перечень[[#This Row],[ДЛИТЕЛЬНОСТЬ]]-1),\"\")","v":""}]
[null,null,null,null,null,{"$f":"IF(ISNUMBER(Перечень[[#This Row],[ДЛИТЕЛЬНОСТЬ]]),IF(Перечень[[#This Row],[ОСНОВАНИЕ]]=\"ОТ (отпуск)\",Перечень[[#This Row],[ДАТА НАЧАЛА]]+Перечень[[#This Row],[ДЛИТЕЛЬНОСТЬ]]-1+SUMPRODUCT((Праздники[праздники]>=Перечень[[#This Row],[ДАТА НАЧАЛА]])*(Праздники[праздники]<=(Перечень[[#This Row],[ДАТА НАЧАЛА]]+Перечень[[#This Row],[ДЛИТЕЛЬНОСТЬ]]-1))),Перечень[[#This Row],[ДАТА НАЧАЛА]]+Перечень[[#This Row],[ДЛИТЕЛЬНОСТЬ]]-1),\"\")","v":""}]
[null,null,null,null,null,{"$f":"IF(ISNUMBER(Перечень[[#This Row],[ДЛИТЕЛЬНОСТЬ]]),IF(Перечень[[#This Row],[ОСНОВАНИЕ]]=\"ОТ (отпуск)\",Перечень[[#This Row],[ДАТА НАЧАЛА]]+Перечень[[#This Row],[ДЛИТЕЛЬНОСТЬ]]-1+SUMPRODUCT((Праздники[праздники]>=Перечень[[#This Row],[ДАТА НАЧАЛА]])*(Праздники[праздники]<=(Перечень[[#This Row],[ДАТА НАЧАЛА]]+Перечень[[#This Row],[ДЛИТЕЛЬНОСТЬ]]-1))),Перечень[[#This Row],[ДАТА НАЧАЛА]]+Перечень[[#This Row],[ДЛИТЕЛЬНОСТЬ]]-1),\"\")","v":""}]
[null,null,null,null,null,{"$f":"IF(ISNUMBER(Перечень[[#This Row],[ДЛИТЕЛЬНОСТЬ]]),IF(Перечень[[#This Row],[ОСНОВАНИЕ]]=\"ОТ (отпуск)\",Перечень[[#This Row],[ДАТА НАЧАЛА]]+Перечень[[#This Row],[ДЛИТЕЛЬНОСТЬ]]-1+SUMPRODUCT((Праздники[праздники]>=Перечень[[#This Row],[ДАТА НАЧАЛА]])*(Праздники[праздники]<=(Перечень[[#This Row],[ДАТА НАЧАЛА]]+Перечень[[#This Row],[ДЛИТЕЛЬНОСТЬ]]-1))),Перечень[[#This Row],[ДАТА НАЧАЛА]]+Перечень[[#This Row],[ДЛИТЕЛЬНОСТЬ]]-1),\"\")","v":""}]
[null,null,null,null,null,{"$f":"IF(ISNUMBER(Перечень[[#This Row],[ДЛИТЕЛЬНОСТЬ]]),IF(Перечень[[#This Row],[ОСНОВАНИЕ]]=\"ОТ (отпуск)\",Перечень[[#This Row],[ДАТА НАЧАЛА]]+Перечень[[#This Row],[ДЛИТЕЛЬНОСТЬ]]-1+SUMPRODUCT((Праздники[праздники]>=Перечень[[#This Row],[ДАТА НАЧАЛА]])*(Праздники[праздники]<=(Перечень[[#This Row],[ДАТА НАЧАЛА]]+Перечень[[#This Row],[ДЛИТЕЛЬНОСТЬ]]-1))),Перечень[[#This Row],[ДАТА НАЧАЛА]]+Перечень[[#This Row],[ДЛИТЕЛЬНОСТЬ]]-1),\"\")","v":""}]
[null,null,null,null,null,{"$f":"IF(ISNUMBER(Перечень[[#This Row],[ДЛИТЕЛЬНОСТЬ]]),IF(Перечень[[#This Row],[ОСНОВАНИЕ]]=\"ОТ (отпуск)\",Перечень[[#This Row],[ДАТА НАЧАЛА]]+Перечень[[#This Row],[ДЛИТЕЛЬНОСТЬ]]-1+SUMPRODUCT((Праздники[праздники]>=Перечень[[#This Row],[ДАТА НАЧАЛА]])*(Праздники[праздники]<=(Перечень[[#This Row],[ДАТА НАЧАЛА]]+Перечень[[#This Row],[ДЛИТЕЛЬНОСТЬ]]-1))),Перечень[[#This Row],[ДАТА НАЧАЛА]]+Перечень[[#This Row],[ДЛИТЕЛЬНОСТЬ]]-1),\"\")","v":""}]
[null,null,null,null,null,{"$f":"IF(ISNUMBER(Перечень[[#This Row],[ДЛИТЕЛЬНОСТЬ]]),IF(Перечень[[#This Row],[ОСНОВАНИЕ]]=\"ОТ (отпуск)\",Перечень[[#This Row],[ДАТА НАЧАЛА]]+Перечень[[#This Row],[ДЛИТЕЛЬНОСТЬ]]-1+SUMPRODUCT((Праздники[праздники]>=Перечень[[#This Row],[ДАТА НАЧАЛА]])*(Праздники[праздники]<=(Перечень[[#This Row],[ДАТА НАЧАЛА]]+Перечень[[#This Row],[ДЛИТЕЛЬНОСТЬ]]-1))),Перечень[[#This Row],[ДАТА НАЧАЛА]]+Перечень[[#This Row],[ДЛИТЕЛЬНОСТЬ]]-1),\"\")","v":""}]
[null,null,null,null,null,{"$f":"IF(ISNUMBER(Перечень[[#This Row],[ДЛИТЕЛЬНОСТЬ]]),IF(Перечень[[#This Row],[ОСНОВАНИЕ]]=\"ОТ (отпуск)\",Перечень[[#This Row],[ДАТА НАЧАЛА]]+Перечень[[#This Row],[ДЛИТЕЛЬНОСТЬ]]-1+SUMPRODUCT((Праздники[праздники]>=Перечень[[#This Row],[ДАТА НАЧАЛА]])*(Праздники[праздники]<=(Перечень[[#This Row],[ДАТА НАЧАЛА]]+Перечень[[#This Row],[ДЛИТЕЛЬНОСТЬ]]-1))),Перечень[[#This Row],[ДАТА НАЧАЛА]]+Перечень[[#This Row],[ДЛИТЕЛЬНОСТЬ]]-1),\"\")","v":""}]
[null,null,null,null,null,{"$f":"IF(ISNUMBER(Перечень[[#This Row],[ДЛИТЕЛЬНОСТЬ]]),IF(Перечень[[#This Row],[ОСНОВАНИЕ]]=\"ОТ (отпуск)\",Перечень[[#This Row],[ДАТА НАЧАЛА]]+Перечень[[#This Row],[ДЛИТЕЛЬНОСТЬ]]-1+SUMPRODUCT((Праздники[праздники]>=Перечень[[#This Row],[ДАТА НАЧАЛА]])*(Праздники[праздники]<=(Перечень[[#This Row],[ДАТА НАЧАЛА]]+Перечень[[#This Row],[ДЛИТЕЛЬНОСТЬ]]-1))),Перечень[[#This Row],[ДАТА НАЧАЛА]]+Перечень[[#This Row],[ДЛИТЕЛЬНОСТЬ]]-1),\"\")","v":""}]
[null,null,null,null,null,{"$f":"IF(ISNUMBER(Перечень[[#This Row],[ДЛИТЕЛЬНОСТЬ]]),IF(Перечень[[#This Row],[ОСНОВАНИЕ]]=\"ОТ (отпуск)\",Перечень[[#This Row],[ДАТА НАЧАЛА]]+Перечень[[#This Row],[ДЛИТЕЛЬНОСТЬ]]-1+SUMPRODUCT((Праздники[праздники]>=Перечень[[#This Row],[ДАТА НАЧАЛА]])*(Праздники[праздники]<=(Перечень[[#This Row],[ДАТА НАЧАЛА]]+Перечень[[#This Row],[ДЛИТЕЛЬНОСТЬ]]-1))),Перечень[[#This Row],[ДАТА НАЧАЛА]]+Перечень[[#This Row],[ДЛИТЕЛЬНОСТЬ]]-1),\"\")","v":""}]
[null,null,null,null,null,{"$f":"IF(ISNUMBER(Перечень[[#This Row],[ДЛИТЕЛЬНОСТЬ]]),IF(Перечень[[#This Row],[ОСНОВАНИЕ]]=\"ОТ (отпуск)\",Перечень[[#This Row],[ДАТА НАЧАЛА]]+Перечень[[#This Row],[ДЛИТЕЛЬНОСТЬ]]-1+SUMPRODUCT((Праздники[праздники]>=Перечень[[#This Row],[ДАТА НАЧАЛА]])*(Праздники[праздники]<=(Перечень[[#This Row],[ДАТА НАЧАЛА]]+Перечень[[#This Row],[ДЛИТЕЛЬНОСТЬ]]-1))),Перечень[[#This Row],[ДАТА НАЧАЛА]]+Перечень[[#This Row],[ДЛИТЕЛЬНОСТЬ]]-1),\"\")","v":""}]
[null,null,null,null,null,{"$f":"IF(ISNUMBER(Перечень[[#This Row],[ДЛИТЕЛЬНОСТЬ]]),IF(Перечень[[#This Row],[ОСНОВАНИЕ]]=\"ОТ (отпуск)\",Перечень[[#This Row],[ДАТА НАЧАЛА]]+Перечень[[#This Row],[ДЛИТЕЛЬНОСТЬ]]-1+SUMPRODUCT((Праздники[праздники]>=Перечень[[#This Row],[ДАТА НАЧАЛА]])*(Праздники[праздники]<=(Перечень[[#This Row],[ДАТА НАЧАЛА]]+Перечень[[#This Row],[ДЛИТЕЛЬНОСТЬ]]-1))),Перечень[[#This Row],[ДАТА НАЧАЛА]]+Перечень[[#This Row],[ДЛИТЕЛЬНОСТЬ]]-1),\"\")","v":""}]
[null,null,null,null,null,{"$f":"IF(ISNUMBER(Перечень[[#This Row],[ДЛИТЕЛЬНОСТЬ]]),IF(Перечень[[#This Row],[ОСНОВАНИЕ]]=\"ОТ (отпуск)\",Перечень[[#This Row],[ДАТА НАЧАЛА]]+Перечень[[#This Row],[ДЛИТЕЛЬНОСТЬ]]-1+SUMPRODUCT((Праздники[праздники]>=Перечень[[#This Row],[ДАТА НАЧАЛА]])*(Праздники[праздники]<=(Перечень[[#This Row],[ДАТА НАЧАЛА]]+Перечень[[#This Row],[ДЛИТЕЛЬНОСТЬ]]-1))),Перечень[[#This Row],[ДАТА НАЧАЛА]]+Перечень[[#This Row],[ДЛИТЕЛЬНОСТЬ]]-1),\"\")","v":""}]
[null,null,null,null,null,{"$f":"IF(ISNUMBER(Перечень[[#This Row],[ДЛИТЕЛЬНОСТЬ]]),IF(Перечень[[#This Row],[ОСНОВАНИЕ]]=\"ОТ (отпуск)\",Перечень[[#This Row],[ДАТА НАЧАЛА]]+Перечень[[#This Row],[ДЛИТЕЛЬНОСТЬ]]-1+SUMPRODUCT((Праздники[праздники]>=Перечень[[#This Row],[ДАТА НАЧАЛА]])*(Праздники[праздники]<=(Перечень[[#This Row],[ДАТА НАЧАЛА]]+Перечень[[#This Row],[ДЛИТЕЛЬНОСТЬ]]-1))),Перечень[[#This Row],[ДАТА НАЧАЛА]]+Перечень[[#This Row],[ДЛИТЕЛЬНОСТЬ]]-1),\"\")","v":""}]
[null,null,null,null,null,{"$f":"IF(ISNUMBER(Перечень[[#This Row],[ДЛИТЕЛЬНОСТЬ]]),IF(Перечень[[#This Row],[ОСНОВАНИЕ]]=\"ОТ (отпуск)\",Перечень[[#This Row],[ДАТА НАЧАЛА]]+Перечень[[#This Row],[ДЛИТЕЛЬНОСТЬ]]-1+SUMPRODUCT((Праздники[праздники]>=Перечень[[#This Row],[ДАТА НАЧАЛА]])*(Праздники[праздники]<=(Перечень[[#This Row],[ДАТА НАЧАЛА]]+Перечень[[#This Row],[ДЛИТЕЛЬНОСТЬ]]-1))),Перечень[[#This Row],[ДАТА НАЧАЛА]]+Перечень[[#This Row],[ДЛИТЕЛЬНОСТЬ]]-1),\"\")","v":""}]
[null,null,null,null,null,{"$f":"IF(ISNUMBER(Перечень[[#This Row],[ДЛИТЕЛЬНОСТЬ]]),IF(Перечень[[#This Row],[ОСНОВАНИЕ]]=\"ОТ (отпуск)\",Перечень[[#This Row],[ДАТА НАЧАЛА]]+Перечень[[#This Row],[ДЛИТЕЛЬНОСТЬ]]-1+SUMPRODUCT((Праздники[праздники]>=Перечень[[#This Row],[ДАТА НАЧАЛА]])*(Праздники[праздники]<=(Перечень[[#This Row],[ДАТА НАЧАЛА]]+Перечень[[#This Row],[ДЛИТЕЛЬНОСТЬ]]-1))),Перечень[[#This Row],[ДАТА НАЧАЛА]]+Перечень[[#This Row],[ДЛИТЕЛЬНОСТЬ]]-1),\"\")","v":""}]
[null,null,null,null,null,{"$f":"IF(ISNUMBER(Перечень[[#This Row],[ДЛИТЕЛЬНОСТЬ]]),IF(Перечень[[#This Row],[ОСНОВАНИЕ]]=\"ОТ (отпуск)\",Перечень[[#This Row],[ДАТА НАЧАЛА]]+Перечень[[#This Row],[ДЛИТЕЛЬНОСТЬ]]-1+SUMPRODUCT((Праздники[праздники]>=Перечень[[#This Row],[ДАТА НАЧАЛА]])*(Праздники[праздники]<=(Перечень[[#This Row],[ДАТА НАЧАЛА]]+Перечень[[#This Row],[ДЛИТЕЛЬНОСТЬ]]-1))),Перечень[[#This Row],[ДАТА НАЧАЛА]]+Перечень[[#This Row],[ДЛИТЕЛЬНОСТЬ]]-1),\"\")","v":""}]
[null,null,null,null,null,{"$f":"IF(ISNUMBER(Перечень[[#This Row],[ДЛИТЕЛЬНОСТЬ]]),IF(Перечень[[#This Row],[ОСНОВАНИЕ]]=\"ОТ (отпуск)\",Перечень[[#This Row],[ДАТА НАЧАЛА]]+Перечень[[#This Row],[ДЛИТЕЛЬНОСТЬ]]-1+SUMPRODUCT((Праздники[праздники]>=Перечень[[#This Row],[ДАТА НАЧАЛА]])*(Праздники[праздники]<=(Перечень[[#This Row],[ДАТА НАЧАЛА]]+Перечень[[#This Row],[ДЛИТЕЛЬНОСТЬ]]-1))),Перечень[[#This Row],[ДАТА НАЧАЛА]]+Перечень[[#This Row],[ДЛИТЕЛЬНОСТЬ]]-1),\"\")","v":""}]
[null,null,null,null,null,{"$f":"IF(ISNUMBER(Перечень[[#This Row],[ДЛИТЕЛЬНОСТЬ]]),IF(Перечень[[#This Row],[ОСНОВАНИЕ]]=\"ОТ (отпуск)\",Перечень[[#This Row],[ДАТА НАЧАЛА]]+Перечень[[#This Row],[ДЛИТЕЛЬНОСТЬ]]-1+SUMPRODUCT((Праздники[праздники]>=Перечень[[#This Row],[ДАТА НАЧАЛА]])*(Праздники[праздники]<=(Перечень[[#This Row],[ДАТА НАЧАЛА]]+Перечень[[#This Row],[ДЛИТЕЛЬНОСТЬ]]-1))),Перечень[[#This Row],[ДАТА НАЧАЛА]]+Перечень[[#This Row],[ДЛИТЕЛЬНОСТЬ]]-1),\"\")","v":""}]
[null,null,null,null,null,{"$f":"IF(ISNUMBER(Перечень[[#This Row],[ДЛИТЕЛЬНОСТЬ]]),IF(Перечень[[#This Row],[ОСНОВАНИЕ]]=\"ОТ (отпуск)\",Перечень[[#This Row],[ДАТА НАЧАЛА]]+Перечень[[#This Row],[ДЛИТЕЛЬНОСТЬ]]-1+SUMPRODUCT((Праздники[праздники]>=Перечень[[#This Row],[ДАТА НАЧАЛА]])*(Праздники[праздники]<=(Перечень[[#This Row],[ДАТА НАЧАЛА]]+Перечень[[#This Row],[ДЛИТЕЛЬНОСТЬ]]-1))),Перечень[[#This Row],[ДАТА НАЧАЛА]]+Перечень[[#This Row],[ДЛИТЕЛЬНОСТЬ]]-1),\"\")","v":""}]
[null,null,null,null,null,{"$f":"IF(ISNUMBER(Перечень[[#This Row],[ДЛИТЕЛЬНОСТЬ]]),IF(Перечень[[#This Row],[ОСНОВАНИЕ]]=\"ОТ (отпуск)\",Перечень[[#This Row],[ДАТА НАЧАЛА]]+Перечень[[#This Row],[ДЛИТЕЛЬНОСТЬ]]-1+SUMPRODUCT((Праздники[праздники]>=Перечень[[#This Row],[ДАТА НАЧАЛА]])*(Праздники[праздники]<=(Перечень[[#This Row],[ДАТА НАЧАЛА]]+Перечень[[#This Row],[ДЛИТЕЛЬНОСТЬ]]-1))),Перечень[[#This Row],[ДАТА НАЧАЛА]]+Перечень[[#This Row],[ДЛИТЕЛЬНОСТЬ]]-1),\"\")","v":""}]
[null,null,null,null,null,{"$f":"IF(ISNUMBER(Перечень[[#This Row],[ДЛИТЕЛЬНОСТЬ]]),IF(Перечень[[#This Row],[ОСНОВАНИЕ]]=\"ОТ (отпуск)\",Перечень[[#This Row],[ДАТА НАЧАЛА]]+Перечень[[#This Row],[ДЛИТЕЛЬНОСТЬ]]-1+SUMPRODUCT((Праздники[праздники]>=Перечень[[#This Row],[ДАТА НАЧАЛА]])*(Праздники[праздники]<=(Перечень[[#This Row],[ДАТА НАЧАЛА]]+Перечень[[#This Row],[ДЛИТЕЛЬНОСТЬ]]-1))),Перечень[[#This Row],[ДАТА НАЧАЛА]]+Перечень[[#This Row],[ДЛИТЕЛЬНОСТЬ]]-1),\"\")","v":""}]
[null,null,null,null,null,{"$f":"IF(ISNUMBER(Перечень[[#This Row],[ДЛИТЕЛЬНОСТЬ]]),IF(Перечень[[#This Row],[ОСНОВАНИЕ]]=\"ОТ (отпуск)\",Перечень[[#This Row],[ДАТА НАЧАЛА]]+Перечень[[#This Row],[ДЛИТЕЛЬНОСТЬ]]-1+SUMPRODUCT((Праздники[праздники]>=Перечень[[#This Row],[ДАТА НАЧАЛА]])*(Праздники[праздники]<=(Перечень[[#This Row],[ДАТА НАЧАЛА]]+Перечень[[#This Row],[ДЛИТЕЛЬНОСТЬ]]-1))),Перечень[[#This Row],[ДАТА НАЧАЛА]]+Перечень[[#This Row],[ДЛИТЕЛЬНОСТЬ]]-1),\"\")","v":""}]
[null,null,null,null,null,{"$f":"IF(ISNUMBER(Перечень[[#This Row],[ДЛИТЕЛЬНОСТЬ]]),IF(Перечень[[#This Row],[ОСНОВАНИЕ]]=\"ОТ (отпуск)\",Перечень[[#This Row],[ДАТА НАЧАЛА]]+Перечень[[#This Row],[ДЛИТЕЛЬНОСТЬ]]-1+SUMPRODUCT((Праздники[праздники]>=Перечень[[#This Row],[ДАТА НАЧАЛА]])*(Праздники[праздники]<=(Перечень[[#This Row],[ДАТА НАЧАЛА]]+Перечень[[#This Row],[ДЛИТЕЛЬНОСТЬ]]-1))),Перечень[[#This Row],[ДАТА НАЧАЛА]]+Перечень[[#This Row],[ДЛИТЕЛЬНОСТЬ]]-1),\"\")","v":""}]
[null,null,null,null,null,{"$f":"IF(ISNUMBER(Перечень[[#This Row],[ДЛИТЕЛЬНОСТЬ]]),IF(Перечень[[#This Row],[ОСНОВАНИЕ]]=\"ОТ (отпуск)\",Перечень[[#This Row],[ДАТА НАЧАЛА]]+Перечень[[#This Row],[ДЛИТЕЛЬНОСТЬ]]-1+SUMPRODUCT((Праздники[праздники]>=Перечень[[#This Row],[ДАТА НАЧАЛА]])*(Праздники[праздники]<=(Перечень[[#This Row],[ДАТА НАЧАЛА]]+Перечень[[#This Row],[ДЛИТЕЛЬНОСТЬ]]-1))),Перечень[[#This Row],[ДАТА НАЧАЛА]]+Перечень[[#This Row],[ДЛИТЕЛЬНОСТЬ]]-1),\"\")","v":""}]
[null,null,null,null,null,{"$f":"IF(ISNUMBER(Перечень[[#This Row],[ДЛИТЕЛЬНОСТЬ]]),IF(Перечень[[#This Row],[ОСНОВАНИЕ]]=\"ОТ (отпуск)\",Перечень[[#This Row],[ДАТА НАЧАЛА]]+Перечень[[#This Row],[ДЛИТЕЛЬНОСТЬ]]-1+SUMPRODUCT((Праздники[праздники]>=Перечень[[#This Row],[ДАТА НАЧАЛА]])*(Праздники[праздники]<=(Перечень[[#This Row],[ДАТА НАЧАЛА]]+Перечень[[#This Row],[ДЛИТЕЛЬНОСТЬ]]-1))),Перечень[[#This Row],[ДАТА НАЧАЛА]]+Перечень[[#This Row],[ДЛИТЕЛЬНОСТЬ]]-1),\"\")","v":""}]
[null,null,null,null,null,{"$f":"IF(ISNUMBER(Перечень[[#This Row],[ДЛИТЕЛЬНОСТЬ]]),IF(Перечень[[#This Row],[ОСНОВАНИЕ]]=\"ОТ (отпуск)\",Перечень[[#This Row],[ДАТА НАЧАЛА]]+Перечень[[#This Row],[ДЛИТЕЛЬНОСТЬ]]-1+SUMPRODUCT((Праздники[праздники]>=Перечень[[#This Row],[ДАТА НАЧАЛА]])*(Праздники[праздники]<=(Перечень[[#This Row],[ДАТА НАЧАЛА]]+Перечень[[#This Row],[ДЛИТЕЛЬНОСТЬ]]-1))),Перечень[[#This Row],[ДАТА НАЧАЛА]]+Перечень[[#This Row],[ДЛИТЕЛЬНОСТЬ]]-1),\"\")","v":""}]
[null,null,null,null,null,{"$f":"IF(ISNUMBER(Перечень[[#This Row],[ДЛИТЕЛЬНОСТЬ]]),IF(Перечень[[#This Row],[ОСНОВАНИЕ]]=\"ОТ (отпуск)\",Перечень[[#This Row],[ДАТА НАЧАЛА]]+Перечень[[#This Row],[ДЛИТЕЛЬНОСТЬ]]-1+SUMPRODUCT((Праздники[праздники]>=Перечень[[#This Row],[ДАТА НАЧАЛА]])*(Праздники[праздники]<=(Перечень[[#This Row],[ДАТА НАЧАЛА]]+Перечень[[#This Row],[ДЛИТЕЛЬНОСТЬ]]-1))),Перечень[[#This Row],[ДАТА НАЧАЛА]]+Перечень[[#This Row],[ДЛИТЕЛЬНОСТЬ]]-1),\"\")","v":""}]
[null,null,null,null,null,{"$f":"IF(ISNUMBER(Перечень[[#This Row],[ДЛИТЕЛЬНОСТЬ]]),IF(Перечень[[#This Row],[ОСНОВАНИЕ]]=\"ОТ (отпуск)\",Перечень[[#This Row],[ДАТА НАЧАЛА]]+Перечень[[#This Row],[ДЛИТЕЛЬНОСТЬ]]-1+SUMPRODUCT((Праздники[праздники]>=Перечень[[#This Row],[ДАТА НАЧАЛА]])*(Праздники[праздники]<=(Перечень[[#This Row],[ДАТА НАЧАЛА]]+Перечень[[#This Row],[ДЛИТЕЛЬНОСТЬ]]-1))),Перечень[[#This Row],[ДАТА НАЧАЛА]]+Перечень[[#This Row],[ДЛИТЕЛЬНОСТЬ]]-1),\"\")","v":""}]
[null,null,null,null,null,{"$f":"IF(ISNUMBER(Перечень[[#This Row],[ДЛИТЕЛЬНОСТЬ]]),IF(Перечень[[#This Row],[ОСНОВАНИЕ]]=\"ОТ (отпуск)\",Перечень[[#This Row],[ДАТА НАЧАЛА]]+Перечень[[#This Row],[ДЛИТЕЛЬНОСТЬ]]-1+SUMPRODUCT((Праздники[праздники]>=Перечень[[#This Row],[ДАТА НАЧАЛА]])*(Праздники[праздники]<=(Перечень[[#This Row],[ДАТА НАЧАЛА]]+Перечень[[#This Row],[ДЛИТЕЛЬНОСТЬ]]-1))),Перечень[[#This Row],[ДАТА НАЧАЛА]]+Перечень[[#This Row],[ДЛИТЕЛЬНОСТЬ]]-1),\"\")","v":""}]
[null,null,null,null,null,{"$f":"IF(ISNUMBER(Перечень[[#This Row],[ДЛИТЕЛЬНОСТЬ]]),IF(Перечень[[#This Row],[ОСНОВАНИЕ]]=\"ОТ (отпуск)\",Перечень[[#This Row],[ДАТА НАЧАЛА]]+Перечень[[#This Row],[ДЛИТЕЛЬНОСТЬ]]-1+SUMPRODUCT((Праздники[праздники]>=Перечень[[#This Row],[ДАТА НАЧАЛА]])*(Праздники[праздники]<=(Перечень[[#This Row],[ДАТА НАЧАЛА]]+Перечень[[#This Row],[ДЛИТЕЛЬНОСТЬ]]-1))),Перечень[[#This Row],[ДАТА НАЧАЛА]]+Перечень[[#This Row],[ДЛИТЕЛЬНОСТЬ]]-1),\"\")","v":""}]
[null,null,null,null,null,{"$f":"IF(ISNUMBER(Перечень[[#This Row],[ДЛИТЕЛЬНОСТЬ]]),IF(Перечень[[#This Row],[ОСНОВАНИЕ]]=\"ОТ (отпуск)\",Перечень[[#This Row],[ДАТА НАЧАЛА]]+Перечень[[#This Row],[ДЛИТЕЛЬНОСТЬ]]-1+SUMPRODUCT((Праздники[праздники]>=Перечень[[#This Row],[ДАТА НАЧАЛА]])*(Праздники[праздники]<=(Перечень[[#This Row],[ДАТА НАЧАЛА]]+Перечень[[#This Row],[ДЛИТЕЛЬНОСТЬ]]-1))),Перечень[[#This Row],[ДАТА НАЧАЛА]]+Перечень[[#This Row],[ДЛИТЕЛЬНОСТЬ]]-1),\"\")","v":""}]
[null,null,null,null,null,{"$f":"IF(ISNUMBER(Перечень[[#This Row],[ДЛИТЕЛЬНОСТЬ]]),IF(Перечень[[#This Row],[ОСНОВАНИЕ]]=\"ОТ (отпуск)\",Перечень[[#This Row],[ДАТА НАЧАЛА]]+Перечень[[#This Row],[ДЛИТЕЛЬНОСТЬ]]-1+SUMPRODUCT((Праздники[праздники]>=Перечень[[#This Row],[ДАТА НАЧАЛА]])*(Праздники[праздники]<=(Перечень[[#This Row],[ДАТА НАЧАЛА]]+Перечень[[#This Row],[ДЛИТЕЛЬНОСТЬ]]-1))),Перечень[[#This Row],[ДАТА НАЧАЛА]]+Перечень[[#This Row],[ДЛИТЕЛЬНОСТЬ]]-1),\"\")","v":""}]
[null,null,null,null,null,{"$f":"IF(ISNUMBER(Перечень[[#This Row],[ДЛИТЕЛЬНОСТЬ]]),IF(Перечень[[#This Row],[ОСНОВАНИЕ]]=\"ОТ (отпуск)\",Перечень[[#This Row],[ДАТА НАЧАЛА]]+Перечень[[#This Row],[ДЛИТЕЛЬНОСТЬ]]-1+SUMPRODUCT((Праздники[праздники]>=Перечень[[#This Row],[ДАТА НАЧАЛА]])*(Праздники[праздники]<=(Перечень[[#This Row],[ДАТА НАЧАЛА]]+Перечень[[#This Row],[ДЛИТЕЛЬНОСТЬ]]-1))),Перечень[[#This Row],[ДАТА НАЧАЛА]]+Перечень[[#This Row],[ДЛИТЕЛЬНОСТЬ]]-1),\"\")","v":""}]
[null,null,null,null,null,{"$f":"IF(ISNUMBER(Перечень[[#This Row],[ДЛИТЕЛЬНОСТЬ]]),IF(Перечень[[#This Row],[ОСНОВАНИЕ]]=\"ОТ (отпуск)\",Перечень[[#This Row],[ДАТА НАЧАЛА]]+Перечень[[#This Row],[ДЛИТЕЛЬНОСТЬ]]-1+SUMPRODUCT((Праздники[праздники]>=Перечень[[#This Row],[ДАТА НАЧАЛА]])*(Праздники[праздники]<=(Перечень[[#This Row],[ДАТА НАЧАЛА]]+Перечень[[#This Row],[ДЛИТЕЛЬНОСТЬ]]-1))),Перечень[[#This Row],[ДАТА НАЧАЛА]]+Перечень[[#This Row],[ДЛИТЕЛЬНОСТЬ]]-1),\"\")","v":""}]
[null,null,null,null,null,{"$f":"IF(ISNUMBER(Перечень[[#This Row],[ДЛИТЕЛЬНОСТЬ]]),IF(Перечень[[#This Row],[ОСНОВАНИЕ]]=\"ОТ (отпуск)\",Перечень[[#This Row],[ДАТА НАЧАЛА]]+Перечень[[#This Row],[ДЛИТЕЛЬНОСТЬ]]-1+SUMPRODUCT((Праздники[праздники]>=Перечень[[#This Row],[ДАТА НАЧАЛА]])*(Праздники[праздники]<=(Перечень[[#This Row],[ДАТА НАЧАЛА]]+Перечень[[#This Row],[ДЛИТЕЛЬНОСТЬ]]-1))),Перечень[[#This Row],[ДАТА НАЧАЛА]]+Перечень[[#This Row],[ДЛИТЕЛЬНОСТЬ]]-1),\"\")","v":""}]
[null,null,null,null,null,{"$f":"IF(ISNUMBER(Перечень[[#This Row],[ДЛИТЕЛЬНОСТЬ]]),IF(Перечень[[#This Row],[ОСНОВАНИЕ]]=\"ОТ (отпуск)\",Перечень[[#This Row],[ДАТА НАЧАЛА]]+Перечень[[#This Row],[ДЛИТЕЛЬНОСТЬ]]-1+SUMPRODUCT((Праздники[праздники]>=Перечень[[#This Row],[ДАТА НАЧАЛА]])*(Праздники[праздники]<=(Перечень[[#This Row],[ДАТА НАЧАЛА]]+Перечень[[#This Row],[ДЛИТЕЛЬНОСТЬ]]-1))),Перечень[[#This Row],[ДАТА НАЧАЛА]]+Перечень[[#This Row],[ДЛИТЕЛЬНОСТЬ]]-1),\"\")","v":""}]
[null,null,null,null,null,{"$f":"IF(ISNUMBER(Перечень[[#This Row],[ДЛИТЕЛЬНОСТЬ]]),IF(Перечень[[#This Row],[ОСНОВАНИЕ]]=\"ОТ (отпуск)\",Перечень[[#This Row],[ДАТА НАЧАЛА]]+Перечень[[#This Row],[ДЛИТЕЛЬНОСТЬ]]-1+SUMPRODUCT((Праздники[праздники]>=Перечень[[#This Row],[ДАТА НАЧАЛА]])*(Праздники[праздники]<=(Перечень[[#This Row],[ДАТА НАЧАЛА]]+Перечень[[#This Row],[ДЛИТЕЛЬНОСТЬ]]-1))),Перечень[[#This Row],[ДАТА НАЧАЛА]]+Перечень[[#This Row],[ДЛИТЕЛЬНОСТЬ]]-1),\"\")","v":""}]
[null,null,null,null,null,{"$f":"IF(ISNUMBER(Перечень[[#This Row],[ДЛИТЕЛЬНОСТЬ]]),IF(Перечень[[#This Row],[ОСНОВАНИЕ]]=\"ОТ (отпуск)\",Перечень[[#This Row],[ДАТА НАЧАЛА]]+Перечень[[#This Row],[ДЛИТЕЛЬНОСТЬ]]-1+SUMPRODUCT((Праздники[праздники]>=Перечень[[#This Row],[ДАТА НАЧАЛА]])*(Праздники[праздники]<=(Перечень[[#This Row],[ДАТА НАЧАЛА]]+Перечень[[#This Row],[ДЛИТЕЛЬНОСТЬ]]-1))),Перечень[[#This Row],[ДАТА НАЧАЛА]]+Перечень[[#This Row],[ДЛИТЕЛЬНОСТЬ]]-1),\"\")","v":""}]
[null,null,null,null,null,{"$f":"IF(ISNUMBER(Перечень[[#This Row],[ДЛИТЕЛЬНОСТЬ]]),IF(Перечень[[#This Row],[ОСНОВАНИЕ]]=\"ОТ (отпуск)\",Перечень[[#This Row],[ДАТА НАЧАЛА]]+Перечень[[#This Row],[ДЛИТЕЛЬНОСТЬ]]-1+SUMPRODUCT((Праздники[праздники]>=Перечень[[#This Row],[ДАТА НАЧАЛА]])*(Праздники[праздники]<=(Перечень[[#This Row],[ДАТА НАЧАЛА]]+Перечень[[#This Row],[ДЛИТЕЛЬНОСТЬ]]-1))),Перечень[[#This Row],[ДАТА НАЧАЛА]]+Перечень[[#This Row],[ДЛИТЕЛЬНОСТЬ]]-1),\"\")","v":""}]
[null,null,null,null,null,{"$f":"IF(ISNUMBER(Перечень[[#This Row],[ДЛИТЕЛЬНОСТЬ]]),IF(Перечень[[#This Row],[ОСНОВАНИЕ]]=\"ОТ (отпуск)\",Перечень[[#This Row],[ДАТА НАЧАЛА]]+Перечень[[#This Row],[ДЛИТЕЛЬНОСТЬ]]-1+SUMPRODUCT((Праздники[праздники]>=Перечень[[#This Row],[ДАТА НАЧАЛА]])*(Праздники[праздники]<=(Перечень[[#This Row],[ДАТА НАЧАЛА]]+Перечень[[#This Row],[ДЛИТЕЛЬНОСТЬ]]-1))),Перечень[[#This Row],[ДАТА НАЧАЛА]]+Перечень[[#This Row],[ДЛИТЕЛЬНОСТЬ]]-1),\"\")","v":""}]
[null,null,null,null,null,{"$f":"IF(ISNUMBER(Перечень[[#This Row],[ДЛИТЕЛЬНОСТЬ]]),IF(Перечень[[#This Row],[ОСНОВАНИЕ]]=\"ОТ (отпуск)\",Перечень[[#This Row],[ДАТА НАЧАЛА]]+Перечень[[#This Row],[ДЛИТЕЛЬНОСТЬ]]-1+SUMPRODUCT((Праздники[праздники]>=Перечень[[#This Row],[ДАТА НАЧАЛА]])*(Праздники[праздники]<=(Перечень[[#This Row],[ДАТА НАЧАЛА]]+Перечень[[#This Row],[ДЛИТЕЛЬНОСТЬ]]-1))),Перечень[[#This Row],[ДАТА НАЧАЛА]]+Перечень[[#This Row],[ДЛИТЕЛЬНОСТЬ]]-1),\"\")","v":""}]
[null,null,null,null,null,{"$f":"IF(ISNUMBER(Перечень[[#This Row],[ДЛИТЕЛЬНОСТЬ]]),IF(Перечень[[#This Row],[ОСНОВАНИЕ]]=\"ОТ (отпуск)\",Перечень[[#This Row],[ДАТА НАЧАЛА]]+Перечень[[#This Row],[ДЛИТЕЛЬНОСТЬ]]-1+SUMPRODUCT((Праздники[праздники]>=Перечень[[#This Row],[ДАТА НАЧАЛА]])*(Праздники[праздники]<=(Перечень[[#This Row],[ДАТА НАЧАЛА]]+Перечень[[#This Row],[ДЛИТЕЛЬНОСТЬ]]-1))),Перечень[[#This Row],[ДАТА НАЧАЛА]]+Перечень[[#This Row],[ДЛИТЕЛЬНОСТЬ]]-1),\"\")","v":""}]
[null,null,null,null,null,{"$f":"IF(ISNUMBER(Перечень[[#This Row],[ДЛИТЕЛЬНОСТЬ]]),IF(Перечень[[#This Row],[ОСНОВАНИЕ]]=\"ОТ (отпуск)\",Перечень[[#This Row],[ДАТА НАЧАЛА]]+Перечень[[#This Row],[ДЛИТЕЛЬНОСТЬ]]-1+SUMPRODUCT((Праздники[праздники]>=Перечень[[#This Row],[ДАТА НАЧАЛА]])*(Праздники[праздники]<=(Перечень[[#This Row],[ДАТА НАЧАЛА]]+Перечень[[#This Row],[ДЛИТЕЛЬНОСТЬ]]-1))),Перечень[[#This Row],[ДАТА НАЧАЛА]]+Перечень[[#This Row],[ДЛИТЕЛЬНОСТЬ]]-1),\"\")","v":""}]
[null,null,null,null,null,{"$f":"IF(ISNUMBER(Перечень[[#This Row],[ДЛИТЕЛЬНОСТЬ]]),IF(Перечень[[#This Row],[ОСНОВАНИЕ]]=\"ОТ (отпуск)\",Перечень[[#This Row],[ДАТА НАЧАЛА]]+Перечень[[#This Row],[ДЛИТЕЛЬНОСТЬ]]-1+SUMPRODUCT((Праздники[праздники]>=Перечень[[#This Row],[ДАТА НАЧАЛА]])*(Праздники[праздники]<=(Перечень[[#This Row],[ДАТА НАЧАЛА]]+Перечень[[#This Row],[ДЛИТЕЛЬНОСТЬ]]-1))),Перечень[[#This Row],[ДАТА НАЧАЛА]]+Перечень[[#This Row],[ДЛИТЕЛЬНОСТЬ]]-1),\"\")","v":""}]
[null,null,null,null,null,{"$f":"IF(ISNUMBER(Перечень[[#This Row],[ДЛИТЕЛЬНОСТЬ]]),IF(Перечень[[#This Row],[ОСНОВАНИЕ]]=\"ОТ (отпуск)\",Перечень[[#This Row],[ДАТА НАЧАЛА]]+Перечень[[#This Row],[ДЛИТЕЛЬНОСТЬ]]-1+SUMPRODUCT((Праздники[праздники]>=Перечень[[#This Row],[ДАТА НАЧАЛА]])*(Праздники[праздники]<=(Перечень[[#This Row],[ДАТА НАЧАЛА]]+Перечень[[#This Row],[ДЛИТЕЛЬНОСТЬ]]-1))),Перечень[[#This Row],[ДАТА НАЧАЛА]]+Перечень[[#This Row],[ДЛИТЕЛЬНОСТЬ]]-1),\"\")","v":""}]
[null,null,null,null,null,{"$f":"IF(ISNUMBER(Перечень[[#This Row],[ДЛИТЕЛЬНОСТЬ]]),IF(Перечень[[#This Row],[ОСНОВАНИЕ]]=\"ОТ (отпуск)\",Перечень[[#This Row],[ДАТА НАЧАЛА]]+Перечень[[#This Row],[ДЛИТЕЛЬНОСТЬ]]-1+SUMPRODUCT((Праздники[праздники]>=Перечень[[#This Row],[ДАТА НАЧАЛА]])*(Праздники[праздники]<=(Перечень[[#This Row],[ДАТА НАЧАЛА]]+Перечень[[#This Row],[ДЛИТЕЛЬНОСТЬ]]-1))),Перечень[[#This Row],[ДАТА НАЧАЛА]]+Перечень[[#This Row],[ДЛИТЕЛЬНОСТЬ]]-1),\"\")","v":""}]
[null,null,null,null,null,{"$f":"IF(ISNUMBER(Перечень[[#This Row],[ДЛИТЕЛЬНОСТЬ]]),IF(Перечень[[#This Row],[ОСНОВАНИЕ]]=\"ОТ (отпуск)\",Перечень[[#This Row],[ДАТА НАЧАЛА]]+Перечень[[#This Row],[ДЛИТЕЛЬНОСТЬ]]-1+SUMPRODUCT((Праздники[праздники]>=Перечень[[#This Row],[ДАТА НАЧАЛА]])*(Праздники[праздники]<=(Перечень[[#This Row],[ДАТА НАЧАЛА]]+Перечень[[#This Row],[ДЛИТЕЛЬНОСТЬ]]-1))),Перечень[[#This Row],[ДАТА НАЧАЛА]]+Перечень[[#This Row],[ДЛИТЕЛЬНОСТЬ]]-1),\"\")","v":""}]
[null,null,null,null,null,{"$f":"IF(ISNUMBER(Перечень[[#This Row],[ДЛИТЕЛЬНОСТЬ]]),IF(Перечень[[#This Row],[ОСНОВАНИЕ]]=\"ОТ (отпуск)\",Перечень[[#This Row],[ДАТА НАЧАЛА]]+Перечень[[#This Row],[ДЛИТЕЛЬНОСТЬ]]-1+SUMPRODUCT((Праздники[праздники]>=Перечень[[#This Row],[ДАТА НАЧАЛА]])*(Праздники[праздники]<=(Перечень[[#This Row],[ДАТА НАЧАЛА]]+Перечень[[#This Row],[ДЛИТЕЛЬНОСТЬ]]-1))),Перечень[[#This Row],[ДАТА НАЧАЛА]]+Перечень[[#This Row],[ДЛИТЕЛЬНОСТЬ]]-1),\"\")","v":""}]
[null,null,null,null,null,{"$f":"IF(ISNUMBER(Перечень[[#This Row],[ДЛИТЕЛЬНОСТЬ]]),IF(Перечень[[#This Row],[ОСНОВАНИЕ]]=\"ОТ (отпуск)\",Перечень[[#This Row],[ДАТА НАЧАЛА]]+Перечень[[#This Row],[ДЛИТЕЛЬНОСТЬ]]-1+SUMPRODUCT((Праздники[праздники]>=Перечень[[#This Row],[ДАТА НАЧАЛА]])*(Праздники[праздники]<=(Перечень[[#This Row],[ДАТА НАЧАЛА]]+Перечень[[#This Row],[ДЛИТЕЛЬНОСТЬ]]-1))),Перечень[[#This Row],[ДАТА НАЧАЛА]]+Перечень[[#This Row],[ДЛИТЕЛЬНОСТЬ]]-1),\"\")","v":""}]
[null,null,null,null,null,{"$f":"IF(ISNUMBER(Перечень[[#This Row],[ДЛИТЕЛЬНОСТЬ]]),IF(Перечень[[#This Row],[ОСНОВАНИЕ]]=\"ОТ (отпуск)\",Перечень[[#This Row],[ДАТА НАЧАЛА]]+Перечень[[#This Row],[ДЛИТЕЛЬНОСТЬ]]-1+SUMPRODUCT((Праздники[праздники]>=Перечень[[#This Row],[ДАТА НАЧАЛА]])*(Праздники[праздники]<=(Перечень[[#This Row],[ДАТА НАЧАЛА]]+Перечень[[#This Row],[ДЛИТЕЛЬНОСТЬ]]-1))),Перечень[[#This Row],[ДАТА НАЧАЛА]]+Перечень[[#This Row],[ДЛИТЕЛЬНОСТЬ]]-1),\"\")","v":""}]
[null,null,null,null,null,{"$f":"IF(ISNUMBER(Перечень[[#This Row],[ДЛИТЕЛЬНОСТЬ]]),IF(Перечень[[#This Row],[ОСНОВАНИЕ]]=\"ОТ (отпуск)\",Перечень[[#This Row],[ДАТА НАЧАЛА]]+Перечень[[#This Row],[ДЛИТЕЛЬНОСТЬ]]-1+SUMPRODUCT((Праздники[праздники]>=Перечень[[#This Row],[ДАТА НАЧАЛА]])*(Праздники[праздники]<=(Перечень[[#This Row],[ДАТА НАЧАЛА]]+Перечень[[#This Row],[ДЛИТЕЛЬНОСТЬ]]-1))),Перечень[[#This Row],[ДАТА НАЧАЛА]]+Перечень[[#This Row],[ДЛИТЕЛЬНОСТЬ]]-1),\"\")","v":""}]
[null,null,null,null,null,{"$f":"IF(ISNUMBER(Перечень[[#This Row],[ДЛИТЕЛЬНОСТЬ]]),IF(Перечень[[#This Row],[ОСНОВАНИЕ]]=\"ОТ (отпуск)\",Перечень[[#This Row],[ДАТА НАЧАЛА]]+Перечень[[#This Row],[ДЛИТЕЛЬНОСТЬ]]-1+SUMPRODUCT((Праздники[праздники]>=Перечень[[#This Row],[ДАТА НАЧАЛА]])*(Праздники[праздники]<=(Перечень[[#This Row],[ДАТА НАЧАЛА]]+Перечень[[#This Row],[ДЛИТЕЛЬНОСТЬ]]-1))),Перечень[[#This Row],[ДАТА НАЧАЛА]]+Перечень[[#This Row],[ДЛИТЕЛЬНОСТЬ]]-1),\"\")","v":""}]
[null,null,null,null,null,{"$f":"IF(ISNUMBER(Перечень[[#This Row],[ДЛИТЕЛЬНОСТЬ]]),IF(Перечень[[#This Row],[ОСНОВАНИЕ]]=\"ОТ (отпуск)\",Перечень[[#This Row],[ДАТА НАЧАЛА]]+Перечень[[#This Row],[ДЛИТЕЛЬНОСТЬ]]-1+SUMPRODUCT((Праздники[праздники]>=Перечень[[#This Row],[ДАТА НАЧАЛА]])*(Праздники[праздники]<=(Перечень[[#This Row],[ДАТА НАЧАЛА]]+Перечень[[#This Row],[ДЛИТЕЛЬНОСТЬ]]-1))),Перечень[[#This Row],[ДАТА НАЧАЛА]]+Перечень[[#This Row],[ДЛИТЕЛЬНОСТЬ]]-1),\"\")","v":""}]
[null,null,null,null,null,{"$f":"IF(ISNUMBER(Перечень[[#This Row],[ДЛИТЕЛЬНОСТЬ]]),IF(Перечень[[#This Row],[ОСНОВАНИЕ]]=\"ОТ (отпуск)\",Перечень[[#This Row],[ДАТА НАЧАЛА]]+Перечень[[#This Row],[ДЛИТЕЛЬНОСТЬ]]-1+SUMPRODUCT((Праздники[праздники]>=Перечень[[#This Row],[ДАТА НАЧАЛА]])*(Праздники[праздники]<=(Перечень[[#This Row],[ДАТА НАЧАЛА]]+Перечень[[#This Row],[ДЛИТЕЛЬНОСТЬ]]-1))),Перечень[[#This Row],[ДАТА НАЧАЛА]]+Перечень[[#This Row],[ДЛИТЕЛЬНОСТЬ]]-1),\"\")","v":""}]
[null,null,null,null,null,{"$f":"IF(ISNUMBER(Перечень[[#This Row],[ДЛИТЕЛЬНОСТЬ]]),IF(Перечень[[#This Row],[ОСНОВАНИЕ]]=\"ОТ (отпуск)\",Перечень[[#This Row],[ДАТА НАЧАЛА]]+Перечень[[#This Row],[ДЛИТЕЛЬНОСТЬ]]-1+SUMPRODUCT((Праздники[праздники]>=Перечень[[#This Row],[ДАТА НАЧАЛА]])*(Праздники[праздники]<=(Перечень[[#This Row],[ДАТА НАЧАЛА]]+Перечень[[#This Row],[ДЛИТЕЛЬНОСТЬ]]-1))),Перечень[[#This Row],[ДАТА НАЧАЛА]]+Перечень[[#This Row],[ДЛИТЕЛЬНОСТЬ]]-1),\"\")","v":""}]
[null,null,null,null,null,{"$f":"IF(ISNUMBER(Перечень[[#This Row],[ДЛИТЕЛЬНОСТЬ]]),IF(Перечень[[#This Row],[ОСНОВАНИЕ]]=\"ОТ (отпуск)\",Перечень[[#This Row],[ДАТА НАЧАЛА]]+Перечень[[#This Row],[ДЛИТЕЛЬНОСТЬ]]-1+SUMPRODUCT((Праздники[праздники]>=Перечень[[#This Row],[ДАТА НАЧАЛА]])*(Праздники[праздники]<=(Перечень[[#This Row],[ДАТА НАЧАЛА]]+Перечень[[#This Row],[ДЛИТЕЛЬНОСТЬ]]-1))),Перечень[[#This Row],[ДАТА НАЧАЛА]]+Перечень[[#This Row],[ДЛИТЕЛЬНОСТЬ]]-1),\"\")","v":""}]
[null,null,null,null,null,{"$f":"IF(ISNUMBER(Перечень[[#This Row],[ДЛИТЕЛЬНОСТЬ]]),IF(Перечень[[#This Row],[ОСНОВАНИЕ]]=\"ОТ (отпуск)\",Перечень[[#This Row],[ДАТА НАЧАЛА]]+Перечень[[#This Row],[ДЛИТЕЛЬНОСТЬ]]-1+SUMPRODUCT((Праздники[праздники]>=Перечень[[#This Row],[ДАТА НАЧАЛА]])*(Праздники[праздники]<=(Перечень[[#This Row],[ДАТА НАЧАЛА]]+Перечень[[#This Row],[ДЛИТЕЛЬНОСТЬ]]-1))),Перечень[[#This Row],[ДАТА НАЧАЛА]]+Перечень[[#This Row],[ДЛИТЕЛЬНОСТЬ]]-1),\"\")","v":""}]
[null,null,null,null,null,{"$f":"IF(ISNUMBER(Перечень[[#This Row],[ДЛИТЕЛЬНОСТЬ]]),IF(Перечень[[#This Row],[ОСНОВАНИЕ]]=\"ОТ (отпуск)\",Перечень[[#This Row],[ДАТА НАЧАЛА]]+Перечень[[#This Row],[ДЛИТЕЛЬНОСТЬ]]-1+SUMPRODUCT((Праздники[праздники]>=Перечень[[#This Row],[ДАТА НАЧАЛА]])*(Праздники[праздники]<=(Перечень[[#This Row],[ДАТА НАЧАЛА]]+Перечень[[#This Row],[ДЛИТЕЛЬНОСТЬ]]-1))),Перечень[[#This Row],[ДАТА НАЧАЛА]]+Перечень[[#This Row],[ДЛИТЕЛЬНОСТЬ]]-1),\"\")","v":""}]
[null,null,null,null,null,{"$f":"IF(ISNUMBER(Перечень[[#This Row],[ДЛИТЕЛЬНОСТЬ]]),IF(Перечень[[#This Row],[ОСНОВАНИЕ]]=\"ОТ (отпуск)\",Перечень[[#This Row],[ДАТА НАЧАЛА]]+Перечень[[#This Row],[ДЛИТЕЛЬНОСТЬ]]-1+SUMPRODUCT((Праздники[праздники]>=Перечень[[#This Row],[ДАТА НАЧАЛА]])*(Праздники[праздники]<=(Перечень[[#This Row],[ДАТА НАЧАЛА]]+Перечень[[#This Row],[ДЛИТЕЛЬНОСТЬ]]-1))),Перечень[[#This Row],[ДАТА НАЧАЛА]]+Перечень[[#This Row],[ДЛИТЕЛЬНОСТЬ]]-1),\"\")","v":""}]
[null,null,null,null,null,{"$f":"IF(ISNUMBER(Перечень[[#This Row],[ДЛИТЕЛЬНОСТЬ]]),IF(Перечень[[#This Row],[ОСНОВАНИЕ]]=\"ОТ (отпуск)\",Перечень[[#This Row],[ДАТА НАЧАЛА]]+Перечень[[#This Row],[ДЛИТЕЛЬНОСТЬ]]-1+SUMPRODUCT((Праздники[праздники]>=Перечень[[#This Row],[ДАТА НАЧАЛА]])*(Праздники[праздники]<=(Перечень[[#This Row],[ДАТА НАЧАЛА]]+Перечень[[#This Row],[ДЛИТЕЛЬНОСТЬ]]-1))),Перечень[[#This Row],[ДАТА НАЧАЛА]]+Перечень[[#This Row],[ДЛИТЕЛЬНОСТЬ]]-1),\"\")","v":""}]
[null,null,null,null,null,{"$f":"IF(ISNUMBER(Перечень[[#This Row],[ДЛИТЕЛЬНОСТЬ]]),IF(Перечень[[#This Row],[ОСНОВАНИЕ]]=\"ОТ (отпуск)\",Перечень[[#This Row],[ДАТА НАЧАЛА]]+Перечень[[#This Row],[ДЛИТЕЛЬНОСТЬ]]-1+SUMPRODUCT((Праздники[праздники]>=Перечень[[#This Row],[ДАТА НАЧАЛА]])*(Праздники[праздники]<=(Перечень[[#This Row],[ДАТА НАЧАЛА]]+Перечень[[#This Row],[ДЛИТЕЛЬНОСТЬ]]-1))),Перечень[[#This Row],[ДАТА НАЧАЛА]]+Перечень[[#This Row],[ДЛИТЕЛЬНОСТЬ]]-1),\"\")","v":""}]
[null,null,null,null,null,{"$f":"IF(ISNUMBER(Перечень[[#This Row],[ДЛИТЕЛЬНОСТЬ]]),IF(Перечень[[#This Row],[ОСНОВАНИЕ]]=\"ОТ (отпуск)\",Перечень[[#This Row],[ДАТА НАЧАЛА]]+Перечень[[#This Row],[ДЛИТЕЛЬНОСТЬ]]-1+SUMPRODUCT((Праздники[праздники]>=Перечень[[#This Row],[ДАТА НАЧАЛА]])*(Праздники[праздники]<=(Перечень[[#This Row],[ДАТА НАЧАЛА]]+Перечень[[#This Row],[ДЛИТЕЛЬНОСТЬ]]-1))),Перечень[[#This Row],[ДАТА НАЧАЛА]]+Перечень[[#This Row],[ДЛИТЕЛЬНОСТЬ]]-1),\"\")","v":""}]
[null,null,null,null,null,{"$f":"IF(ISNUMBER(Перечень[[#This Row],[ДЛИТЕЛЬНОСТЬ]]),IF(Перечень[[#This Row],[ОСНОВАНИЕ]]=\"ОТ (отпуск)\",Перечень[[#This Row],[ДАТА НАЧАЛА]]+Перечень[[#This Row],[ДЛИТЕЛЬНОСТЬ]]-1+SUMPRODUCT((Праздники[праздники]>=Перечень[[#This Row],[ДАТА НАЧАЛА]])*(Праздники[праздники]<=(Перечень[[#This Row],[ДАТА НАЧАЛА]]+Перечень[[#This Row],[ДЛИТЕЛЬНОСТЬ]]-1))),Перечень[[#This Row],[ДАТА НАЧАЛА]]+Перечень[[#This Row],[ДЛИТЕЛЬНОСТЬ]]-1),\"\")","v":""}]
[null,null,null,null,null,{"$f":"IF(ISNUMBER(Перечень[[#This Row],[ДЛИТЕЛЬНОСТЬ]]),IF(Перечень[[#This Row],[ОСНОВАНИЕ]]=\"ОТ (отпуск)\",Перечень[[#This Row],[ДАТА НАЧАЛА]]+Перечень[[#This Row],[ДЛИТЕЛЬНОСТЬ]]-1+SUMPRODUCT((Праздники[праздники]>=Перечень[[#This Row],[ДАТА НАЧАЛА]])*(Праздники[праздники]<=(Перечень[[#This Row],[ДАТА НАЧАЛА]]+Перечень[[#This Row],[ДЛИТЕЛЬНОСТЬ]]-1))),Перечень[[#This Row],[ДАТА НАЧАЛА]]+Перечень[[#This Row],[ДЛИТЕЛЬНОСТЬ]]-1),\"\")","v":""}]
[null,null,null,null,null,{"$f":"IF(ISNUMBER(Перечень[[#This Row],[ДЛИТЕЛЬНОСТЬ]]),IF(Перечень[[#This Row],[ОСНОВАНИЕ]]=\"ОТ (отпуск)\",Перечень[[#This Row],[ДАТА НАЧАЛА]]+Перечень[[#This Row],[ДЛИТЕЛЬНОСТЬ]]-1+SUMPRODUCT((Праздники[праздники]>=Перечень[[#This Row],[ДАТА НАЧАЛА]])*(Праздники[праздники]<=(Перечень[[#This Row],[ДАТА НАЧАЛА]]+Перечень[[#This Row],[ДЛИТЕЛЬНОСТЬ]]-1))),Перечень[[#This Row],[ДАТА НАЧАЛА]]+Перечень[[#This Row],[ДЛИТЕЛЬНОСТЬ]]-1),\"\")","v":""}]
[null,null,null,null,null,{"$f":"IF(ISNUMBER(Перечень[[#This Row],[ДЛИТЕЛЬНОСТЬ]]),IF(Перечень[[#This Row],[ОСНОВАНИЕ]]=\"ОТ (отпуск)\",Перечень[[#This Row],[ДАТА НАЧАЛА]]+Перечень[[#This Row],[ДЛИТЕЛЬНОСТЬ]]-1+SUMPRODUCT((Праздники[праздники]>=Перечень[[#This Row],[ДАТА НАЧАЛА]])*(Праздники[праздники]<=(Перечень[[#This Row],[ДАТА НАЧАЛА]]+Перечень[[#This Row],[ДЛИТЕЛЬНОСТЬ]]-1))),Перечень[[#This Row],[ДАТА НАЧАЛА]]+Перечень[[#This Row],[ДЛИТЕЛЬНОСТЬ]]-1),\"\")","v":""}]
[null,null,null,null,null,{"$f":"IF(ISNUMBER(Перечень[[#This Row],[ДЛИТЕЛЬНОСТЬ]]),IF(Перечень[[#This Row],[ОСНОВАНИЕ]]=\"ОТ (отпуск)\",Перечень[[#This Row],[ДАТА НАЧАЛА]]+Перечень[[#This Row],[ДЛИТЕЛЬНОСТЬ]]-1+SUMPRODUCT((Праздники[праздники]>=Перечень[[#This Row],[ДАТА НАЧАЛА]])*(Праздники[праздники]<=(Перечень[[#This Row],[ДАТА НАЧАЛА]]+Перечень[[#This Row],[ДЛИТЕЛЬНОСТЬ]]-1))),Перечень[[#This Row],[ДАТА НАЧАЛА]]+Перечень[[#This Row],[ДЛИТЕЛЬНОСТЬ]]-1),\"\")","v":""}]
[null,null,null,null,null,{"$f":"IF(ISNUMBER(Перечень[[#This Row],[ДЛИТЕЛЬНОСТЬ]]),IF(Перечень[[#This Row],[ОСНОВАНИЕ]]=\"ОТ (отпуск)\",Перечень[[#This Row],[ДАТА НАЧАЛА]]+Перечень[[#This Row],[ДЛИТЕЛЬНОСТЬ]]-1+SUMPRODUCT((Праздники[праздники]>=Перечень[[#This Row],[ДАТА НАЧАЛА]])*(Праздники[праздники]<=(Перечень[[#This Row],[ДАТА НАЧАЛА]]+Перечень[[#This Row],[ДЛИТЕЛЬНОСТЬ]]-1))),Перечень[[#This Row],[ДАТА НАЧАЛА]]+Перечень[[#This Row],[ДЛИТЕЛЬНОСТЬ]]-1),\"\")","v":""}]
[null,null,null,null,null,{"$f":"IF(ISNUMBER(Перечень[[#This Row],[ДЛИТЕЛЬНОСТЬ]]),IF(Перечень[[#This Row],[ОСНОВАНИЕ]]=\"ОТ (отпуск)\",Перечень[[#This Row],[ДАТА НАЧАЛА]]+Перечень[[#This Row],[ДЛИТЕЛЬНОСТЬ]]-1+SUMPRODUCT((Праздники[праздники]>=Перечень[[#This Row],[ДАТА НАЧАЛА]])*(Праздники[праздники]<=(Перечень[[#This Row],[ДАТА НАЧАЛА]]+Перечень[[#This Row],[ДЛИТЕЛЬНОСТЬ]]-1))),Перечень[[#This Row],[ДАТА НАЧАЛА]]+Перечень[[#This Row],[ДЛИТЕЛЬНОСТЬ]]-1),\"\")","v":""}]
[null,null,null,null,null,{"$f":"IF(ISNUMBER(Перечень[[#This Row],[ДЛИТЕЛЬНОСТЬ]]),IF(Перечень[[#This Row],[ОСНОВАНИЕ]]=\"ОТ (отпуск)\",Перечень[[#This Row],[ДАТА НАЧАЛА]]+Перечень[[#This Row],[ДЛИТЕЛЬНОСТЬ]]-1+SUMPRODUCT((Праздники[праздники]>=Перечень[[#This Row],[ДАТА НАЧАЛА]])*(Праздники[праздники]<=(Перечень[[#This Row],[ДАТА НАЧАЛА]]+Перечень[[#This Row],[ДЛИТЕЛЬНОСТЬ]]-1))),Перечень[[#This Row],[ДАТА НАЧАЛА]]+Перечень[[#This Row],[ДЛИТЕЛЬНОСТЬ]]-1),\"\")","v":""}]
[null,null,null,null,null,{"$f":"IF(ISNUMBER(Перечень[[#This Row],[ДЛИТЕЛЬНОСТЬ]]),IF(Перечень[[#This Row],[ОСНОВАНИЕ]]=\"ОТ (отпуск)\",Перечень[[#This Row],[ДАТА НАЧАЛА]]+Перечень[[#This Row],[ДЛИТЕЛЬНОСТЬ]]-1+SUMPRODUCT((Праздники[праздники]>=Перечень[[#This Row],[ДАТА НАЧАЛА]])*(Праздники[праздники]<=(Перечень[[#This Row],[ДАТА НАЧАЛА]]+Перечень[[#This Row],[ДЛИТЕЛЬНОСТЬ]]-1))),Перечень[[#This Row],[ДАТА НАЧАЛА]]+Перечень[[#This Row],[ДЛИТЕЛЬНОСТЬ]]-1),\"\")","v":""}]
[null,null,null,null,null,{"$f":"IF(ISNUMBER(Перечень[[#This Row],[ДЛИТЕЛЬНОСТЬ]]),IF(Перечень[[#This Row],[ОСНОВАНИЕ]]=\"ОТ (отпуск)\",Перечень[[#This Row],[ДАТА НАЧАЛА]]+Перечень[[#This Row],[ДЛИТЕЛЬНОСТЬ]]-1+SUMPRODUCT((Праздники[праздники]>=Перечень[[#This Row],[ДАТА НАЧАЛА]])*(Праздники[праздники]<=(Перечень[[#This Row],[ДАТА НАЧАЛА]]+Перечень[[#This Row],[ДЛИТЕЛЬНОСТЬ]]-1))),Перечень[[#This Row],[ДАТА НАЧАЛА]]+Перечень[[#This Row],[ДЛИТЕЛЬНОСТЬ]]-1),\"\")","v":""}]
[null,null,null,null,null,{"$f":"IF(ISNUMBER(Перечень[[#This Row],[ДЛИТЕЛЬНОСТЬ]]),IF(Перечень[[#This Row],[ОСНОВАНИЕ]]=\"ОТ (отпуск)\",Перечень[[#This Row],[ДАТА НАЧАЛА]]+Перечень[[#This Row],[ДЛИТЕЛЬНОСТЬ]]-1+SUMPRODUCT((Праздники[праздники]>=Перечень[[#This Row],[ДАТА НАЧАЛА]])*(Праздники[праздники]<=(Перечень[[#This Row],[ДАТА НАЧАЛА]]+Перечень[[#This Row],[ДЛИТЕЛЬНОСТЬ]]-1))),Перечень[[#This Row],[ДАТА НАЧАЛА]]+Перечень[[#This Row],[ДЛИТЕЛЬНОСТЬ]]-1),\"\")","v":""}]
[null,null,null,null,null,{"$f":"IF(ISNUMBER(Перечень[[#This Row],[ДЛИТЕЛЬНОСТЬ]]),IF(Перечень[[#This Row],[ОСНОВАНИЕ]]=\"ОТ (отпуск)\",Перечень[[#This Row],[ДАТА НАЧАЛА]]+Перечень[[#This Row],[ДЛИТЕЛЬНОСТЬ]]-1+SUMPRODUCT((Праздники[праздники]>=Перечень[[#This Row],[ДАТА НАЧАЛА]])*(Праздники[праздники]<=(Перечень[[#This Row],[ДАТА НАЧАЛА]]+Перечень[[#This Row],[ДЛИТЕЛЬНОСТЬ]]-1))),Перечень[[#This Row],[ДАТА НАЧАЛА]]+Перечень[[#This Row],[ДЛИТЕЛЬНОСТЬ]]-1),\"\")","v":""}]
[null,null,null,null,null,{"$f":"IF(ISNUMBER(Перечень[[#This Row],[ДЛИТЕЛЬНОСТЬ]]),IF(Перечень[[#This Row],[ОСНОВАНИЕ]]=\"ОТ (отпуск)\",Перечень[[#This Row],[ДАТА НАЧАЛА]]+Перечень[[#This Row],[ДЛИТЕЛЬНОСТЬ]]-1+SUMPRODUCT((Праздники[праздники]>=Перечень[[#This Row],[ДАТА НАЧАЛА]])*(Праздники[праздники]<=(Перечень[[#This Row],[ДАТА НАЧАЛА]]+Перечень[[#This Row],[ДЛИТЕЛЬНОСТЬ]]-1))),Перечень[[#This Row],[ДАТА НАЧАЛА]]+Перечень[[#This Row],[ДЛИТЕЛЬНОСТЬ]]-1),\"\")","v":""}]
[null,null,null,null,null,{"$f":"IF(ISNUMBER(Перечень[[#This Row],[ДЛИТЕЛЬНОСТЬ]]),IF(Перечень[[#This Row],[ОСНОВАНИЕ]]=\"ОТ (отпуск)\",Перечень[[#This Row],[ДАТА НАЧАЛА]]+Перечень[[#This Row],[ДЛИТЕЛЬНОСТЬ]]-1+SUMPRODUCT((Праздники[праздники]>=Перечень[[#This Row],[ДАТА НАЧАЛА]])*(Праздники[праздники]<=(Перечень[[#This Row],[ДАТА НАЧАЛА]]+Перечень[[#This Row],[ДЛИТЕЛЬНОСТЬ]]-1))),Перечень[[#This Row],[ДАТА НАЧАЛА]]+Перечень[[#This Row],[ДЛИТЕЛЬНОСТЬ]]-1),\"\")","v":""}]
[null,null,null,null,null,{"$f":"IF(ISNUMBER(Перечень[[#This Row],[ДЛИТЕЛЬНОСТЬ]]),IF(Перечень[[#This Row],[ОСНОВАНИЕ]]=\"ОТ (отпуск)\",Перечень[[#This Row],[ДАТА НАЧАЛА]]+Перечень[[#This Row],[ДЛИТЕЛЬНОСТЬ]]-1+SUMPRODUCT((Праздники[праздники]>=Перечень[[#This Row],[ДАТА НАЧАЛА]])*(Праздники[праздники]<=(Перечень[[#This Row],[ДАТА НАЧАЛА]]+Перечень[[#This Row],[ДЛИТЕЛЬНОСТЬ]]-1))),Перечень[[#This Row],[ДАТА НАЧАЛА]]+Перечень[[#This Row],[ДЛИТЕЛЬНОСТЬ]]-1),\"\")","v":""}]
[null,null,null,null,null,{"$f":"IF(ISNUMBER(Перечень[[#This Row],[ДЛИТЕЛЬНОСТЬ]]),IF(Перечень[[#This Row],[ОСНОВАНИЕ]]=\"ОТ (отпуск)\",Перечень[[#This Row],[ДАТА НАЧАЛА]]+Перечень[[#This Row],[ДЛИТЕЛЬНОСТЬ]]-1+SUMPRODUCT((Праздники[праздники]>=Перечень[[#This Row],[ДАТА НАЧАЛА]])*(Праздники[праздники]<=(Перечень[[#This Row],[ДАТА НАЧАЛА]]+Перечень[[#This Row],[ДЛИТЕЛЬНОСТЬ]]-1))),Перечень[[#This Row],[ДАТА НАЧАЛА]]+Перечень[[#This Row],[ДЛИТЕЛЬНОСТЬ]]-1),\"\")","v":""}]
[null,null,null,null,null,{"$f":"IF(ISNUMBER(Перечень[[#This Row],[ДЛИТЕЛЬНОСТЬ]]),IF(Перечень[[#This Row],[ОСНОВАНИЕ]]=\"ОТ (отпуск)\",Перечень[[#This Row],[ДАТА НАЧАЛА]]+Перечень[[#This Row],[ДЛИТЕЛЬНОСТЬ]]-1+SUMPRODUCT((Праздники[праздники]>=Перечень[[#This Row],[ДАТА НАЧАЛА]])*(Праздники[праздники]<=(Перечень[[#This Row],[ДАТА НАЧАЛА]]+Перечень[[#This Row],[ДЛИТЕЛЬНОСТЬ]]-1))),Перечень[[#This Row],[ДАТА НАЧАЛА]]+Перечень[[#This Row],[ДЛИТЕЛЬНОСТЬ]]-1),\"\")","v":""}]
[null,null,null,null,null,{"$f":"IF(ISNUMBER(Перечень[[#This Row],[ДЛИТЕЛЬНОСТЬ]]),IF(Перечень[[#This Row],[ОСНОВАНИЕ]]=\"ОТ (отпуск)\",Перечень[[#This Row],[ДАТА НАЧАЛА]]+Перечень[[#This Row],[ДЛИТЕЛЬНОСТЬ]]-1+SUMPRODUCT((Праздники[праздники]>=Перечень[[#This Row],[ДАТА НАЧАЛА]])*(Праздники[праздники]<=(Перечень[[#This Row],[ДАТА НАЧАЛА]]+Перечень[[#This Row],[ДЛИТЕЛЬНОСТЬ]]-1))),Перечень[[#This Row],[ДАТА НАЧАЛА]]+Перечень[[#This Row],[ДЛИТЕЛЬНОСТЬ]]-1),\"\")","v":""}]
[null,null,null,null,null,{"$f":"IF(ISNUMBER(Перечень[[#This Row],[ДЛИТЕЛЬНОСТЬ]]),IF(Перечень[[#This Row],[ОСНОВАНИЕ]]=\"ОТ (отпуск)\",Перечень[[#This Row],[ДАТА НАЧАЛА]]+Перечень[[#This Row],[ДЛИТЕЛЬНОСТЬ]]-1+SUMPRODUCT((Праздники[праздники]>=Перечень[[#This Row],[ДАТА НАЧАЛА]])*(Праздники[праздники]<=(Перечень[[#This Row],[ДАТА НАЧАЛА]]+Перечень[[#This Row],[ДЛИТЕЛЬНОСТЬ]]-1))),Перечень[[#This Row],[ДАТА НАЧАЛА]]+Перечень[[#This Row],[ДЛИТЕЛЬНОСТЬ]]-1),\"\")","v":""}]
[null,null,null,null,null,{"$f":"IF(ISNUMBER(Перечень[[#This Row],[ДЛИТЕЛЬНОСТЬ]]),IF(Перечень[[#This Row],[ОСНОВАНИЕ]]=\"ОТ (отпуск)\",Перечень[[#This Row],[ДАТА НАЧАЛА]]+Перечень[[#This Row],[ДЛИТЕЛЬНОСТЬ]]-1+SUMPRODUCT((Праздники[праздники]>=Перечень[[#This Row],[ДАТА НАЧАЛА]])*(Праздники[праздники]<=(Перечень[[#This Row],[ДАТА НАЧАЛА]]+Перечень[[#This Row],[ДЛИТЕЛЬНОСТЬ]]-1))),Перечень[[#This Row],[ДАТА НАЧАЛА]]+Перечень[[#This Row],[ДЛИТЕЛЬНОСТЬ]]-1),\"\")","v":""}]
[null,null,null,null,null,{"$f":"IF(ISNUMBER(Перечень[[#This Row],[ДЛИТЕЛЬНОСТЬ]]),IF(Перечень[[#This Row],[ОСНОВАНИЕ]]=\"ОТ (отпуск)\",Перечень[[#This Row],[ДАТА НАЧАЛА]]+Перечень[[#This Row],[ДЛИТЕЛЬНОСТЬ]]-1+SUMPRODUCT((Праздники[праздники]>=Перечень[[#This Row],[ДАТА НАЧАЛА]])*(Праздники[праздники]<=(Перечень[[#This Row],[ДАТА НАЧАЛА]]+Перечень[[#This Row],[ДЛИТЕЛЬНОСТЬ]]-1))),Перечень[[#This Row],[ДАТА НАЧАЛА]]+Перечень[[#This Row],[ДЛИТЕЛЬНОСТЬ]]-1),\"\")","v":""}]
[null,null,null,null,null,{"$f":"IF(ISNUMBER(Перечень[[#This Row],[ДЛИТЕЛЬНОСТЬ]]),IF(Перечень[[#This Row],[ОСНОВАНИЕ]]=\"ОТ (отпуск)\",Перечень[[#This Row],[ДАТА НАЧАЛА]]+Перечень[[#This Row],[ДЛИТЕЛЬНОСТЬ]]-1+SUMPRODUCT((Праздники[праздники]>=Перечень[[#This Row],[ДАТА НАЧАЛА]])*(Праздники[праздники]<=(Перечень[[#This Row],[ДАТА НАЧАЛА]]+Перечень[[#This Row],[ДЛИТЕЛЬНОСТЬ]]-1))),Перечень[[#This Row],[ДАТА НАЧАЛА]]+Перечень[[#This Row],[ДЛИТЕЛЬНОСТЬ]]-1),\"\")","v":""}]
[null,null,null,null,null,{"$f":"IF(ISNUMBER(Перечень[[#This Row],[ДЛИТЕЛЬНОСТЬ]]),IF(Перечень[[#This Row],[ОСНОВАНИЕ]]=\"ОТ (отпуск)\",Перечень[[#This Row],[ДАТА НАЧАЛА]]+Перечень[[#This Row],[ДЛИТЕЛЬНОСТЬ]]-1+SUMPRODUCT((Праздники[праздники]>=Перечень[[#This Row],[ДАТА НАЧАЛА]])*(Праздники[праздники]<=(Перечень[[#This Row],[ДАТА НАЧАЛА]]+Перечень[[#This Row],[ДЛИТЕЛЬНОСТЬ]]-1))),Перечень[[#This Row],[ДАТА НАЧАЛА]]+Перечень[[#This Row],[ДЛИТЕЛЬНОСТЬ]]-1),\"\")","v":""}]
[null,null,null,null,null,{"$f":"IF(ISNUMBER(Перечень[[#This Row],[ДЛИТЕЛЬНОСТЬ]]),IF(Перечень[[#This Row],[ОСНОВАНИЕ]]=\"ОТ (отпуск)\",Перечень[[#This Row],[ДАТА НАЧАЛА]]+Перечень[[#This Row],[ДЛИТЕЛЬНОСТЬ]]-1+SUMPRODUCT((Праздники[праздники]>=Перечень[[#This Row],[ДАТА НАЧАЛА]])*(Праздники[праздники]<=(Перечень[[#This Row],[ДАТА НАЧАЛА]]+Перечень[[#This Row],[ДЛИТЕЛЬНОСТЬ]]-1))),Перечень[[#This Row],[ДАТА НАЧАЛА]]+Перечень[[#This Row],[ДЛИТЕЛЬНОСТЬ]]-1),\"\")","v":""}]
[null,null,null,null,null,{"$f":"IF(ISNUMBER(Перечень[[#This Row],[ДЛИТЕЛЬНОСТЬ]]),IF(Перечень[[#This Row],[ОСНОВАНИЕ]]=\"ОТ (отпуск)\",Перечень[[#This Row],[ДАТА НАЧАЛА]]+Перечень[[#This Row],[ДЛИТЕЛЬНОСТЬ]]-1+SUMPRODUCT((Праздники[праздники]>=Перечень[[#This Row],[ДАТА НАЧАЛА]])*(Праздники[праздники]<=(Перечень[[#This Row],[ДАТА НАЧАЛА]]+Перечень[[#This Row],[ДЛИТЕЛЬНОСТЬ]]-1))),Перечень[[#This Row],[ДАТА НАЧАЛА]]+Перечень[[#This Row],[ДЛИТЕЛЬНОСТЬ]]-1),\"\")","v":""}]
[null,null,null,null,null,{"$f":"IF(ISNUMBER(Перечень[[#This Row],[ДЛИТЕЛЬНОСТЬ]]),IF(Перечень[[#This Row],[ОСНОВАНИЕ]]=\"ОТ (отпуск)\",Перечень[[#This Row],[ДАТА НАЧАЛА]]+Перечень[[#This Row],[ДЛИТЕЛЬНОСТЬ]]-1+SUMPRODUCT((Праздники[праздники]>=Перечень[[#This Row],[ДАТА НАЧАЛА]])*(Праздники[праздники]<=(Перечень[[#This Row],[ДАТА НАЧАЛА]]+Перечень[[#This Row],[ДЛИТЕЛЬНОСТЬ]]-1))),Перечень[[#This Row],[ДАТА НАЧАЛА]]+Перечень[[#This Row],[ДЛИТЕЛЬНОСТЬ]]-1),\"\")","v":""}]
[null,null,null,null,null,{"$f":"IF(ISNUMBER(Перечень[[#This Row],[ДЛИТЕЛЬНОСТЬ]]),IF(Перечень[[#This Row],[ОСНОВАНИЕ]]=\"ОТ (отпуск)\",Перечень[[#This Row],[ДАТА НАЧАЛА]]+Перечень[[#This Row],[ДЛИТЕЛЬНОСТЬ]]-1+SUMPRODUCT((Праздники[праздники]>=Перечень[[#This Row],[ДАТА НАЧАЛА]])*(Праздники[праздники]<=(Перечень[[#This Row],[ДАТА НАЧАЛА]]+Перечень[[#This Row],[ДЛИТЕЛЬНОСТЬ]]-1))),Перечень[[#This Row],[ДАТА НАЧАЛА]]+Перечень[[#This Row],[ДЛИТЕЛЬНОСТЬ]]-1),\"\")","v":""}]
[null,null,null,null,null,{"$f":"IF(ISNUMBER(Перечень[[#This Row],[ДЛИТЕЛЬНОСТЬ]]),IF(Перечень[[#This Row],[ОСНОВАНИЕ]]=\"ОТ (отпуск)\",Перечень[[#This Row],[ДАТА НАЧАЛА]]+Перечень[[#This Row],[ДЛИТЕЛЬНОСТЬ]]-1+SUMPRODUCT((Праздники[праздники]>=Перечень[[#This Row],[ДАТА НАЧАЛА]])*(Праздники[праздники]<=(Перечень[[#This Row],[ДАТА НАЧАЛА]]+Перечень[[#This Row],[ДЛИТЕЛЬНОСТЬ]]-1))),Перечень[[#This Row],[ДАТА НАЧАЛА]]+Перечень[[#This Row],[ДЛИТЕЛЬНОСТЬ]]-1),\"\")","v":""}]
[null,null,null,null,null,{"$f":"IF(ISNUMBER(Перечень[[#This Row],[ДЛИТЕЛЬНОСТЬ]]),IF(Перечень[[#This Row],[ОСНОВАНИЕ]]=\"ОТ (отпуск)\",Перечень[[#This Row],[ДАТА НАЧАЛА]]+Перечень[[#This Row],[ДЛИТЕЛЬНОСТЬ]]-1+SUMPRODUCT((Праздники[праздники]>=Перечень[[#This Row],[ДАТА НАЧАЛА]])*(Праздники[праздники]<=(Перечень[[#This Row],[ДАТА НАЧАЛА]]+Перечень[[#This Row],[ДЛИТЕЛЬНОСТЬ]]-1))),Перечень[[#This Row],[ДАТА НАЧАЛА]]+Перечень[[#This Row],[ДЛИТЕЛЬНОСТЬ]]-1),\"\")","v":""}]
[null,null,null,null,null,{"$f":"IF(ISNUMBER(Перечень[[#This Row],[ДЛИТЕЛЬНОСТЬ]]),IF(Перечень[[#This Row],[ОСНОВАНИЕ]]=\"ОТ (отпуск)\",Перечень[[#This Row],[ДАТА НАЧАЛА]]+Перечень[[#This Row],[ДЛИТЕЛЬНОСТЬ]]-1+SUMPRODUCT((Праздники[праздники]>=Перечень[[#This Row],[ДАТА НАЧАЛА]])*(Праздники[праздники]<=(Перечень[[#This Row],[ДАТА НАЧАЛА]]+Перечень[[#This Row],[ДЛИТЕЛЬНОСТЬ]]-1))),Перечень[[#This Row],[ДАТА НАЧАЛА]]+Перечень[[#This Row],[ДЛИТЕЛЬНОСТЬ]]-1),\"\")","v":""}]
[null,null,null,null,null,{"$f":"IF(ISNUMBER(Перечень[[#This Row],[ДЛИТЕЛЬНОСТЬ]]),IF(Перечень[[#This Row],[ОСНОВАНИЕ]]=\"ОТ (отпуск)\",Перечень[[#This Row],[ДАТА НАЧАЛА]]+Перечень[[#This Row],[ДЛИТЕЛЬНОСТЬ]]-1+SUMPRODUCT((Праздники[праздники]>=Перечень[[#This Row],[ДАТА НАЧАЛА]])*(Праздники[праздники]<=(Перечень[[#This Row],[ДАТА НАЧАЛА]]+Перечень[[#This Row],[ДЛИТЕЛЬНОСТЬ]]-1))),Перечень[[#This Row],[ДАТА НАЧАЛА]]+Перечень[[#This Row],[ДЛИТЕЛЬНОСТЬ]]-1),\"\")","v":""}]
[null,null,null,null,null,{"$f":"IF(ISNUMBER(Перечень[[#This Row],[ДЛИТЕЛЬНОСТЬ]]),IF(Перечень[[#This Row],[ОСНОВАНИЕ]]=\"ОТ (отпуск)\",Перечень[[#This Row],[ДАТА НАЧАЛА]]+Перечень[[#This Row],[ДЛИТЕЛЬНОСТЬ]]-1+SUMPRODUCT((Праздники[праздники]>=Перечень[[#This Row],[ДАТА НАЧАЛА]])*(Праздники[праздники]<=(Перечень[[#This Row],[ДАТА НАЧАЛА]]+Перечень[[#This Row],[ДЛИТЕЛЬНОСТЬ]]-1))),Перечень[[#This Row],[ДАТА НАЧАЛА]]+Перечень[[#This Row],[ДЛИТЕЛЬНОСТЬ]]-1),\"\")","v":""}]
[null,null,null,null,null,{"$f":"IF(ISNUMBER(Перечень[[#This Row],[ДЛИТЕЛЬНОСТЬ]]),IF(Перечень[[#This Row],[ОСНОВАНИЕ]]=\"ОТ (отпуск)\",Перечень[[#This Row],[ДАТА НАЧАЛА]]+Перечень[[#This Row],[ДЛИТЕЛЬНОСТЬ]]-1+SUMPRODUCT((Праздники[праздники]>=Перечень[[#This Row],[ДАТА НАЧАЛА]])*(Праздники[праздники]<=(Перечень[[#This Row],[ДАТА НАЧАЛА]]+Перечень[[#This Row],[ДЛИТЕЛЬНОСТЬ]]-1))),Перечень[[#This Row],[ДАТА НАЧАЛА]]+Перечень[[#This Row],[ДЛИТЕЛЬНОСТЬ]]-1),\"\")","v":""}]
[null,null,null,null,null,{"$f":"IF(ISNUMBER(Перечень[[#This Row],[ДЛИТЕЛЬНОСТЬ]]),IF(Перечень[[#This Row],[ОСНОВАНИЕ]]=\"ОТ (отпуск)\",Перечень[[#This Row],[ДАТА НАЧАЛА]]+Перечень[[#This Row],[ДЛИТЕЛЬНОСТЬ]]-1+SUMPRODUCT((Праздники[праздники]>=Перечень[[#This Row],[ДАТА НАЧАЛА]])*(Праздники[праздники]<=(Перечень[[#This Row],[ДАТА НАЧАЛА]]+Перечень[[#This Row],[ДЛИТЕЛЬНОСТЬ]]-1))),Перечень[[#This Row],[ДАТА НАЧАЛА]]+Перечень[[#This Row],[ДЛИТЕЛЬНОСТЬ]]-1),\"\")","v":""}]
[null,null,null,null,null,{"$f":"IF(ISNUMBER(Перечень[[#This Row],[ДЛИТЕЛЬНОСТЬ]]),IF(Перечень[[#This Row],[ОСНОВАНИЕ]]=\"ОТ (отпуск)\",Перечень[[#This Row],[ДАТА НАЧАЛА]]+Перечень[[#This Row],[ДЛИТЕЛЬНОСТЬ]]-1+SUMPRODUCT((Праздники[праздники]>=Перечень[[#This Row],[ДАТА НАЧАЛА]])*(Праздники[праздники]<=(Перечень[[#This Row],[ДАТА НАЧАЛА]]+Перечень[[#This Row],[ДЛИТЕЛЬНОСТЬ]]-1))),Перечень[[#This Row],[ДАТА НАЧАЛА]]+Перечень[[#This Row],[ДЛИТЕЛЬНОСТЬ]]-1),\"\")","v":""}]
[null,null,null,null,null,{"$f":"IF(ISNUMBER(Перечень[[#This Row],[ДЛИТЕЛЬНОСТЬ]]),IF(Перечень[[#This Row],[ОСНОВАНИЕ]]=\"ОТ (отпуск)\",Перечень[[#This Row],[ДАТА НАЧАЛА]]+Перечень[[#This Row],[ДЛИТЕЛЬНОСТЬ]]-1+SUMPRODUCT((Праздники[праздники]>=Перечень[[#This Row],[ДАТА НАЧАЛА]])*(Праздники[праздники]<=(Перечень[[#This Row],[ДАТА НАЧАЛА]]+Перечень[[#This Row],[ДЛИТЕЛЬНОСТЬ]]-1))),Перечень[[#This Row],[ДАТА НАЧАЛА]]+Перечень[[#This Row],[ДЛИТЕЛЬНОСТЬ]]-1),\"\")","v":""}]
[null,null,null,null,null,{"$f":"IF(ISNUMBER(Перечень[[#This Row],[ДЛИТЕЛЬНОСТЬ]]),IF(Перечень[[#This Row],[ОСНОВАНИЕ]]=\"ОТ (отпуск)\",Перечень[[#This Row],[ДАТА НАЧАЛА]]+Перечень[[#This Row],[ДЛИТЕЛЬНОСТЬ]]-1+SUMPRODUCT((Праздники[праздники]>=Перечень[[#This Row],[ДАТА НАЧАЛА]])*(Праздники[праздники]<=(Перечень[[#This Row],[ДАТА НАЧАЛА]]+Перечень[[#This Row],[ДЛИТЕЛЬНОСТЬ]]-1))),Перечень[[#This Row],[ДАТА НАЧАЛА]]+Перечень[[#This Row],[ДЛИТЕЛЬНОСТЬ]]-1),\"\")","v":""}]
[null,null,null,null,null,{"$f":"IF(ISNUMBER(Перечень[[#This Row],[ДЛИТЕЛЬНОСТЬ]]),IF(Перечень[[#This Row],[ОСНОВАНИЕ]]=\"ОТ (отпуск)\",Перечень[[#This Row],[ДАТА НАЧАЛА]]+Перечень[[#This Row],[ДЛИТЕЛЬНОСТЬ]]-1+SUMPRODUCT((Праздники[праздники]>=Перечень[[#This Row],[ДАТА НАЧАЛА]])*(Праздники[праздники]<=(Перечень[[#This Row],[ДАТА НАЧАЛА]]+Перечень[[#This Row],[ДЛИТЕЛЬНОСТЬ]]-1))),Перечень[[#This Row],[ДАТА НАЧАЛА]]+Перечень[[#This Row],[ДЛИТЕЛЬНОСТЬ]]-1),\"\")","v":""}]
[null,null,null,null,null,{"$f":"IF(ISNUMBER(Перечень[[#This Row],[ДЛИТЕЛЬНОСТЬ]]),IF(Перечень[[#This Row],[ОСНОВАНИЕ]]=\"ОТ (отпуск)\",Перечень[[#This Row],[ДАТА НАЧАЛА]]+Перечень[[#This Row],[ДЛИТЕЛЬНОСТЬ]]-1+SUMPRODUCT((Праздники[праздники]>=Перечень[[#This Row],[ДАТА НАЧАЛА]])*(Праздники[праздники]<=(Перечень[[#This Row],[ДАТА НАЧАЛА]]+Перечень[[#This Row],[ДЛИТЕЛЬНОСТЬ]]-1))),Перечень[[#This Row],[ДАТА НАЧАЛА]]+Перечень[[#This Row],[ДЛИТЕЛЬНОСТЬ]]-1),\"\")","v":""}]
[null,null,null,null,null,{"$f":"IF(ISNUMBER(Перечень[[#This Row],[ДЛИТЕЛЬНОСТЬ]]),IF(Перечень[[#This Row],[ОСНОВАНИЕ]]=\"ОТ (отпуск)\",Перечень[[#This Row],[ДАТА НАЧАЛА]]+Перечень[[#This Row],[ДЛИТЕЛЬНОСТЬ]]-1+SUMPRODUCT((Праздники[праздники]>=Перечень[[#This Row],[ДАТА НАЧАЛА]])*(Праздники[праздники]<=(Перечень[[#This Row],[ДАТА НАЧАЛА]]+Перечень[[#This Row],[ДЛИТЕЛЬНОСТЬ]]-1))),Перечень[[#This Row],[ДАТА НАЧАЛА]]+Перечень[[#This Row],[ДЛИТЕЛЬНОСТЬ]]-1),\"\")","v":""}]
[null,null,null,null,null,{"$f":"IF(ISNUMBER(Перечень[[#This Row],[ДЛИТЕЛЬНОСТЬ]]),IF(Перечень[[#This Row],[ОСНОВАНИЕ]]=\"ОТ (отпуск)\",Перечень[[#This Row],[ДАТА НАЧАЛА]]+Перечень[[#This Row],[ДЛИТЕЛЬНОСТЬ]]-1+SUMPRODUCT((Праздники[праздники]>=Перечень[[#This Row],[ДАТА НАЧАЛА]])*(Праздники[праздники]<=(Перечень[[#This Row],[ДАТА НАЧАЛА]]+Перечень[[#This Row],[ДЛИТЕЛЬНОСТЬ]]-1))),Перечень[[#This Row],[ДАТА НАЧАЛА]]+Перечень[[#This Row],[ДЛИТЕЛЬНОСТЬ]]-1),\"\")","v":""}]
[null,null,null,null,null,{"$f":"IF(ISNUMBER(Перечень[[#This Row],[ДЛИТЕЛЬНОСТЬ]]),IF(Перечень[[#This Row],[ОСНОВАНИЕ]]=\"ОТ (отпуск)\",Перечень[[#This Row],[ДАТА НАЧАЛА]]+Перечень[[#This Row],[ДЛИТЕЛЬНОСТЬ]]-1+SUMPRODUCT((Праздники[праздники]>=Перечень[[#This Row],[ДАТА НАЧАЛА]])*(Праздники[праздники]<=(Перечень[[#This Row],[ДАТА НАЧАЛА]]+Перечень[[#This Row],[ДЛИТЕЛЬНОСТЬ]]-1))),Перечень[[#This Row],[ДАТА НАЧАЛА]]+Перечень[[#This Row],[ДЛИТЕЛЬНОСТЬ]]-1),\"\")","v":""}]
[null,null,null,null,null,{"$f":"IF(ISNUMBER(Перечень[[#This Row],[ДЛИТЕЛЬНОСТЬ]]),IF(Перечень[[#This Row],[ОСНОВАНИЕ]]=\"ОТ (отпуск)\",Перечень[[#This Row],[ДАТА НАЧАЛА]]+Перечень[[#This Row],[ДЛИТЕЛЬНОСТЬ]]-1+SUMPRODUCT((Праздники[праздники]>=Перечень[[#This Row],[ДАТА НАЧАЛА]])*(Праздники[праздники]<=(Перечень[[#This Row],[ДАТА НАЧАЛА]]+Перечень[[#This Row],[ДЛИТЕЛЬНОСТЬ]]-1))),Перечень[[#This Row],[ДАТА НАЧАЛА]]+Перечень[[#This Row],[ДЛИТЕЛЬНОСТЬ]]-1),\"\")","v":""}]
[null,null,null,null,null,{"$f":"IF(ISNUMBER(Перечень[[#This Row],[ДЛИТЕЛЬНОСТЬ]]),IF(Перечень[[#This Row],[ОСНОВАНИЕ]]=\"ОТ (отпуск)\",Перечень[[#This Row],[ДАТА НАЧАЛА]]+Перечень[[#This Row],[ДЛИТЕЛЬНОСТЬ]]-1+SUMPRODUCT((Праздники[праздники]>=Перечень[[#This Row],[ДАТА НАЧАЛА]])*(Праздники[праздники]<=(Перечень[[#This Row],[ДАТА НАЧАЛА]]+Перечень[[#This Row],[ДЛИТЕЛЬНОСТЬ]]-1))),Перечень[[#This Row],[ДАТА НАЧАЛА]]+Перечень[[#This Row],[ДЛИТЕЛЬНОСТЬ]]-1),\"\")","v":""}]
[null,null,null,null,null,{"$f":"IF(ISNUMBER(Перечень[[#This Row],[ДЛИТЕЛЬНОСТЬ]]),IF(Перечень[[#This Row],[ОСНОВАНИЕ]]=\"ОТ (отпуск)\",Перечень[[#This Row],[ДАТА НАЧАЛА]]+Перечень[[#This Row],[ДЛИТЕЛЬНОСТЬ]]-1+SUMPRODUCT((Праздники[праздники]>=Перечень[[#This Row],[ДАТА НАЧАЛА]])*(Праздники[праздники]<=(Перечень[[#This Row],[ДАТА НАЧАЛА]]+Перечень[[#This Row],[ДЛИТЕЛЬНОСТЬ]]-1))),Перечень[[#This Row],[ДАТА НАЧАЛА]]+Перечень[[#This Row],[ДЛИТЕЛЬНОСТЬ]]-1),\"\")","v":""}]
[null,null,null,null,null,{"$f":"IF(ISNUMBER(Перечень[[#This Row],[ДЛИТЕЛЬНОСТЬ]]),IF(Перечень[[#This Row],[ОСНОВАНИЕ]]=\"ОТ (отпуск)\",Перечень[[#This Row],[ДАТА НАЧАЛА]]+Перечень[[#This Row],[ДЛИТЕЛЬНОСТЬ]]-1+SUMPRODUCT((Праздники[праздники]>=Перечень[[#This Row],[ДАТА НАЧАЛА]])*(Праздники[праздники]<=(Перечень[[#This Row],[ДАТА НАЧАЛА]]+Перечень[[#This Row],[ДЛИТЕЛЬНОСТЬ]]-1))),Перечень[[#This Row],[ДАТА НАЧАЛА]]+Перечень[[#This Row],[ДЛИТЕЛЬНОСТЬ]]-1),\"\")","v":""}]
[null,null,null,null,null,{"$f":"IF(ISNUMBER(Перечень[[#This Row],[ДЛИТЕЛЬНОСТЬ]]),IF(Перечень[[#This Row],[ОСНОВАНИЕ]]=\"ОТ (отпуск)\",Перечень[[#This Row],[ДАТА НАЧАЛА]]+Перечень[[#This Row],[ДЛИТЕЛЬНОСТЬ]]-1+SUMPRODUCT((Праздники[праздники]>=Перечень[[#This Row],[ДАТА НАЧАЛА]])*(Праздники[праздники]<=(Перечень[[#This Row],[ДАТА НАЧАЛА]]+Перечень[[#This Row],[ДЛИТЕЛЬНОСТЬ]]-1))),Перечень[[#This Row],[ДАТА НАЧАЛА]]+Перечень[[#This Row],[ДЛИТЕЛЬНОСТЬ]]-1),\"\")","v":""}]
[null,null,null,null,null,{"$f":"IF(ISNUMBER(Перечень[[#This Row],[ДЛИТЕЛЬНОСТЬ]]),IF(Перечень[[#This Row],[ОСНОВАНИЕ]]=\"ОТ (отпуск)\",Перечень[[#This Row],[ДАТА НАЧАЛА]]+Перечень[[#This Row],[ДЛИТЕЛЬНОСТЬ]]-1+SUMPRODUCT((Праздники[праздники]>=Перечень[[#This Row],[ДАТА НАЧАЛА]])*(Праздники[праздники]<=(Перечень[[#This Row],[ДАТА НАЧАЛА]]+Перечень[[#This Row],[ДЛИТЕЛЬНОСТЬ]]-1))),Перечень[[#This Row],[ДАТА НАЧАЛА]]+Перечень[[#This Row],[ДЛИТЕЛЬНОСТЬ]]-1),\"\")","v":""}]
[null,null,null,null,null,{"$f":"IF(ISNUMBER(Перечень[[#This Row],[ДЛИТЕЛЬНОСТЬ]]),IF(Перечень[[#This Row],[ОСНОВАНИЕ]]=\"ОТ (отпуск)\",Перечень[[#This Row],[ДАТА НАЧАЛА]]+Перечень[[#This Row],[ДЛИТЕЛЬНОСТЬ]]-1+SUMPRODUCT((Праздники[праздники]>=Перечень[[#This Row],[ДАТА НАЧАЛА]])*(Праздники[праздники]<=(Перечень[[#This Row],[ДАТА НАЧАЛА]]+Перечень[[#This Row],[ДЛИТЕЛЬНОСТЬ]]-1))),Перечень[[#This Row],[ДАТА НАЧАЛА]]+Перечень[[#This Row],[ДЛИТЕЛЬНОСТЬ]]-1),\"\")","v":""}]
[null,null,null,null,null,{"$f":"IF(ISNUMBER(Перечень[[#This Row],[ДЛИТЕЛЬНОСТЬ]]),IF(Перечень[[#This Row],[ОСНОВАНИЕ]]=\"ОТ (отпуск)\",Перечень[[#This Row],[ДАТА НАЧАЛА]]+Перечень[[#This Row],[ДЛИТЕЛЬНОСТЬ]]-1+SUMPRODUCT((Праздники[праздники]>=Перечень[[#This Row],[ДАТА НАЧАЛА]])*(Праздники[праздники]<=(Перечень[[#This Row],[ДАТА НАЧАЛА]]+Перечень[[#This Row],[ДЛИТЕЛЬНОСТЬ]]-1))),Перечень[[#This Row],[ДАТА НАЧАЛА]]+Перечень[[#This Row],[ДЛИТЕЛЬНОСТЬ]]-1),\"\")","v":""}]
[null,null,null,null,null,{"$f":"IF(ISNUMBER(Перечень[[#This Row],[ДЛИТЕЛЬНОСТЬ]]),IF(Перечень[[#This Row],[ОСНОВАНИЕ]]=\"ОТ (отпуск)\",Перечень[[#This Row],[ДАТА НАЧАЛА]]+Перечень[[#This Row],[ДЛИТЕЛЬНОСТЬ]]-1+SUMPRODUCT((Праздники[праздники]>=Перечень[[#This Row],[ДАТА НАЧАЛА]])*(Праздники[праздники]<=(Перечень[[#This Row],[ДАТА НАЧАЛА]]+Перечень[[#This Row],[ДЛИТЕЛЬНОСТЬ]]-1))),Перечень[[#This Row],[ДАТА НАЧАЛА]]+Перечень[[#This Row],[ДЛИТЕЛЬНОСТЬ]]-1),\"\")","v":""}]
[null,null,null,null,null,{"$f":"IF(ISNUMBER(Перечень[[#This Row],[ДЛИТЕЛЬНОСТЬ]]),IF(Перечень[[#This Row],[ОСНОВАНИЕ]]=\"ОТ (отпуск)\",Перечень[[#This Row],[ДАТА НАЧАЛА]]+Перечень[[#This Row],[ДЛИТЕЛЬНОСТЬ]]-1+SUMPRODUCT((Праздники[праздники]>=Перечень[[#This Row],[ДАТА НАЧАЛА]])*(Праздники[праздники]<=(Перечень[[#This Row],[ДАТА НАЧАЛА]]+Перечень[[#This Row],[ДЛИТЕЛЬНОСТЬ]]-1))),Перечень[[#This Row],[ДАТА НАЧАЛА]]+Перечень[[#This Row],[ДЛИТЕЛЬНОСТЬ]]-1),\"\")","v":""}]
[null,null,null,null,null,{"$f":"IF(ISNUMBER(Перечень[[#This Row],[ДЛИТЕЛЬНОСТЬ]]),IF(Перечень[[#This Row],[ОСНОВАНИЕ]]=\"ОТ (отпуск)\",Перечень[[#This Row],[ДАТА НАЧАЛА]]+Перечень[[#This Row],[ДЛИТЕЛЬНОСТЬ]]-1+SUMPRODUCT((Праздники[праздники]>=Перечень[[#This Row],[ДАТА НАЧАЛА]])*(Праздники[праздники]<=(Перечень[[#This Row],[ДАТА НАЧАЛА]]+Перечень[[#This Row],[ДЛИТЕЛЬНОСТЬ]]-1))),Перечень[[#This Row],[ДАТА НАЧАЛА]]+Перечень[[#This Row],[ДЛИТЕЛЬНОСТЬ]]-1),\"\")","v":""}]
[null,null,null,null,null,{"$f":"IF(ISNUMBER(Перечень[[#This Row],[ДЛИТЕЛЬНОСТЬ]]),IF(Перечень[[#This Row],[ОСНОВАНИЕ]]=\"ОТ (отпуск)\",Перечень[[#This Row],[ДАТА НАЧАЛА]]+Перечень[[#This Row],[ДЛИТЕЛЬНОСТЬ]]-1+SUMPRODUCT((Праздники[праздники]>=Перечень[[#This Row],[ДАТА НАЧАЛА]])*(Праздники[праздники]<=(Перечень[[#This Row],[ДАТА НАЧАЛА]]+Перечень[[#This Row],[ДЛИТЕЛЬНОСТЬ]]-1))),Перечень[[#This Row],[ДАТА НАЧАЛА]]+Перечень[[#This Row],[ДЛИТЕЛЬНОСТЬ]]-1),\"\")","v":""}]
[null,null,null,null,null,{"$f":"IF(ISNUMBER(Перечень[[#This Row],[ДЛИТЕЛЬНОСТЬ]]),IF(Перечень[[#This Row],[ОСНОВАНИЕ]]=\"ОТ (отпуск)\",Перечень[[#This Row],[ДАТА НАЧАЛА]]+Перечень[[#This Row],[ДЛИТЕЛЬНОСТЬ]]-1+SUMPRODUCT((Праздники[праздники]>=Перечень[[#This Row],[ДАТА НАЧАЛА]])*(Праздники[праздники]<=(Перечень[[#This Row],[ДАТА НАЧАЛА]]+Перечень[[#This Row],[ДЛИТЕЛЬНОСТЬ]]-1))),Перечень[[#This Row],[ДАТА НАЧАЛА]]+Перечень[[#This Row],[ДЛИТЕЛЬНОСТЬ]]-1),\"\")","v":""}]
[null,null,null,null,null,{"$f":"IF(ISNUMBER(Перечень[[#This Row],[ДЛИТЕЛЬНОСТЬ]]),IF(Перечень[[#This Row],[ОСНОВАНИЕ]]=\"ОТ (отпуск)\",Перечень[[#This Row],[ДАТА НАЧАЛА]]+Перечень[[#This Row],[ДЛИТЕЛЬНОСТЬ]]-1+SUMPRODUCT((Праздники[праздники]>=Перечень[[#This Row],[ДАТА НАЧАЛА]])*(Праздники[праздники]<=(Перечень[[#This Row],[ДАТА НАЧАЛА]]+Перечень[[#This Row],[ДЛИТЕЛЬНОСТЬ]]-1))),Перечень[[#This Row],[ДАТА НАЧАЛА]]+Перечень[[#This Row],[ДЛИТЕЛЬНОСТЬ]]-1),\"\")","v":""}]
[null,null,null,null,null,{"$f":"IF(ISNUMBER(Перечень[[#This Row],[ДЛИТЕЛЬНОСТЬ]]),IF(Перечень[[#This Row],[ОСНОВАНИЕ]]=\"ОТ (отпуск)\",Перечень[[#This Row],[ДАТА НАЧАЛА]]+Перечень[[#This Row],[ДЛИТЕЛЬНОСТЬ]]-1+SUMPRODUCT((Праздники[праздники]>=Перечень[[#This Row],[ДАТА НАЧАЛА]])*(Праздники[праздники]<=(Перечень[[#This Row],[ДАТА НАЧАЛА]]+Перечень[[#This Row],[ДЛИТЕЛЬНОСТЬ]]-1))),Перечень[[#This Row],[ДАТА НАЧАЛА]]+Перечень[[#This Row],[ДЛИТЕЛЬНОСТЬ]]-1),\"\")","v":""}]
[null,null,null,null,null,{"$f":"IF(ISNUMBER(Перечень[[#This Row],[ДЛИТЕЛЬНОСТЬ]]),IF(Перечень[[#This Row],[ОСНОВАНИЕ]]=\"ОТ (отпуск)\",Перечень[[#This Row],[ДАТА НАЧАЛА]]+Перечень[[#This Row],[ДЛИТЕЛЬНОСТЬ]]-1+SUMPRODUCT((Праздники[праздники]>=Перечень[[#This Row],[ДАТА НАЧАЛА]])*(Праздники[праздники]<=(Перечень[[#This Row],[ДАТА НАЧАЛА]]+Перечень[[#This Row],[ДЛИТЕЛЬНОСТЬ]]-1))),Перечень[[#This Row],[ДАТА НАЧАЛА]]+Перечень[[#This Row],[ДЛИТЕЛЬНОСТЬ]]-1),\"\")","v":""}]
[null,null,null,null,null,{"$f":"IF(ISNUMBER(Перечень[[#This Row],[ДЛИТЕЛЬНОСТЬ]]),IF(Перечень[[#This Row],[ОСНОВАНИЕ]]=\"ОТ (отпуск)\",Перечень[[#This Row],[ДАТА НАЧАЛА]]+Перечень[[#This Row],[ДЛИТЕЛЬНОСТЬ]]-1+SUMPRODUCT((Праздники[праздники]>=Перечень[[#This Row],[ДАТА НАЧАЛА]])*(Праздники[праздники]<=(Перечень[[#This Row],[ДАТА НАЧАЛА]]+Перечень[[#This Row],[ДЛИТЕЛЬНОСТЬ]]-1))),Перечень[[#This Row],[ДАТА НАЧАЛА]]+Перечень[[#This Row],[ДЛИТЕЛЬНОСТЬ]]-1),\"\")","v":""}]
[null,null,null,null,null,{"$f":"IF(ISNUMBER(Перечень[[#This Row],[ДЛИТЕЛЬНОСТЬ]]),IF(Перечень[[#This Row],[ОСНОВАНИЕ]]=\"ОТ (отпуск)\",Перечень[[#This Row],[ДАТА НАЧАЛА]]+Перечень[[#This Row],[ДЛИТЕЛЬНОСТЬ]]-1+SUMPRODUCT((Праздники[праздники]>=Перечень[[#This Row],[ДАТА НАЧАЛА]])*(Праздники[праздники]<=(Перечень[[#This Row],[ДАТА НАЧАЛА]]+Перечень[[#This Row],[ДЛИТЕЛЬНОСТЬ]]-1))),Перечень[[#This Row],[ДАТА НАЧАЛА]]+Перечень[[#This Row],[ДЛИТЕЛЬНОСТЬ]]-1),\"\")","v":""}]
[null,null,null,null,null,{"$f":"IF(ISNUMBER(Перечень[[#This Row],[ДЛИТЕЛЬНОСТЬ]]),IF(Перечень[[#This Row],[ОСНОВАНИЕ]]=\"ОТ (отпуск)\",Перечень[[#This Row],[ДАТА НАЧАЛА]]+Перечень[[#This Row],[ДЛИТЕЛЬНОСТЬ]]-1+SUMPRODUCT((Праздники[праздники]>=Перечень[[#This Row],[ДАТА НАЧАЛА]])*(Праздники[праздники]<=(Перечень[[#This Row],[ДАТА НАЧАЛА]]+Перечень[[#This Row],[ДЛИТЕЛЬНОСТЬ]]-1))),Перечень[[#This Row],[ДАТА НАЧАЛА]]+Перечень[[#This Row],[ДЛИТЕЛЬНОСТЬ]]-1),\"\")","v":""}]
[null,null,null,null,null,{"$f":"IF(ISNUMBER(Перечень[[#This Row],[ДЛИТЕЛЬНОСТЬ]]),IF(Перечень[[#This Row],[ОСНОВАНИЕ]]=\"ОТ (отпуск)\",Перечень[[#This Row],[ДАТА НАЧАЛА]]+Перечень[[#This Row],[ДЛИТЕЛЬНОСТЬ]]-1+SUMPRODUCT((Праздники[праздники]>=Перечень[[#This Row],[ДАТА НАЧАЛА]])*(Праздники[праздники]<=(Перечень[[#This Row],[ДАТА НАЧАЛА]]+Перечень[[#This Row],[ДЛИТЕЛЬНОСТЬ]]-1))),Перечень[[#This Row],[ДАТА НАЧАЛА]]+Перечень[[#This Row],[ДЛИТЕЛЬНОСТЬ]]-1),\"\")","v":""}]
[null,null,null,null,null,{"$f":"IF(ISNUMBER(Перечень[[#This Row],[ДЛИТЕЛЬНОСТЬ]]),IF(Перечень[[#This Row],[ОСНОВАНИЕ]]=\"ОТ (отпуск)\",Перечень[[#This Row],[ДАТА НАЧАЛА]]+Перечень[[#This Row],[ДЛИТЕЛЬНОСТЬ]]-1+SUMPRODUCT((Праздники[праздники]>=Перечень[[#This Row],[ДАТА НАЧАЛА]])*(Праздники[праздники]<=(Перечень[[#This Row],[ДАТА НАЧАЛА]]+Перечень[[#This Row],[ДЛИТЕЛЬНОСТЬ]]-1))),Перечень[[#This Row],[ДАТА НАЧАЛА]]+Перечень[[#This Row],[ДЛИТЕЛЬНОСТЬ]]-1),\"\")","v":""}]
[null,null,null,null,null,{"$f":"IF(ISNUMBER(Перечень[[#This Row],[ДЛИТЕЛЬНОСТЬ]]),IF(Перечень[[#This Row],[ОСНОВАНИЕ]]=\"ОТ (отпуск)\",Перечень[[#This Row],[ДАТА НАЧАЛА]]+Перечень[[#This Row],[ДЛИТЕЛЬНОСТЬ]]-1+SUMPRODUCT((Праздники[праздники]>=Перечень[[#This Row],[ДАТА НАЧАЛА]])*(Праздники[праздники]<=(Перечень[[#This Row],[ДАТА НАЧАЛА]]+Перечень[[#This Row],[ДЛИТЕЛЬНОСТЬ]]-1))),Перечень[[#This Row],[ДАТА НАЧАЛА]]+Перечень[[#This Row],[ДЛИТЕЛЬНОСТЬ]]-1),\"\")","v":""}]
[null,null,null,null,null,{"$f":"IF(ISNUMBER(Перечень[[#This Row],[ДЛИТЕЛЬНОСТЬ]]),IF(Перечень[[#This Row],[ОСНОВАНИЕ]]=\"ОТ (отпуск)\",Перечень[[#This Row],[ДАТА НАЧАЛА]]+Перечень[[#This Row],[ДЛИТЕЛЬНОСТЬ]]-1+SUMPRODUCT((Праздники[праздники]>=Перечень[[#This Row],[ДАТА НАЧАЛА]])*(Праздники[праздники]<=(Перечень[[#This Row],[ДАТА НАЧАЛА]]+Перечень[[#This Row],[ДЛИТЕЛЬНОСТЬ]]-1))),Перечень[[#This Row],[ДАТА НАЧАЛА]]+Перечень[[#This Row],[ДЛИТЕЛЬНОСТЬ]]-1),\"\")","v":""}]
[null,null,null,null,null,{"$f":"IF(ISNUMBER(Перечень[[#This Row],[ДЛИТЕЛЬНОСТЬ]]),IF(Перечень[[#This Row],[ОСНОВАНИЕ]]=\"ОТ (отпуск)\",Перечень[[#This Row],[ДАТА НАЧАЛА]]+Перечень[[#This Row],[ДЛИТЕЛЬНОСТЬ]]-1+SUMPRODUCT((Праздники[праздники]>=Перечень[[#This Row],[ДАТА НАЧАЛА]])*(Праздники[праздники]<=(Перечень[[#This Row],[ДАТА НАЧАЛА]]+Перечень[[#This Row],[ДЛИТЕЛЬНОСТЬ]]-1))),Перечень[[#This Row],[ДАТА НАЧАЛА]]+Перечень[[#This Row],[ДЛИТЕЛЬНОСТЬ]]-1),\"\")","v":""}]
[null,null,null,null,null,{"$f":"IF(ISNUMBER(Перечень[[#This Row],[ДЛИТЕЛЬНОСТЬ]]),IF(Перечень[[#This Row],[ОСНОВАНИЕ]]=\"ОТ (отпуск)\",Перечень[[#This Row],[ДАТА НАЧАЛА]]+Перечень[[#This Row],[ДЛИТЕЛЬНОСТЬ]]-1+SUMPRODUCT((Праздники[праздники]>=Перечень[[#This Row],[ДАТА НАЧАЛА]])*(Праздники[праздники]<=(Перечень[[#This Row],[ДАТА НАЧАЛА]]+Перечень[[#This Row],[ДЛИТЕЛЬНОСТЬ]]-1))),Перечень[[#This Row],[ДАТА НАЧАЛА]]+Перечень[[#This Row],[ДЛИТЕЛЬНОСТЬ]]-1),\"\")","v":""}]
[null,null,null,null,null,{"$f":"IF(ISNUMBER(Перечень[[#This Row],[ДЛИТЕЛЬНОСТЬ]]),IF(Перечень[[#This Row],[ОСНОВАНИЕ]]=\"ОТ (отпуск)\",Перечень[[#This Row],[ДАТА НАЧАЛА]]+Перечень[[#This Row],[ДЛИТЕЛЬНОСТЬ]]-1+SUMPRODUCT((Праздники[праздники]>=Перечень[[#This Row],[ДАТА НАЧАЛА]])*(Праздники[праздники]<=(Перечень[[#This Row],[ДАТА НАЧАЛА]]+Перечень[[#This Row],[ДЛИТЕЛЬНОСТЬ]]-1))),Перечень[[#This Row],[ДАТА НАЧАЛА]]+Перечень[[#This Row],[ДЛИТЕЛЬНОСТЬ]]-1),\"\")","v":""}]
[null,null,null,null,null,{"$f":"IF(ISNUMBER(Перечень[[#This Row],[ДЛИТЕЛЬНОСТЬ]]),IF(Перечень[[#This Row],[ОСНОВАНИЕ]]=\"ОТ (отпуск)\",Перечень[[#This Row],[ДАТА НАЧАЛА]]+Перечень[[#This Row],[ДЛИТЕЛЬНОСТЬ]]-1+SUMPRODUCT((Праздники[праздники]>=Перечень[[#This Row],[ДАТА НАЧАЛА]])*(Праздники[праздники]<=(Перечень[[#This Row],[ДАТА НАЧАЛА]]+Перечень[[#This Row],[ДЛИТЕЛЬНОСТЬ]]-1))),Перечень[[#This Row],[ДАТА НАЧАЛА]]+Перечень[[#This Row],[ДЛИТЕЛЬНОСТЬ]]-1),\"\")","v":""}]
[null,null,null,null,null,{"$f":"IF(ISNUMBER(Перечень[[#This Row],[ДЛИТЕЛЬНОСТЬ]]),IF(Перечень[[#This Row],[ОСНОВАНИЕ]]=\"ОТ (отпуск)\",Перечень[[#This Row],[ДАТА НАЧАЛА]]+Перечень[[#This Row],[ДЛИТЕЛЬНОСТЬ]]-1+SUMPRODUCT((Праздники[праздники]>=Перечень[[#This Row],[ДАТА НАЧАЛА]])*(Праздники[праздники]<=(Перечень[[#This Row],[ДАТА НАЧАЛА]]+Перечень[[#This Row],[ДЛИТЕЛЬНОСТЬ]]-1))),Перечень[[#This Row],[ДАТА НАЧАЛА]]+Перечень[[#This Row],[ДЛИТЕЛЬНОСТЬ]]-1),\"\")","v":""}]
[null,null,null,null,null,{"$f":"IF(ISNUMBER(Перечень[[#This Row],[ДЛИТЕЛЬНОСТЬ]]),IF(Перечень[[#This Row],[ОСНОВАНИЕ]]=\"ОТ (отпуск)\",Перечень[[#This Row],[ДАТА НАЧАЛА]]+Перечень[[#This Row],[ДЛИТЕЛЬНОСТЬ]]-1+SUMPRODUCT((Праздники[праздники]>=Перечень[[#This Row],[ДАТА НАЧАЛА]])*(Праздники[праздники]<=(Перечень[[#This Row],[ДАТА НАЧАЛА]]+Перечень[[#This Row],[ДЛИТЕЛЬНОСТЬ]]-1))),Перечень[[#This Row],[ДАТА НАЧАЛА]]+Перечень[[#This Row],[ДЛИТЕЛЬНОСТЬ]]-1),\"\")","v":""}]
[null,null,null,null,null,{"$f":"IF(ISNUMBER(Перечень[[#This Row],[ДЛИТЕЛЬНОСТЬ]]),IF(Перечень[[#This Row],[ОСНОВАНИЕ]]=\"ОТ (отпуск)\",Перечень[[#This Row],[ДАТА НАЧАЛА]]+Перечень[[#This Row],[ДЛИТЕЛЬНОСТЬ]]-1+SUMPRODUCT((Праздники[праздники]>=Перечень[[#This Row],[ДАТА НАЧАЛА]])*(Праздники[праздники]<=(Перечень[[#This Row],[ДАТА НАЧАЛА]]+Перечень[[#This Row],[ДЛИТЕЛЬНОСТЬ]]-1))),Перечень[[#This Row],[ДАТА НАЧАЛА]]+Перечень[[#This Row],[ДЛИТЕЛЬНОСТЬ]]-1),\"\")","v":""}]
[null,null,null,null,null,{"$f":"IF(ISNUMBER(Перечень[[#This Row],[ДЛИТЕЛЬНОСТЬ]]),IF(Перечень[[#This Row],[ОСНОВАНИЕ]]=\"ОТ (отпуск)\",Перечень[[#This Row],[ДАТА НАЧАЛА]]+Перечень[[#This Row],[ДЛИТЕЛЬНОСТЬ]]-1+SUMPRODUCT((Праздники[праздники]>=Перечень[[#This Row],[ДАТА НАЧАЛА]])*(Праздники[праздники]<=(Перечень[[#This Row],[ДАТА НАЧАЛА]]+Перечень[[#This Row],[ДЛИТЕЛЬНОСТЬ]]-1))),Перечень[[#This Row],[ДАТА НАЧАЛА]]+Перечень[[#This Row],[ДЛИТЕЛЬНОСТЬ]]-1),\"\")","v":""}]
[null,null,null,null,null,{"$f":"IF(ISNUMBER(Перечень[[#This Row],[ДЛИТЕЛЬНОСТЬ]]),IF(Перечень[[#This Row],[ОСНОВАНИЕ]]=\"ОТ (отпуск)\",Перечень[[#This Row],[ДАТА НАЧАЛА]]+Перечень[[#This Row],[ДЛИТЕЛЬНОСТЬ]]-1+SUMPRODUCT((Праздники[праздники]>=Перечень[[#This Row],[ДАТА НАЧАЛА]])*(Праздники[праздники]<=(Перечень[[#This Row],[ДАТА НАЧАЛА]]+Перечень[[#This Row],[ДЛИТЕЛЬНОСТЬ]]-1))),Перечень[[#This Row],[ДАТА НАЧАЛА]]+Перечень[[#This Row],[ДЛИТЕЛЬНОСТЬ]]-1),\"\")","v":""}]
[null,null,null,null,null,{"$f":"IF(ISNUMBER(Перечень[[#This Row],[ДЛИТЕЛЬНОСТЬ]]),IF(Перечень[[#This Row],[ОСНОВАНИЕ]]=\"ОТ (отпуск)\",Перечень[[#This Row],[ДАТА НАЧАЛА]]+Перечень[[#This Row],[ДЛИТЕЛЬНОСТЬ]]-1+SUMPRODUCT((Праздники[праздники]>=Перечень[[#This Row],[ДАТА НАЧАЛА]])*(Праздники[праздники]<=(Перечень[[#This Row],[ДАТА НАЧАЛА]]+Перечень[[#This Row],[ДЛИТЕЛЬНОСТЬ]]-1))),Перечень[[#This Row],[ДАТА НАЧАЛА]]+Перечень[[#This Row],[ДЛИТЕЛЬНОСТЬ]]-1),\"\")","v":""}]
[null,null,null,null,null,{"$f":"IF(ISNUMBER(Перечень[[#This Row],[ДЛИТЕЛЬНОСТЬ]]),IF(Перечень[[#This Row],[ОСНОВАНИЕ]]=\"ОТ (отпуск)\",Перечень[[#This Row],[ДАТА НАЧАЛА]]+Перечень[[#This Row],[ДЛИТЕЛЬНОСТЬ]]-1+SUMPRODUCT((Праздники[праздники]>=Перечень[[#This Row],[ДАТА НАЧАЛА]])*(Праздники[праздники]<=(Перечень[[#This Row],[ДАТА НАЧАЛА]]+Перечень[[#This Row],[ДЛИТЕЛЬНОСТЬ]]-1))),Перечень[[#This Row],[ДАТА НАЧАЛА]]+Перечень[[#This Row],[ДЛИТЕЛЬНОСТЬ]]-1),\"\")","v":""}]
[null,null,null,null,null,{"$f":"IF(ISNUMBER(Перечень[[#This Row],[ДЛИТЕЛЬНОСТЬ]]),IF(Перечень[[#This Row],[ОСНОВАНИЕ]]=\"ОТ (отпуск)\",Перечень[[#This Row],[ДАТА НАЧАЛА]]+Перечень[[#This Row],[ДЛИТЕЛЬНОСТЬ]]-1+SUMPRODUCT((Праздники[праздники]>=Перечень[[#This Row],[ДАТА НАЧАЛА]])*(Праздники[праздники]<=(Перечень[[#This Row],[ДАТА НАЧАЛА]]+Перечень[[#This Row],[ДЛИТЕЛЬНОСТЬ]]-1))),Перечень[[#This Row],[ДАТА НАЧАЛА]]+Перечень[[#This Row],[ДЛИТЕЛЬНОСТЬ]]-1),\"\")","v":""}]
[null,null,null,null,null,{"$f":"IF(ISNUMBER(Перечень[[#This Row],[ДЛИТЕЛЬНОСТЬ]]),IF(Перечень[[#This Row],[ОСНОВАНИЕ]]=\"ОТ (отпуск)\",Перечень[[#This Row],[ДАТА НАЧАЛА]]+Перечень[[#This Row],[ДЛИТЕЛЬНОСТЬ]]-1+SUMPRODUCT((Праздники[праздники]>=Перечень[[#This Row],[ДАТА НАЧАЛА]])*(Праздники[праздники]<=(Перечень[[#This Row],[ДАТА НАЧАЛА]]+Перечень[[#This Row],[ДЛИТЕЛЬНОСТЬ]]-1))),Перечень[[#This Row],[ДАТА НАЧАЛА]]+Перечень[[#This Row],[ДЛИТЕЛЬНОСТЬ]]-1),\"\")","v":""}]
[null,null,null,null,null,{"$f":"IF(ISNUMBER(Перечень[[#This Row],[ДЛИТЕЛЬНОСТЬ]]),IF(Перечень[[#This Row],[ОСНОВАНИЕ]]=\"ОТ (отпуск)\",Перечень[[#This Row],[ДАТА НАЧАЛА]]+Перечень[[#This Row],[ДЛИТЕЛЬНОСТЬ]]-1+SUMPRODUCT((Праздники[праздники]>=Перечень[[#This Row],[ДАТА НАЧАЛА]])*(Праздники[праздники]<=(Перечень[[#This Row],[ДАТА НАЧАЛА]]+Перечень[[#This Row],[ДЛИТЕЛЬНОСТЬ]]-1))),Перечень[[#This Row],[ДАТА НАЧАЛА]]+Перечень[[#This Row],[ДЛИТЕЛЬНОСТЬ]]-1),\"\")","v":""}]
[null,null,null,null,null,{"$f":"IF(ISNUMBER(Перечень[[#This Row],[ДЛИТЕЛЬНОСТЬ]]),IF(Перечень[[#This Row],[ОСНОВАНИЕ]]=\"ОТ (отпуск)\",Перечень[[#This Row],[ДАТА НАЧАЛА]]+Перечень[[#This Row],[ДЛИТЕЛЬНОСТЬ]]-1+SUMPRODUCT((Праздники[праздники]>=Перечень[[#This Row],[ДАТА НАЧАЛА]])*(Праздники[праздники]<=(Перечень[[#This Row],[ДАТА НАЧАЛА]]+Перечень[[#This Row],[ДЛИТЕЛЬНОСТЬ]]-1))),Перечень[[#This Row],[ДАТА НАЧАЛА]]+Перечень[[#This Row],[ДЛИТЕЛЬНОСТЬ]]-1),\"\")","v":""}]
[null,null,null,null,null,{"$f":"IF(ISNUMBER(Перечень[[#This Row],[ДЛИТЕЛЬНОСТЬ]]),IF(Перечень[[#This Row],[ОСНОВАНИЕ]]=\"ОТ (отпуск)\",Перечень[[#This Row],[ДАТА НАЧАЛА]]+Перечень[[#This Row],[ДЛИТЕЛЬНОСТЬ]]-1+SUMPRODUCT((Праздники[праздники]>=Перечень[[#This Row],[ДАТА НАЧАЛА]])*(Праздники[праздники]<=(Перечень[[#This Row],[ДАТА НАЧАЛА]]+Перечень[[#This Row],[ДЛИТЕЛЬНОСТЬ]]-1))),Перечень[[#This Row],[ДАТА НАЧАЛА]]+Перечень[[#This Row],[ДЛИТЕЛЬНОСТЬ]]-1),\"\")","v":""}]
[null,null,null,null,null,{"$f":"IF(ISNUMBER(Перечень[[#This Row],[ДЛИТЕЛЬНОСТЬ]]),IF(Перечень[[#This Row],[ОСНОВАНИЕ]]=\"ОТ (отпуск)\",Перечень[[#This Row],[ДАТА НАЧАЛА]]+Перечень[[#This Row],[ДЛИТЕЛЬНОСТЬ]]-1+SUMPRODUCT((Праздники[праздники]>=Перечень[[#This Row],[ДАТА НАЧАЛА]])*(Праздники[праздники]<=(Перечень[[#This Row],[ДАТА НАЧАЛА]]+Перечень[[#This Row],[ДЛИТЕЛЬНОСТЬ]]-1))),Перечень[[#This Row],[ДАТА НАЧАЛА]]+Перечень[[#This Row],[ДЛИТЕЛЬНОСТЬ]]-1),\"\")","v":""}]
[null,null,null,null,null,{"$f":"IF(ISNUMBER(Перечень[[#This Row],[ДЛИТЕЛЬНОСТЬ]]),IF(Перечень[[#This Row],[ОСНОВАНИЕ]]=\"ОТ (отпуск)\",Перечень[[#This Row],[ДАТА НАЧАЛА]]+Перечень[[#This Row],[ДЛИТЕЛЬНОСТЬ]]-1+SUMPRODUCT((Праздники[праздники]>=Перечень[[#This Row],[ДАТА НАЧАЛА]])*(Праздники[праздники]<=(Перечень[[#This Row],[ДАТА НАЧАЛА]]+Перечень[[#This Row],[ДЛИТЕЛЬНОСТЬ]]-1))),Перечень[[#This Row],[ДАТА НАЧАЛА]]+Перечень[[#This Row],[ДЛИТЕЛЬНОСТЬ]]-1),\"\")","v":""}]
[null,null,null,null,null,{"$f":"IF(ISNUMBER(Перечень[[#This Row],[ДЛИТЕЛЬНОСТЬ]]),IF(Перечень[[#This Row],[ОСНОВАНИЕ]]=\"ОТ (отпуск)\",Перечень[[#This Row],[ДАТА НАЧАЛА]]+Перечень[[#This Row],[ДЛИТЕЛЬНОСТЬ]]-1+SUMPRODUCT((Праздники[праздники]>=Перечень[[#This Row],[ДАТА НАЧАЛА]])*(Праздники[праздники]<=(Перечень[[#This Row],[ДАТА НАЧАЛА]]+Перечень[[#This Row],[ДЛИТЕЛЬНОСТЬ]]-1))),Перечень[[#This Row],[ДАТА НАЧАЛА]]+Перечень[[#This Row],[ДЛИТЕЛЬНОСТЬ]]-1),\"\")","v":""}]
[null,null,null,null,null,{"$f":"IF(ISNUMBER(Перечень[[#This Row],[ДЛИТЕЛЬНОСТЬ]]),IF(Перечень[[#This Row],[ОСНОВАНИЕ]]=\"ОТ (отпуск)\",Перечень[[#This Row],[ДАТА НАЧАЛА]]+Перечень[[#This Row],[ДЛИТЕЛЬНОСТЬ]]-1+SUMPRODUCT((Праздники[праздники]>=Перечень[[#This Row],[ДАТА НАЧАЛА]])*(Праздники[праздники]<=(Перечень[[#This Row],[ДАТА НАЧАЛА]]+Перечень[[#This Row],[ДЛИТЕЛЬНОСТЬ]]-1))),Перечень[[#This Row],[ДАТА НАЧАЛА]]+Перечень[[#This Row],[ДЛИТЕЛЬНОСТЬ]]-1),\"\")","v":""}]
[null,null,null,null,null,{"$f":"IF(ISNUMBER(Перечень[[#This Row],[ДЛИТЕЛЬНОСТЬ]]),IF(Перечень[[#This Row],[ОСНОВАНИЕ]]=\"ОТ (отпуск)\",Перечень[[#This Row],[ДАТА НАЧАЛА]]+Перечень[[#This Row],[ДЛИТЕЛЬНОСТЬ]]-1+SUMPRODUCT((Праздники[праздники]>=Перечень[[#This Row],[ДАТА НАЧАЛА]])*(Праздники[праздники]<=(Перечень[[#This Row],[ДАТА НАЧАЛА]]+Перечень[[#This Row],[ДЛИТЕЛЬНОСТЬ]]-1))),Перечень[[#This Row],[ДАТА НАЧАЛА]]+Перечень[[#This Row],[ДЛИТЕЛЬНОСТЬ]]-1),\"\")","v":""}]
[null,null,null,null,null,{"$f":"IF(ISNUMBER(Перечень[[#This Row],[ДЛИТЕЛЬНОСТЬ]]),IF(Перечень[[#This Row],[ОСНОВАНИЕ]]=\"ОТ (отпуск)\",Перечень[[#This Row],[ДАТА НАЧАЛА]]+Перечень[[#This Row],[ДЛИТЕЛЬНОСТЬ]]-1+SUMPRODUCT((Праздники[праздники]>=Перечень[[#This Row],[ДАТА НАЧАЛА]])*(Праздники[праздники]<=(Перечень[[#This Row],[ДАТА НАЧАЛА]]+Перечень[[#This Row],[ДЛИТЕЛЬНОСТЬ]]-1))),Перечень[[#This Row],[ДАТА НАЧАЛА]]+Перечень[[#This Row],[ДЛИТЕЛЬНОСТЬ]]-1),\"\")","v":""}]
[null,null,null,null,null,{"$f":"IF(ISNUMBER(Перечень[[#This Row],[ДЛИТЕЛЬНОСТЬ]]),IF(Перечень[[#This Row],[ОСНОВАНИЕ]]=\"ОТ (отпуск)\",Перечень[[#This Row],[ДАТА НАЧАЛА]]+Перечень[[#This Row],[ДЛИТЕЛЬНОСТЬ]]-1+SUMPRODUCT((Праздники[праздники]>=Перечень[[#This Row],[ДАТА НАЧАЛА]])*(Праздники[праздники]<=(Перечень[[#This Row],[ДАТА НАЧАЛА]]+Перечень[[#This Row],[ДЛИТЕЛЬНОСТЬ]]-1))),Перечень[[#This Row],[ДАТА НАЧАЛА]]+Перечень[[#This Row],[ДЛИТЕЛЬНОСТЬ]]-1),\"\")","v":""}]
[null,null,null,null,null,{"$f":"IF(ISNUMBER(Перечень[[#This Row],[ДЛИТЕЛЬНОСТЬ]]),IF(Перечень[[#This Row],[ОСНОВАНИЕ]]=\"ОТ (отпуск)\",Перечень[[#This Row],[ДАТА НАЧАЛА]]+Перечень[[#This Row],[ДЛИТЕЛЬНОСТЬ]]-1+SUMPRODUCT((Праздники[праздники]>=Перечень[[#This Row],[ДАТА НАЧАЛА]])*(Праздники[праздники]<=(Перечень[[#This Row],[ДАТА НАЧАЛА]]+Перечень[[#This Row],[ДЛИТЕЛЬНОСТЬ]]-1))),Перечень[[#This Row],[ДАТА НАЧАЛА]]+Перечень[[#This Row],[ДЛИТЕЛЬНОСТЬ]]-1),\"\")","v":""}]
[null,null,null,null,null,{"$f":"IF(ISNUMBER(Перечень[[#This Row],[ДЛИТЕЛЬНОСТЬ]]),IF(Перечень[[#This Row],[ОСНОВАНИЕ]]=\"ОТ (отпуск)\",Перечень[[#This Row],[ДАТА НАЧАЛА]]+Перечень[[#This Row],[ДЛИТЕЛЬНОСТЬ]]-1+SUMPRODUCT((Праздники[праздники]>=Перечень[[#This Row],[ДАТА НАЧАЛА]])*(Праздники[праздники]<=(Перечень[[#This Row],[ДАТА НАЧАЛА]]+Перечень[[#This Row],[ДЛИТЕЛЬНОСТЬ]]-1))),Перечень[[#This Row],[ДАТА НАЧАЛА]]+Перечень[[#This Row],[ДЛИТЕЛЬНОСТЬ]]-1),\"\")","v":""}]
[null,null,null,null,null,{"$f":"IF(ISNUMBER(Перечень[[#This Row],[ДЛИТЕЛЬНОСТЬ]]),IF(Перечень[[#This Row],[ОСНОВАНИЕ]]=\"ОТ (отпуск)\",Перечень[[#This Row],[ДАТА НАЧАЛА]]+Перечень[[#This Row],[ДЛИТЕЛЬНОСТЬ]]-1+SUMPRODUCT((Праздники[праздники]>=Перечень[[#This Row],[ДАТА НАЧАЛА]])*(Праздники[праздники]<=(Перечень[[#This Row],[ДАТА НАЧАЛА]]+Перечень[[#This Row],[ДЛИТЕЛЬНОСТЬ]]-1))),Перечень[[#This Row],[ДАТА НАЧАЛА]]+Перечень[[#This Row],[ДЛИТЕЛЬНОСТЬ]]-1),\"\")","v":""}]
[null,null,null,null,null,{"$f":"IF(ISNUMBER(Перечень[[#This Row],[ДЛИТЕЛЬНОСТЬ]]),IF(Перечень[[#This Row],[ОСНОВАНИЕ]]=\"ОТ (отпуск)\",Перечень[[#This Row],[ДАТА НАЧАЛА]]+Перечень[[#This Row],[ДЛИТЕЛЬНОСТЬ]]-1+SUMPRODUCT((Праздники[праздники]>=Перечень[[#This Row],[ДАТА НАЧАЛА]])*(Праздники[праздники]<=(Перечень[[#This Row],[ДАТА НАЧАЛА]]+Перечень[[#This Row],[ДЛИТЕЛЬНОСТЬ]]-1))),Перечень[[#This Row],[ДАТА НАЧАЛА]]+Перечень[[#This Row],[ДЛИТЕЛЬНОСТЬ]]-1),\"\")","v":""}]
[null,null,null,null,null,{"$f":"IF(ISNUMBER(Перечень[[#This Row],[ДЛИТЕЛЬНОСТЬ]]),IF(Перечень[[#This Row],[ОСНОВАНИЕ]]=\"ОТ (отпуск)\",Перечень[[#This Row],[ДАТА НАЧАЛА]]+Перечень[[#This Row],[ДЛИТЕЛЬНОСТЬ]]-1+SUMPRODUCT((Праздники[праздники]>=Перечень[[#This Row],[ДАТА НАЧАЛА]])*(Праздники[праздники]<=(Перечень[[#This Row],[ДАТА НАЧАЛА]]+Перечень[[#This Row],[ДЛИТЕЛЬНОСТЬ]]-1))),Перечень[[#This Row],[ДАТА НАЧАЛА]]+Перечень[[#This Row],[ДЛИТЕЛЬНОСТЬ]]-1),\"\")","v":""}]
[null,null,null,null,null,{"$f":"IF(ISNUMBER(Перечень[[#This Row],[ДЛИТЕЛЬНОСТЬ]]),IF(Перечень[[#This Row],[ОСНОВАНИЕ]]=\"ОТ (отпуск)\",Перечень[[#This Row],[ДАТА НАЧАЛА]]+Перечень[[#This Row],[ДЛИТЕЛЬНОСТЬ]]-1+SUMPRODUCT((Праздники[праздники]>=Перечень[[#This Row],[ДАТА НАЧАЛА]])*(Праздники[праздники]<=(Перечень[[#This Row],[ДАТА НАЧАЛА]]+Перечень[[#This Row],[ДЛИТЕЛЬНОСТЬ]]-1))),Перечень[[#This Row],[ДАТА НАЧАЛА]]+Перечень[[#This Row],[ДЛИТЕЛЬНОСТЬ]]-1),\"\")","v":""}]
[null,null,null,null,null,{"$f":"IF(ISNUMBER(Перечень[[#This Row],[ДЛИТЕЛЬНОСТЬ]]),IF(Перечень[[#This Row],[ОСНОВАНИЕ]]=\"ОТ (отпуск)\",Перечень[[#This Row],[ДАТА НАЧАЛА]]+Перечень[[#This Row],[ДЛИТЕЛЬНОСТЬ]]-1+SUMPRODUCT((Праздники[праздники]>=Перечень[[#This Row],[ДАТА НАЧАЛА]])*(Праздники[праздники]<=(Перечень[[#This Row],[ДАТА НАЧАЛА]]+Перечень[[#This Row],[ДЛИТЕЛЬНОСТЬ]]-1))),Перечень[[#This Row],[ДАТА НАЧАЛА]]+Перечень[[#This Row],[ДЛИТЕЛЬНОСТЬ]]-1),\"\")","v":""}]
[null,null,null,null,null,{"$f":"IF(ISNUMBER(Перечень[[#This Row],[ДЛИТЕЛЬНОСТЬ]]),IF(Перечень[[#This Row],[ОСНОВАНИЕ]]=\"ОТ (отпуск)\",Перечень[[#This Row],[ДАТА НАЧАЛА]]+Перечень[[#This Row],[ДЛИТЕЛЬНОСТЬ]]-1+SUMPRODUCT((Праздники[праздники]>=Перечень[[#This Row],[ДАТА НАЧАЛА]])*(Праздники[праздники]<=(Перечень[[#This Row],[ДАТА НАЧАЛА]]+Перечень[[#This Row],[ДЛИТЕЛЬНОСТЬ]]-1))),Перечень[[#This Row],[ДАТА НАЧАЛА]]+Перечень[[#This Row],[ДЛИТЕЛЬНОСТЬ]]-1),\"\")","v":""}]
[null,null,null,null,null,{"$f":"IF(ISNUMBER(Перечень[[#This Row],[ДЛИТЕЛЬНОСТЬ]]),IF(Перечень[[#This Row],[ОСНОВАНИЕ]]=\"ОТ (отпуск)\",Перечень[[#This Row],[ДАТА НАЧАЛА]]+Перечень[[#This Row],[ДЛИТЕЛЬНОСТЬ]]-1+SUMPRODUCT((Праздники[праздники]>=Перечень[[#This Row],[ДАТА НАЧАЛА]])*(Праздники[праздники]<=(Перечень[[#This Row],[ДАТА НАЧАЛА]]+Перечень[[#This Row],[ДЛИТЕЛЬНОСТЬ]]-1))),Перечень[[#This Row],[ДАТА НАЧАЛА]]+Перечень[[#This Row],[ДЛИТЕЛЬНОСТЬ]]-1),\"\")","v":""}]
[null,null,null,null,null,{"$f":"IF(ISNUMBER(Перечень[[#This Row],[ДЛИТЕЛЬНОСТЬ]]),IF(Перечень[[#This Row],[ОСНОВАНИЕ]]=\"ОТ (отпуск)\",Перечень[[#This Row],[ДАТА НАЧАЛА]]+Перечень[[#This Row],[ДЛИТЕЛЬНОСТЬ]]-1+SUMPRODUCT((Праздники[праздники]>=Перечень[[#This Row],[ДАТА НАЧАЛА]])*(Праздники[праздники]<=(Перечень[[#This Row],[ДАТА НАЧАЛА]]+Перечень[[#This Row],[ДЛИТЕЛЬНОСТЬ]]-1))),Перечень[[#This Row],[ДАТА НАЧАЛА]]+Перечень[[#This Row],[ДЛИТЕЛЬНОСТЬ]]-1),\"\")","v":""}]
[null,null,null,null,null,{"$f":"IF(ISNUMBER(Перечень[[#This Row],[ДЛИТЕЛЬНОСТЬ]]),IF(Перечень[[#This Row],[ОСНОВАНИЕ]]=\"ОТ (отпуск)\",Перечень[[#This Row],[ДАТА НАЧАЛА]]+Перечень[[#This Row],[ДЛИТЕЛЬНОСТЬ]]-1+SUMPRODUCT((Праздники[праздники]>=Перечень[[#This Row],[ДАТА НАЧАЛА]])*(Праздники[праздники]<=(Перечень[[#This Row],[ДАТА НАЧАЛА]]+Перечень[[#This Row],[ДЛИТЕЛЬНОСТЬ]]-1))),Перечень[[#This Row],[ДАТА НАЧАЛА]]+Перечень[[#This Row],[ДЛИТЕЛЬНОСТЬ]]-1),\"\")","v":""}]
[null,null,null,null,null,{"$f":"IF(ISNUMBER(Перечень[[#This Row],[ДЛИТЕЛЬНОСТЬ]]),IF(Перечень[[#This Row],[ОСНОВАНИЕ]]=\"ОТ (отпуск)\",Перечень[[#This Row],[ДАТА НАЧАЛА]]+Перечень[[#This Row],[ДЛИТЕЛЬНОСТЬ]]-1+SUMPRODUCT((Праздники[праздники]>=Перечень[[#This Row],[ДАТА НАЧАЛА]])*(Праздники[праздники]<=(Перечень[[#This Row],[ДАТА НАЧАЛА]]+Перечень[[#This Row],[ДЛИТЕЛЬНОСТЬ]]-1))),Перечень[[#This Row],[ДАТА НАЧАЛА]]+Перечень[[#This Row],[ДЛИТЕЛЬНОСТЬ]]-1),\"\")","v":""}]
[null,null,null,null,null,{"$f":"IF(ISNUMBER(Перечень[[#This Row],[ДЛИТЕЛЬНОСТЬ]]),IF(Перечень[[#This Row],[ОСНОВАНИЕ]]=\"ОТ (отпуск)\",Перечень[[#This Row],[ДАТА НАЧАЛА]]+Перечень[[#This Row],[ДЛИТЕЛЬНОСТЬ]]-1+SUMPRODUCT((Праздники[праздники]>=Перечень[[#This Row],[ДАТА НАЧАЛА]])*(Праздники[праздники]<=(Перечень[[#This Row],[ДАТА НАЧАЛА]]+Перечень[[#This Row],[ДЛИТЕЛЬНОСТЬ]]-1))),Перечень[[#This Row],[ДАТА НАЧАЛА]]+Перечень[[#This Row],[ДЛИТЕЛЬНОСТЬ]]-1),\"\")","v":""}]
[null,null,null,null,null,{"$f":"IF(ISNUMBER(Перечень[[#This Row],[ДЛИТЕЛЬНОСТЬ]]),IF(Перечень[[#This Row],[ОСНОВАНИЕ]]=\"ОТ (отпуск)\",Перечень[[#This Row],[ДАТА НАЧАЛА]]+Перечень[[#This Row],[ДЛИТЕЛЬНОСТЬ]]-1+SUMPRODUCT((Праздники[праздники]>=Перечень[[#This Row],[ДАТА НАЧАЛА]])*(Праздники[праздники]<=(Перечень[[#This Row],[ДАТА НАЧАЛА]]+Перечень[[#This Row],[ДЛИТЕЛЬНОСТЬ]]-1))),Перечень[[#This Row],[ДАТА НАЧАЛА]]+Перечень[[#This Row],[ДЛИТЕЛЬНОСТЬ]]-1),\"\")","v":""}]
[null,null,null,null,null,{"$f":"IF(ISNUMBER(Перечень[[#This Row],[ДЛИТЕЛЬНОСТЬ]]),IF(Перечень[[#This Row],[ОСНОВАНИЕ]]=\"ОТ (отпуск)\",Перечень[[#This Row],[ДАТА НАЧАЛА]]+Перечень[[#This Row],[ДЛИТЕЛЬНОСТЬ]]-1+SUMPRODUCT((Праздники[праздники]>=Перечень[[#This Row],[ДАТА НАЧАЛА]])*(Праздники[праздники]<=(Перечень[[#This Row],[ДАТА НАЧАЛА]]+Перечень[[#This Row],[ДЛИТЕЛЬНОСТЬ]]-1))),Перечень[[#This Row],[ДАТА НАЧАЛА]]+Перечень[[#This Row],[ДЛИТЕЛЬНОСТЬ]]-1),\"\")","v":""}]
[null,null,null,null,null,{"$f":"IF(ISNUMBER(Перечень[[#This Row],[ДЛИТЕЛЬНОСТЬ]]),IF(Перечень[[#This Row],[ОСНОВАНИЕ]]=\"ОТ (отпуск)\",Перечень[[#This Row],[ДАТА НАЧАЛА]]+Перечень[[#This Row],[ДЛИТЕЛЬНОСТЬ]]-1+SUMPRODUCT((Праздники[праздники]>=Перечень[[#This Row],[ДАТА НАЧАЛА]])*(Праздники[праздники]<=(Перечень[[#This Row],[ДАТА НАЧАЛА]]+Перечень[[#This Row],[ДЛИТЕЛЬНОСТЬ]]-1))),Перечень[[#This Row],[ДАТА НАЧАЛА]]+Перечень[[#This Row],[ДЛИТЕЛЬНОСТЬ]]-1),\"\")","v":""}]
[null,null,null,null,null,{"$f":"IF(ISNUMBER(Перечень[[#This Row],[ДЛИТЕЛЬНОСТЬ]]),IF(Перечень[[#This Row],[ОСНОВАНИЕ]]=\"ОТ (отпуск)\",Перечень[[#This Row],[ДАТА НАЧАЛА]]+Перечень[[#This Row],[ДЛИТЕЛЬНОСТЬ]]-1+SUMPRODUCT((Праздники[праздники]>=Перечень[[#This Row],[ДАТА НАЧАЛА]])*(Праздники[праздники]<=(Перечень[[#This Row],[ДАТА НАЧАЛА]]+Перечень[[#This Row],[ДЛИТЕЛЬНОСТЬ]]-1))),Перечень[[#This Row],[ДАТА НАЧАЛА]]+Перечень[[#This Row],[ДЛИТЕЛЬНОСТЬ]]-1),\"\")","v":""}]
[null,null,null,null,null,{"$f":"IF(ISNUMBER(Перечень[[#This Row],[ДЛИТЕЛЬНОСТЬ]]),IF(Перечень[[#This Row],[ОСНОВАНИЕ]]=\"ОТ (отпуск)\",Перечень[[#This Row],[ДАТА НАЧАЛА]]+Перечень[[#This Row],[ДЛИТЕЛЬНОСТЬ]]-1+SUMPRODUCT((Праздники[праздники]>=Перечень[[#This Row],[ДАТА НАЧАЛА]])*(Праздники[праздники]<=(Перечень[[#This Row],[ДАТА НАЧАЛА]]+Перечень[[#This Row],[ДЛИТЕЛЬНОСТЬ]]-1))),Перечень[[#This Row],[ДАТА НАЧАЛА]]+Перечень[[#This Row],[ДЛИТЕЛЬНОСТЬ]]-1),\"\")","v":""}]
[null,null,null,null,null,{"$f":"IF(ISNUMBER(Перечень[[#This Row],[ДЛИТЕЛЬНОСТЬ]]),IF(Перечень[[#This Row],[ОСНОВАНИЕ]]=\"ОТ (отпуск)\",Перечень[[#This Row],[ДАТА НАЧАЛА]]+Перечень[[#This Row],[ДЛИТЕЛЬНОСТЬ]]-1+SUMPRODUCT((Праздники[праздники]>=Перечень[[#This Row],[ДАТА НАЧАЛА]])*(Праздники[праздники]<=(Перечень[[#This Row],[ДАТА НАЧАЛА]]+Перечень[[#This Row],[ДЛИТЕЛЬНОСТЬ]]-1))),Перечень[[#This Row],[ДАТА НАЧАЛА]]+Перечень[[#This Row],[ДЛИТЕЛЬНОСТЬ]]-1),\"\")","v":""}]
[null,null,null,null,null,{"$f":"IF(ISNUMBER(Перечень[[#This Row],[ДЛИТЕЛЬНОСТЬ]]),IF(Перечень[[#This Row],[ОСНОВАНИЕ]]=\"ОТ (отпуск)\",Перечень[[#This Row],[ДАТА НАЧАЛА]]+Перечень[[#This Row],[ДЛИТЕЛЬНОСТЬ]]-1+SUMPRODUCT((Праздники[праздники]>=Перечень[[#This Row],[ДАТА НАЧАЛА]])*(Праздники[праздники]<=(Перечень[[#This Row],[ДАТА НАЧАЛА]]+Перечень[[#This Row],[ДЛИТЕЛЬНОСТЬ]]-1))),Перечень[[#This Row],[ДАТА НАЧАЛА]]+Перечень[[#This Row],[ДЛИТЕЛЬНОСТЬ]]-1),\"\")","v":""}]
[null,null,null,null,null,{"$f":"IF(ISNUMBER(Перечень[[#This Row],[ДЛИТЕЛЬНОСТЬ]]),IF(Перечень[[#This Row],[ОСНОВАНИЕ]]=\"ОТ (отпуск)\",Перечень[[#This Row],[ДАТА НАЧАЛА]]+Перечень[[#This Row],[ДЛИТЕЛЬНОСТЬ]]-1+SUMPRODUCT((Праздники[праздники]>=Перечень[[#This Row],[ДАТА НАЧАЛА]])*(Праздники[праздники]<=(Перечень[[#This Row],[ДАТА НАЧАЛА]]+Перечень[[#This Row],[ДЛИТЕЛЬНОСТЬ]]-1))),Перечень[[#This Row],[ДАТА НАЧАЛА]]+Перечень[[#This Row],[ДЛИТЕЛЬНОСТЬ]]-1),\"\")","v":""}]
[null,null,null,null,null,{"$f":"IF(ISNUMBER(Перечень[[#This Row],[ДЛИТЕЛЬНОСТЬ]]),IF(Перечень[[#This Row],[ОСНОВАНИЕ]]=\"ОТ (отпуск)\",Перечень[[#This Row],[ДАТА НАЧАЛА]]+Перечень[[#This Row],[ДЛИТЕЛЬНОСТЬ]]-1+SUMPRODUCT((Праздники[праздники]>=Перечень[[#This Row],[ДАТА НАЧАЛА]])*(Праздники[праздники]<=(Перечень[[#This Row],[ДАТА НАЧАЛА]]+Перечень[[#This Row],[ДЛИТЕЛЬНОСТЬ]]-1))),Перечень[[#This Row],[ДАТА НАЧАЛА]]+Перечень[[#This Row],[ДЛИТЕЛЬНОСТЬ]]-1),\"\")","v":""}]
[null,null,null,null,null,{"$f":"IF(ISNUMBER(Перечень[[#This Row],[ДЛИТЕЛЬНОСТЬ]]),IF(Перечень[[#This Row],[ОСНОВАНИЕ]]=\"ОТ (отпуск)\",Перечень[[#This Row],[ДАТА НАЧАЛА]]+Перечень[[#This Row],[ДЛИТЕЛЬНОСТЬ]]-1+SUMPRODUCT((Праздники[праздники]>=Перечень[[#This Row],[ДАТА НАЧАЛА]])*(Праздники[праздники]<=(Перечень[[#This Row],[ДАТА НАЧАЛА]]+Перечень[[#This Row],[ДЛИТЕЛЬНОСТЬ]]-1))),Перечень[[#This Row],[ДАТА НАЧАЛА]]+Перечень[[#This Row],[ДЛИТЕЛЬНОСТЬ]]-1),\"\")","v":""}]
[null,null,null,null,null,{"$f":"IF(ISNUMBER(Перечень[[#This Row],[ДЛИТЕЛЬНОСТЬ]]),IF(Перечень[[#This Row],[ОСНОВАНИЕ]]=\"ОТ (отпуск)\",Перечень[[#This Row],[ДАТА НАЧАЛА]]+Перечень[[#This Row],[ДЛИТЕЛЬНОСТЬ]]-1+SUMPRODUCT((Праздники[праздники]>=Перечень[[#This Row],[ДАТА НАЧАЛА]])*(Праздники[праздники]<=(Перечень[[#This Row],[ДАТА НАЧАЛА]]+Перечень[[#This Row],[ДЛИТЕЛЬНОСТЬ]]-1))),Перечень[[#This Row],[ДАТА НАЧАЛА]]+Перечень[[#This Row],[ДЛИТЕЛЬНОСТЬ]]-1),\"\")","v":""}]
[null,null,null,null,null,{"$f":"IF(ISNUMBER(Перечень[[#This Row],[ДЛИТЕЛЬНОСТЬ]]),IF(Перечень[[#This Row],[ОСНОВАНИЕ]]=\"ОТ (отпуск)\",Перечень[[#This Row],[ДАТА НАЧАЛА]]+Перечень[[#This Row],[ДЛИТЕЛЬНОСТЬ]]-1+SUMPRODUCT((Праздники[праздники]>=Перечень[[#This Row],[ДАТА НАЧАЛА]])*(Праздники[праздники]<=(Перечень[[#This Row],[ДАТА НАЧАЛА]]+Перечень[[#This Row],[ДЛИТЕЛЬНОСТЬ]]-1))),Перечень[[#This Row],[ДАТА НАЧАЛА]]+Перечень[[#This Row],[ДЛИТЕЛЬНОСТЬ]]-1),\"\")","v":""}]
[null,null,null,null,null,{"$f":"IF(ISNUMBER(Перечень[[#This Row],[ДЛИТЕЛЬНОСТЬ]]),IF(Перечень[[#This Row],[ОСНОВАНИЕ]]=\"ОТ (отпуск)\",Перечень[[#This Row],[ДАТА НАЧАЛА]]+Перечень[[#This Row],[ДЛИТЕЛЬНОСТЬ]]-1+SUMPRODUCT((Праздники[праздники]>=Перечень[[#This Row],[ДАТА НАЧАЛА]])*(Праздники[праздники]<=(Перечень[[#This Row],[ДАТА НАЧАЛА]]+Перечень[[#This Row],[ДЛИТЕЛЬНОСТЬ]]-1))),Перечень[[#This Row],[ДАТА НАЧАЛА]]+Перечень[[#This Row],[ДЛИТЕЛЬНОСТЬ]]-1),\"\")","v":""}]
[null,null,null,null,null,{"$f":"IF(ISNUMBER(Перечень[[#This Row],[ДЛИТЕЛЬНОСТЬ]]),IF(Перечень[[#This Row],[ОСНОВАНИЕ]]=\"ОТ (отпуск)\",Перечень[[#This Row],[ДАТА НАЧАЛА]]+Перечень[[#This Row],[ДЛИТЕЛЬНОСТЬ]]-1+SUMPRODUCT((Праздники[праздники]>=Перечень[[#This Row],[ДАТА НАЧАЛА]])*(Праздники[праздники]<=(Перечень[[#This Row],[ДАТА НАЧАЛА]]+Перечень[[#This Row],[ДЛИТЕЛЬНОСТЬ]]-1))),Перечень[[#This Row],[ДАТА НАЧАЛА]]+Перечень[[#This Row],[ДЛИТЕЛЬНОСТЬ]]-1),\"\")","v":""}]
[null,null,null,null,null,{"$f":"IF(ISNUMBER(Перечень[[#This Row],[ДЛИТЕЛЬНОСТЬ]]),IF(Перечень[[#This Row],[ОСНОВАНИЕ]]=\"ОТ (отпуск)\",Перечень[[#This Row],[ДАТА НАЧАЛА]]+Перечень[[#This Row],[ДЛИТЕЛЬНОСТЬ]]-1+SUMPRODUCT((Праздники[праздники]>=Перечень[[#This Row],[ДАТА НАЧАЛА]])*(Праздники[праздники]<=(Перечень[[#This Row],[ДАТА НАЧАЛА]]+Перечень[[#This Row],[ДЛИТЕЛЬНОСТЬ]]-1))),Перечень[[#This Row],[ДАТА НАЧАЛА]]+Перечень[[#This Row],[ДЛИТЕЛЬНОСТЬ]]-1),\"\")","v":""}]
[null,null,null,null,null,{"$f":"IF(ISNUMBER(Перечень[[#This Row],[ДЛИТЕЛЬНОСТЬ]]),IF(Перечень[[#This Row],[ОСНОВАНИЕ]]=\"ОТ (отпуск)\",Перечень[[#This Row],[ДАТА НАЧАЛА]]+Перечень[[#This Row],[ДЛИТЕЛЬНОСТЬ]]-1+SUMPRODUCT((Праздники[праздники]>=Перечень[[#This Row],[ДАТА НАЧАЛА]])*(Праздники[праздники]<=(Перечень[[#This Row],[ДАТА НАЧАЛА]]+Перечень[[#This Row],[ДЛИТЕЛЬНОСТЬ]]-1))),Перечень[[#This Row],[ДАТА НАЧАЛА]]+Перечень[[#This Row],[ДЛИТЕЛЬНОСТЬ]]-1),\"\")","v":""}]
[null,null,null,null,null,{"$f":"IF(ISNUMBER(Перечень[[#This Row],[ДЛИТЕЛЬНОСТЬ]]),IF(Перечень[[#This Row],[ОСНОВАНИЕ]]=\"ОТ (отпуск)\",Перечень[[#This Row],[ДАТА НАЧАЛА]]+Перечень[[#This Row],[ДЛИТЕЛЬНОСТЬ]]-1+SUMPRODUCT((Праздники[праздники]>=Перечень[[#This Row],[ДАТА НАЧАЛА]])*(Праздники[праздники]<=(Перечень[[#This Row],[ДАТА НАЧАЛА]]+Перечень[[#This Row],[ДЛИТЕЛЬНОСТЬ]]-1))),Перечень[[#This Row],[ДАТА НАЧАЛА]]+Перечень[[#This Row],[ДЛИТЕЛЬНОСТЬ]]-1),\"\")","v":""}]
[null,null,null,null,null,{"$f":"IF(ISNUMBER(Перечень[[#This Row],[ДЛИТЕЛЬНОСТЬ]]),IF(Перечень[[#This Row],[ОСНОВАНИЕ]]=\"ОТ (отпуск)\",Перечень[[#This Row],[ДАТА НАЧАЛА]]+Перечень[[#This Row],[ДЛИТЕЛЬНОСТЬ]]-1+SUMPRODUCT((Праздники[праздники]>=Перечень[[#This Row],[ДАТА НАЧАЛА]])*(Праздники[праздники]<=(Перечень[[#This Row],[ДАТА НАЧАЛА]]+Перечень[[#This Row],[ДЛИТЕЛЬНОСТЬ]]-1))),Перечень[[#This Row],[ДАТА НАЧАЛА]]+Перечень[[#This Row],[ДЛИТЕЛЬНОСТЬ]]-1),\"\")","v":""}]
[null,null,null,null,null,{"$f":"IF(ISNUMBER(Перечень[[#This Row],[ДЛИТЕЛЬНОСТЬ]]),IF(Перечень[[#This Row],[ОСНОВАНИЕ]]=\"ОТ (отпуск)\",Перечень[[#This Row],[ДАТА НАЧАЛА]]+Перечень[[#This Row],[ДЛИТЕЛЬНОСТЬ]]-1+SUMPRODUCT((Праздники[праздники]>=Перечень[[#This Row],[ДАТА НАЧАЛА]])*(Праздники[праздники]<=(Перечень[[#This Row],[ДАТА НАЧАЛА]]+Перечень[[#This Row],[ДЛИТЕЛЬНОСТЬ]]-1))),Перечень[[#This Row],[ДАТА НАЧАЛА]]+Перечень[[#This Row],[ДЛИТЕЛЬНОСТЬ]]-1),\"\")","v":""}]
[null,null,null,null,null,{"$f":"IF(ISNUMBER(Перечень[[#This Row],[ДЛИТЕЛЬНОСТЬ]]),IF(Перечень[[#This Row],[ОСНОВАНИЕ]]=\"ОТ (отпуск)\",Перечень[[#This Row],[ДАТА НАЧАЛА]]+Перечень[[#This Row],[ДЛИТЕЛЬНОСТЬ]]-1+SUMPRODUCT((Праздники[праздники]>=Перечень[[#This Row],[ДАТА НАЧАЛА]])*(Праздники[праздники]<=(Перечень[[#This Row],[ДАТА НАЧАЛА]]+Перечень[[#This Row],[ДЛИТЕЛЬНОСТЬ]]-1))),Перечень[[#This Row],[ДАТА НАЧАЛА]]+Перечень[[#This Row],[ДЛИТЕЛЬНОСТЬ]]-1),\"\")","v":""}]
[null,null,null,null,null,{"$f":"IF(ISNUMBER(Перечень[[#This Row],[ДЛИТЕЛЬНОСТЬ]]),IF(Перечень[[#This Row],[ОСНОВАНИЕ]]=\"ОТ (отпуск)\",Перечень[[#This Row],[ДАТА НАЧАЛА]]+Перечень[[#This Row],[ДЛИТЕЛЬНОСТЬ]]-1+SUMPRODUCT((Праздники[праздники]>=Перечень[[#This Row],[ДАТА НАЧАЛА]])*(Праздники[праздники]<=(Перечень[[#This Row],[ДАТА НАЧАЛА]]+Перечень[[#This Row],[ДЛИТЕЛЬНОСТЬ]]-1))),Перечень[[#This Row],[ДАТА НАЧАЛА]]+Перечень[[#This Row],[ДЛИТЕЛЬНОСТЬ]]-1),\"\")","v":""}]
[null,null,null,null,null,{"$f":"IF(ISNUMBER(Перечень[[#This Row],[ДЛИТЕЛЬНОСТЬ]]),IF(Перечень[[#This Row],[ОСНОВАНИЕ]]=\"ОТ (отпуск)\",Перечень[[#This Row],[ДАТА НАЧАЛА]]+Перечень[[#This Row],[ДЛИТЕЛЬНОСТЬ]]-1+SUMPRODUCT((Праздники[праздники]>=Перечень[[#This Row],[ДАТА НАЧАЛА]])*(Праздники[праздники]<=(Перечень[[#This Row],[ДАТА НАЧАЛА]]+Перечень[[#This Row],[ДЛИТЕЛЬНОСТЬ]]-1))),Перечень[[#This Row],[ДАТА НАЧАЛА]]+Перечень[[#This Row],[ДЛИТЕЛЬНОСТЬ]]-1),\"\")","v":""}]
[null,null,null,null,null,{"$f":"IF(ISNUMBER(Перечень[[#This Row],[ДЛИТЕЛЬНОСТЬ]]),IF(Перечень[[#This Row],[ОСНОВАНИЕ]]=\"ОТ (отпуск)\",Перечень[[#This Row],[ДАТА НАЧАЛА]]+Перечень[[#This Row],[ДЛИТЕЛЬНОСТЬ]]-1+SUMPRODUCT((Праздники[праздники]>=Перечень[[#This Row],[ДАТА НАЧАЛА]])*(Праздники[праздники]<=(Перечень[[#This Row],[ДАТА НАЧАЛА]]+Перечень[[#This Row],[ДЛИТЕЛЬНОСТЬ]]-1))),Перечень[[#This Row],[ДАТА НАЧАЛА]]+Перечень[[#This Row],[ДЛИТЕЛЬНОСТЬ]]-1),\"\")","v":""}]
[null,null,null,null,null,{"$f":"IF(ISNUMBER(Перечень[[#This Row],[ДЛИТЕЛЬНОСТЬ]]),IF(Перечень[[#This Row],[ОСНОВАНИЕ]]=\"ОТ (отпуск)\",Перечень[[#This Row],[ДАТА НАЧАЛА]]+Перечень[[#This Row],[ДЛИТЕЛЬНОСТЬ]]-1+SUMPRODUCT((Праздники[праздники]>=Перечень[[#This Row],[ДАТА НАЧАЛА]])*(Праздники[праздники]<=(Перечень[[#This Row],[ДАТА НАЧАЛА]]+Перечень[[#This Row],[ДЛИТЕЛЬНОСТЬ]]-1))),Перечень[[#This Row],[ДАТА НАЧАЛА]]+Перечень[[#This Row],[ДЛИТЕЛЬНОСТЬ]]-1),\"\")","v":""}]
[null,null,null,null,null,{"$f":"IF(ISNUMBER(Перечень[[#This Row],[ДЛИТЕЛЬНОСТЬ]]),IF(Перечень[[#This Row],[ОСНОВАНИЕ]]=\"ОТ (отпуск)\",Перечень[[#This Row],[ДАТА НАЧАЛА]]+Перечень[[#This Row],[ДЛИТЕЛЬНОСТЬ]]-1+SUMPRODUCT((Праздники[праздники]>=Перечень[[#This Row],[ДАТА НАЧАЛА]])*(Праздники[праздники]<=(Перечень[[#This Row],[ДАТА НАЧАЛА]]+Перечень[[#This Row],[ДЛИТЕЛЬНОСТЬ]]-1))),Перечень[[#This Row],[ДАТА НАЧАЛА]]+Перечень[[#This Row],[ДЛИТЕЛЬНОСТЬ]]-1),\"\")","v":""}]
[null,null,null,null,null,{"$f":"IF(ISNUMBER(Перечень[[#This Row],[ДЛИТЕЛЬНОСТЬ]]),IF(Перечень[[#This Row],[ОСНОВАНИЕ]]=\"ОТ (отпуск)\",Перечень[[#This Row],[ДАТА НАЧАЛА]]+Перечень[[#This Row],[ДЛИТЕЛЬНОСТЬ]]-1+SUMPRODUCT((Праздники[праздники]>=Перечень[[#This Row],[ДАТА НАЧАЛА]])*(Праздники[праздники]<=(Перечень[[#This Row],[ДАТА НАЧАЛА]]+Перечень[[#This Row],[ДЛИТЕЛЬНОСТЬ]]-1))),Перечень[[#This Row],[ДАТА НАЧАЛА]]+Перечень[[#This Row],[ДЛИТЕЛЬНОСТЬ]]-1),\"\")","v":""}]
[null,null,null,null,null,{"$f":"IF(ISNUMBER(Перечень[[#This Row],[ДЛИТЕЛЬНОСТЬ]]),IF(Перечень[[#This Row],[ОСНОВАНИЕ]]=\"ОТ (отпуск)\",Перечень[[#This Row],[ДАТА НАЧАЛА]]+Перечень[[#This Row],[ДЛИТЕЛЬНОСТЬ]]-1+SUMPRODUCT((Праздники[праздники]>=Перечень[[#This Row],[ДАТА НАЧАЛА]])*(Праздники[праздники]<=(Перечень[[#This Row],[ДАТА НАЧАЛА]]+Перечень[[#This Row],[ДЛИТЕЛЬНОСТЬ]]-1))),Перечень[[#This Row],[ДАТА НАЧАЛА]]+Перечень[[#This Row],[ДЛИТЕЛЬНОСТЬ]]-1),\"\")","v":""}]
[null,null,null,null,null,{"$f":"IF(ISNUMBER(Перечень[[#This Row],[ДЛИТЕЛЬНОСТЬ]]),IF(Перечень[[#This Row],[ОСНОВАНИЕ]]=\"ОТ (отпуск)\",Перечень[[#This Row],[ДАТА НАЧАЛА]]+Перечень[[#This Row],[ДЛИТЕЛЬНОСТЬ]]-1+SUMPRODUCT((Праздники[праздники]>=Перечень[[#This Row],[ДАТА НАЧАЛА]])*(Праздники[праздники]<=(Перечень[[#This Row],[ДАТА НАЧАЛА]]+Перечень[[#This Row],[ДЛИТЕЛЬНОСТЬ]]-1))),Перечень[[#This Row],[ДАТА НАЧАЛА]]+Перечень[[#This Row],[ДЛИТЕЛЬНОСТЬ]]-1),\"\")","v":""}]
[null,null,null,null,null,{"$f":"IF(ISNUMBER(Перечень[[#This Row],[ДЛИТЕЛЬНОСТЬ]]),IF(Перечень[[#This Row],[ОСНОВАНИЕ]]=\"ОТ (отпуск)\",Перечень[[#This Row],[ДАТА НАЧАЛА]]+Перечень[[#This Row],[ДЛИТЕЛЬНОСТЬ]]-1+SUMPRODUCT((Праздники[праздники]>=Перечень[[#This Row],[ДАТА НАЧАЛА]])*(Праздники[праздники]<=(Перечень[[#This Row],[ДАТА НАЧАЛА]]+Перечень[[#This Row],[ДЛИТЕЛЬНОСТЬ]]-1))),Перечень[[#This Row],[ДАТА НАЧАЛА]]+Перечень[[#This Row],[ДЛИТЕЛЬНОСТЬ]]-1),\"\")","v":""}]
[null,null,null,null,null,{"$f":"IF(ISNUMBER(Перечень[[#This Row],[ДЛИТЕЛЬНОСТЬ]]),IF(Перечень[[#This Row],[ОСНОВАНИЕ]]=\"ОТ (отпуск)\",Перечень[[#This Row],[ДАТА НАЧАЛА]]+Перечень[[#This Row],[ДЛИТЕЛЬНОСТЬ]]-1+SUMPRODUCT((Праздники[праздники]>=Перечень[[#This Row],[ДАТА НАЧАЛА]])*(Праздники[праздники]<=(Перечень[[#This Row],[ДАТА НАЧАЛА]]+Перечень[[#This Row],[ДЛИТЕЛЬНОСТЬ]]-1))),Перечень[[#This Row],[ДАТА НАЧАЛА]]+Перечень[[#This Row],[ДЛИТЕЛЬНОСТЬ]]-1),\"\")","v":""}]
[null,null,null,null,null,{"$f":"IF(ISNUMBER(Перечень[[#This Row],[ДЛИТЕЛЬНОСТЬ]]),IF(Перечень[[#This Row],[ОСНОВАНИЕ]]=\"ОТ (отпуск)\",Перечень[[#This Row],[ДАТА НАЧАЛА]]+Перечень[[#This Row],[ДЛИТЕЛЬНОСТЬ]]-1+SUMPRODUCT((Праздники[праздники]>=Перечень[[#This Row],[ДАТА НАЧАЛА]])*(Праздники[праздники]<=(Перечень[[#This Row],[ДАТА НАЧАЛА]]+Перечень[[#This Row],[ДЛИТЕЛЬНОСТЬ]]-1))),Перечень[[#This Row],[ДАТА НАЧАЛА]]+Перечень[[#This Row],[ДЛИТЕЛЬНОСТЬ]]-1),\"\")","v":""}]
[null,null,null,null,null,{"$f":"IF(ISNUMBER(Перечень[[#This Row],[ДЛИТЕЛЬНОСТЬ]]),IF(Перечень[[#This Row],[ОСНОВАНИЕ]]=\"ОТ (отпуск)\",Перечень[[#This Row],[ДАТА НАЧАЛА]]+Перечень[[#This Row],[ДЛИТЕЛЬНОСТЬ]]-1+SUMPRODUCT((Праздники[праздники]>=Перечень[[#This Row],[ДАТА НАЧАЛА]])*(Праздники[праздники]<=(Перечень[[#This Row],[ДАТА НАЧАЛА]]+Перечень[[#This Row],[ДЛИТЕЛЬНОСТЬ]]-1))),Перечень[[#This Row],[ДАТА НАЧАЛА]]+Перечень[[#This Row],[ДЛИТЕЛЬНОСТЬ]]-1),\"\")","v":""}]
[null,null,null,null,null,{"$f":"IF(ISNUMBER(Перечень[[#This Row],[ДЛИТЕЛЬНОСТЬ]]),IF(Перечень[[#This Row],[ОСНОВАНИЕ]]=\"ОТ (отпуск)\",Перечень[[#This Row],[ДАТА НАЧАЛА]]+Перечень[[#This Row],[ДЛИТЕЛЬНОСТЬ]]-1+SUMPRODUCT((Праздники[праздники]>=Перечень[[#This Row],[ДАТА НАЧАЛА]])*(Праздники[праздники]<=(Перечень[[#This Row],[ДАТА НАЧАЛА]]+Перечень[[#This Row],[ДЛИТЕЛЬНОСТЬ]]-1))),Перечень[[#This Row],[ДАТА НАЧАЛА]]+Перечень[[#This Row],[ДЛИТЕЛЬНОСТЬ]]-1),\"\")","v":""}]
[null,null,null,null,null,{"$f":"IF(ISNUMBER(Перечень[[#This Row],[ДЛИТЕЛЬНОСТЬ]]),IF(Перечень[[#This Row],[ОСНОВАНИЕ]]=\"ОТ (отпуск)\",Перечень[[#This Row],[ДАТА НАЧАЛА]]+Перечень[[#This Row],[ДЛИТЕЛЬНОСТЬ]]-1+SUMPRODUCT((Праздники[праздники]>=Перечень[[#This Row],[ДАТА НАЧАЛА]])*(Праздники[праздники]<=(Перечень[[#This Row],[ДАТА НАЧАЛА]]+Перечень[[#This Row],[ДЛИТЕЛЬНОСТЬ]]-1))),Перечень[[#This Row],[ДАТА НАЧАЛА]]+Перечень[[#This Row],[ДЛИТЕЛЬНОСТЬ]]-1),\"\")","v":""}]
[null,null,null,null,null,{"$f":"IF(ISNUMBER(Перечень[[#This Row],[ДЛИТЕЛЬНОСТЬ]]),IF(Перечень[[#This Row],[ОСНОВАНИЕ]]=\"ОТ (отпуск)\",Перечень[[#This Row],[ДАТА НАЧАЛА]]+Перечень[[#This Row],[ДЛИТЕЛЬНОСТЬ]]-1+SUMPRODUCT((Праздники[праздники]>=Перечень[[#This Row],[ДАТА НАЧАЛА]])*(Праздники[праздники]<=(Перечень[[#This Row],[ДАТА НАЧАЛА]]+Перечень[[#This Row],[ДЛИТЕЛЬНОСТЬ]]-1))),Перечень[[#This Row],[ДАТА НАЧАЛА]]+Перечень[[#This Row],[ДЛИТЕЛЬНОСТЬ]]-1),\"\")","v":""}]
[null,null,null,null,null,{"$f":"IF(ISNUMBER(Перечень[[#This Row],[ДЛИТЕЛЬНОСТЬ]]),IF(Перечень[[#This Row],[ОСНОВАНИЕ]]=\"ОТ (отпуск)\",Перечень[[#This Row],[ДАТА НАЧАЛА]]+Перечень[[#This Row],[ДЛИТЕЛЬНОСТЬ]]-1+SUMPRODUCT((Праздники[праздники]>=Перечень[[#This Row],[ДАТА НАЧАЛА]])*(Праздники[праздники]<=(Перечень[[#This Row],[ДАТА НАЧАЛА]]+Перечень[[#This Row],[ДЛИТЕЛЬНОСТЬ]]-1))),Перечень[[#This Row],[ДАТА НАЧАЛА]]+Перечень[[#This Row],[ДЛИТЕЛЬНОСТЬ]]-1),\"\")","v":""}]
[null,null,null,null,null,{"$f":"IF(ISNUMBER(Перечень[[#This Row],[ДЛИТЕЛЬНОСТЬ]]),IF(Перечень[[#This Row],[ОСНОВАНИЕ]]=\"ОТ (отпуск)\",Перечень[[#This Row],[ДАТА НАЧАЛА]]+Перечень[[#This Row],[ДЛИТЕЛЬНОСТЬ]]-1+SUMPRODUCT((Праздники[праздники]>=Перечень[[#This Row],[ДАТА НАЧАЛА]])*(Праздники[праздники]<=(Перечень[[#This Row],[ДАТА НАЧАЛА]]+Перечень[[#This Row],[ДЛИТЕЛЬНОСТЬ]]-1))),Перечень[[#This Row],[ДАТА НАЧАЛА]]+Перечень[[#This Row],[ДЛИТЕЛЬНОСТЬ]]-1),\"\")","v":""}]
[null,null,null,null,null,{"$f":"IF(ISNUMBER(Перечень[[#This Row],[ДЛИТЕЛЬНОСТЬ]]),IF(Перечень[[#This Row],[ОСНОВАНИЕ]]=\"ОТ (отпуск)\",Перечень[[#This Row],[ДАТА НАЧАЛА]]+Перечень[[#This Row],[ДЛИТЕЛЬНОСТЬ]]-1+SUMPRODUCT((Праздники[праздники]>=Перечень[[#This Row],[ДАТА НАЧАЛА]])*(Праздники[праздники]<=(Перечень[[#This Row],[ДАТА НАЧАЛА]]+Перечень[[#This Row],[ДЛИТЕЛЬНОСТЬ]]-1))),Перечень[[#This Row],[ДАТА НАЧАЛА]]+Перечень[[#This Row],[ДЛИТЕЛЬНОСТЬ]]-1),\"\")","v":""}]
[null,null,null,null,null,{"$f":"IF(ISNUMBER(Перечень[[#This Row],[ДЛИТЕЛЬНОСТЬ]]),IF(Перечень[[#This Row],[ОСНОВАНИЕ]]=\"ОТ (отпуск)\",Перечень[[#This Row],[ДАТА НАЧАЛА]]+Перечень[[#This Row],[ДЛИТЕЛЬНОСТЬ]]-1+SUMPRODUCT((Праздники[праздники]>=Перечень[[#This Row],[ДАТА НАЧАЛА]])*(Праздники[праздники]<=(Перечень[[#This Row],[ДАТА НАЧАЛА]]+Перечень[[#This Row],[ДЛИТЕЛЬНОСТЬ]]-1))),Перечень[[#This Row],[ДАТА НАЧАЛА]]+Перечень[[#This Row],[ДЛИТЕЛЬНОСТЬ]]-1),\"\")","v":""}]
[null,null,null,null,null,{"$f":"IF(ISNUMBER(Перечень[[#This Row],[ДЛИТЕЛЬНОСТЬ]]),IF(Перечень[[#This Row],[ОСНОВАНИЕ]]=\"ОТ (отпуск)\",Перечень[[#This Row],[ДАТА НАЧАЛА]]+Перечень[[#This Row],[ДЛИТЕЛЬНОСТЬ]]-1+SUMPRODUCT((Праздники[праздники]>=Перечень[[#This Row],[ДАТА НАЧАЛА]])*(Праздники[праздники]<=(Перечень[[#This Row],[ДАТА НАЧАЛА]]+Перечень[[#This Row],[ДЛИТЕЛЬНОСТЬ]]-1))),Перечень[[#This Row],[ДАТА НАЧАЛА]]+Перечень[[#This Row],[ДЛИТЕЛЬНОСТЬ]]-1),\"\")","v":""}]
[null,null,null,null,null,{"$f":"IF(ISNUMBER(Перечень[[#This Row],[ДЛИТЕЛЬНОСТЬ]]),IF(Перечень[[#This Row],[ОСНОВАНИЕ]]=\"ОТ (отпуск)\",Перечень[[#This Row],[ДАТА НАЧАЛА]]+Перечень[[#This Row],[ДЛИТЕЛЬНОСТЬ]]-1+SUMPRODUCT((Праздники[праздники]>=Перечень[[#This Row],[ДАТА НАЧАЛА]])*(Праздники[праздники]<=(Перечень[[#This Row],[ДАТА НАЧАЛА]]+Перечень[[#This Row],[ДЛИТЕЛЬНОСТЬ]]-1))),Перечень[[#This Row],[ДАТА НАЧАЛА]]+Перечень[[#This Row],[ДЛИТЕЛЬНОСТЬ]]-1),\"\")","v":""}]
[null,null,null,null,null,{"$f":"IF(ISNUMBER(Перечень[[#This Row],[ДЛИТЕЛЬНОСТЬ]]),IF(Перечень[[#This Row],[ОСНОВАНИЕ]]=\"ОТ (отпуск)\",Перечень[[#This Row],[ДАТА НАЧАЛА]]+Перечень[[#This Row],[ДЛИТЕЛЬНОСТЬ]]-1+SUMPRODUCT((Праздники[праздники]>=Перечень[[#This Row],[ДАТА НАЧАЛА]])*(Праздники[праздники]<=(Перечень[[#This Row],[ДАТА НАЧАЛА]]+Перечень[[#This Row],[ДЛИТЕЛЬНОСТЬ]]-1))),Перечень[[#This Row],[ДАТА НАЧАЛА]]+Перечень[[#This Row],[ДЛИТЕЛЬНОСТЬ]]-1),\"\")","v":""}]
[null,null,null,null,null,{"$f":"IF(ISNUMBER(Перечень[[#This Row],[ДЛИТЕЛЬНОСТЬ]]),IF(Перечень[[#This Row],[ОСНОВАНИЕ]]=\"ОТ (отпуск)\",Перечень[[#This Row],[ДАТА НАЧАЛА]]+Перечень[[#This Row],[ДЛИТЕЛЬНОСТЬ]]-1+SUMPRODUCT((Праздники[праздники]>=Перечень[[#This Row],[ДАТА НАЧАЛА]])*(Праздники[праздники]<=(Перечень[[#This Row],[ДАТА НАЧАЛА]]+Перечень[[#This Row],[ДЛИТЕЛЬНОСТЬ]]-1))),Перечень[[#This Row],[ДАТА НАЧАЛА]]+Перечень[[#This Row],[ДЛИТЕЛЬНОСТЬ]]-1),\"\")","v":""}]
[null,null,null,null,null,{"$f":"IF(ISNUMBER(Перечень[[#This Row],[ДЛИТЕЛЬНОСТЬ]]),IF(Перечень[[#This Row],[ОСНОВАНИЕ]]=\"ОТ (отпуск)\",Перечень[[#This Row],[ДАТА НАЧАЛА]]+Перечень[[#This Row],[ДЛИТЕЛЬНОСТЬ]]-1+SUMPRODUCT((Праздники[праздники]>=Перечень[[#This Row],[ДАТА НАЧАЛА]])*(Праздники[праздники]<=(Перечень[[#This Row],[ДАТА НАЧАЛА]]+Перечень[[#This Row],[ДЛИТЕЛЬНОСТЬ]]-1))),Перечень[[#This Row],[ДАТА НАЧАЛА]]+Перечень[[#This Row],[ДЛИТЕЛЬНОСТЬ]]-1),\"\")","v":""}]
[null,null,null,null,null,{"$f":"IF(ISNUMBER(Перечень[[#This Row],[ДЛИТЕЛЬНОСТЬ]]),IF(Перечень[[#This Row],[ОСНОВАНИЕ]]=\"ОТ (отпуск)\",Перечень[[#This Row],[ДАТА НАЧАЛА]]+Перечень[[#This Row],[ДЛИТЕЛЬНОСТЬ]]-1+SUMPRODUCT((Праздники[праздники]>=Перечень[[#This Row],[ДАТА НАЧАЛА]])*(Праздники[праздники]<=(Перечень[[#This Row],[ДАТА НАЧАЛА]]+Перечень[[#This Row],[ДЛИТЕЛЬНОСТЬ]]-1))),Перечень[[#This Row],[ДАТА НАЧАЛА]]+Перечень[[#This Row],[ДЛИТЕЛЬНОСТЬ]]-1),\"\")","v":""}]
[null,null,null,null,null,{"$f":"IF(ISNUMBER(Перечень[[#This Row],[ДЛИТЕЛЬНОСТЬ]]),IF(Перечень[[#This Row],[ОСНОВАНИЕ]]=\"ОТ (отпуск)\",Перечень[[#This Row],[ДАТА НАЧАЛА]]+Перечень[[#This Row],[ДЛИТЕЛЬНОСТЬ]]-1+SUMPRODUCT((Праздники[праздники]>=Перечень[[#This Row],[ДАТА НАЧАЛА]])*(Праздники[праздники]<=(Перечень[[#This Row],[ДАТА НАЧАЛА]]+Перечень[[#This Row],[ДЛИТЕЛЬНОСТЬ]]-1))),Перечень[[#This Row],[ДАТА НАЧАЛА]]+Перечень[[#This Row],[ДЛИТЕЛЬНОСТЬ]]-1),\"\")","v":""}]
[null,null,null,null,null,{"$f":"IF(ISNUMBER(Перечень[[#This Row],[ДЛИТЕЛЬНОСТЬ]]),IF(Перечень[[#This Row],[ОСНОВАНИЕ]]=\"ОТ (отпуск)\",Перечень[[#This Row],[ДАТА НАЧАЛА]]+Перечень[[#This Row],[ДЛИТЕЛЬНОСТЬ]]-1+SUMPRODUCT((Праздники[праздники]>=Перечень[[#This Row],[ДАТА НАЧАЛА]])*(Праздники[праздники]<=(Перечень[[#This Row],[ДАТА НАЧАЛА]]+Перечень[[#This Row],[ДЛИТЕЛЬНОСТЬ]]-1))),Перечень[[#This Row],[ДАТА НАЧАЛА]]+Перечень[[#This Row],[ДЛИТЕЛЬНОСТЬ]]-1),\"\")","v":""}]
[null,null,null,null,null,{"$f":"IF(ISNUMBER(Перечень[[#This Row],[ДЛИТЕЛЬНОСТЬ]]),IF(Перечень[[#This Row],[ОСНОВАНИЕ]]=\"ОТ (отпуск)\",Перечень[[#This Row],[ДАТА НАЧАЛА]]+Перечень[[#This Row],[ДЛИТЕЛЬНОСТЬ]]-1+SUMPRODUCT((Праздники[праздники]>=Перечень[[#This Row],[ДАТА НАЧАЛА]])*(Праздники[праздники]<=(Перечень[[#This Row],[ДАТА НАЧАЛА]]+Перечень[[#This Row],[ДЛИТЕЛЬНОСТЬ]]-1))),Перечень[[#This Row],[ДАТА НАЧАЛА]]+Перечень[[#This Row],[ДЛИТЕЛЬНОСТЬ]]-1),\"\")","v":""}]
[null,null,null,null,null,{"$f":"IF(ISNUMBER(Перечень[[#This Row],[ДЛИТЕЛЬНОСТЬ]]),IF(Перечень[[#This Row],[ОСНОВАНИЕ]]=\"ОТ (отпуск)\",Перечень[[#This Row],[ДАТА НАЧАЛА]]+Перечень[[#This Row],[ДЛИТЕЛЬНОСТЬ]]-1+SUMPRODUCT((Праздники[праздники]>=Перечень[[#This Row],[ДАТА НАЧАЛА]])*(Праздники[праздники]<=(Перечень[[#This Row],[ДАТА НАЧАЛА]]+Перечень[[#This Row],[ДЛИТЕЛЬНОСТЬ]]-1))),Перечень[[#This Row],[ДАТА НАЧАЛА]]+Перечень[[#This Row],[ДЛИТЕЛЬНОСТЬ]]-1),\"\")","v":""}]
[null,null,null,null,null,{"$f":"IF(ISNUMBER(Перечень[[#This Row],[ДЛИТЕЛЬНОСТЬ]]),IF(Перечень[[#This Row],[ОСНОВАНИЕ]]=\"ОТ (отпуск)\",Перечень[[#This Row],[ДАТА НАЧАЛА]]+Перечень[[#This Row],[ДЛИТЕЛЬНОСТЬ]]-1+SUMPRODUCT((Праздники[праздники]>=Перечень[[#This Row],[ДАТА НАЧАЛА]])*(Праздники[праздники]<=(Перечень[[#This Row],[ДАТА НАЧАЛА]]+Перечень[[#This Row],[ДЛИТЕЛЬНОСТЬ]]-1))),Перечень[[#This Row],[ДАТА НАЧАЛА]]+Перечень[[#This Row],[ДЛИТЕЛЬНОСТЬ]]-1),\"\")","v":""}]
[null,null,null,null,null,{"$f":"IF(ISNUMBER(Перечень[[#This Row],[ДЛИТЕЛЬНОСТЬ]]),IF(Перечень[[#This Row],[ОСНОВАНИЕ]]=\"ОТ (отпуск)\",Перечень[[#This Row],[ДАТА НАЧАЛА]]+Перечень[[#This Row],[ДЛИТЕЛЬНОСТЬ]]-1+SUMPRODUCT((Праздники[праздники]>=Перечень[[#This Row],[ДАТА НАЧАЛА]])*(Праздники[праздники]<=(Перечень[[#This Row],[ДАТА НАЧАЛА]]+Перечень[[#This Row],[ДЛИТЕЛЬНОСТЬ]]-1))),Перечень[[#This Row],[ДАТА НАЧАЛА]]+Перечень[[#This Row],[ДЛИТЕЛЬНОСТЬ]]-1),\"\")","v":""}]
[null,null,null,null,null,{"$f":"IF(ISNUMBER(Перечень[[#This Row],[ДЛИТЕЛЬНОСТЬ]]),IF(Перечень[[#This Row],[ОСНОВАНИЕ]]=\"ОТ (отпуск)\",Перечень[[#This Row],[ДАТА НАЧАЛА]]+Перечень[[#This Row],[ДЛИТЕЛЬНОСТЬ]]-1+SUMPRODUCT((Праздники[праздники]>=Перечень[[#This Row],[ДАТА НАЧАЛА]])*(Праздники[праздники]<=(Перечень[[#This Row],[ДАТА НАЧАЛА]]+Перечень[[#This Row],[ДЛИТЕЛЬНОСТЬ]]-1))),Перечень[[#This Row],[ДАТА НАЧАЛА]]+Перечень[[#This Row],[ДЛИТЕЛЬНОСТЬ]]-1),\"\")","v":""}]
[null,null,null,null,null,{"$f":"IF(ISNUMBER(Перечень[[#This Row],[ДЛИТЕЛЬНОСТЬ]]),IF(Перечень[[#This Row],[ОСНОВАНИЕ]]=\"ОТ (отпуск)\",Перечень[[#This Row],[ДАТА НАЧАЛА]]+Перечень[[#This Row],[ДЛИТЕЛЬНОСТЬ]]-1+SUMPRODUCT((Праздники[праздники]>=Перечень[[#This Row],[ДАТА НАЧАЛА]])*(Праздники[праздники]<=(Перечень[[#This Row],[ДАТА НАЧАЛА]]+Перечень[[#This Row],[ДЛИТЕЛЬНОСТЬ]]-1))),Перечень[[#This Row],[ДАТА НАЧАЛА]]+Перечень[[#This Row],[ДЛИТЕЛЬНОСТЬ]]-1),\"\")","v":""}]
[null,null,null,null,null,{"$f":"IF(ISNUMBER(Перечень[[#This Row],[ДЛИТЕЛЬНОСТЬ]]),IF(Перечень[[#This Row],[ОСНОВАНИЕ]]=\"ОТ (отпуск)\",Перечень[[#This Row],[ДАТА НАЧАЛА]]+Перечень[[#This Row],[ДЛИТЕЛЬНОСТЬ]]-1+SUMPRODUCT((Праздники[праздники]>=Перечень[[#This Row],[ДАТА НАЧАЛА]])*(Праздники[праздники]<=(Перечень[[#This Row],[ДАТА НАЧАЛА]]+Перечень[[#This Row],[ДЛИТЕЛЬНОСТЬ]]-1))),Перечень[[#This Row],[ДАТА НАЧАЛА]]+Перечень[[#This Row],[ДЛИТЕЛЬНОСТЬ]]-1),\"\")","v":""}]
[null,null,null,null,null,{"$f":"IF(ISNUMBER(Перечень[[#This Row],[ДЛИТЕЛЬНОСТЬ]]),IF(Перечень[[#This Row],[ОСНОВАНИЕ]]=\"ОТ (отпуск)\",Перечень[[#This Row],[ДАТА НАЧАЛА]]+Перечень[[#This Row],[ДЛИТЕЛЬНОСТЬ]]-1+SUMPRODUCT((Праздники[праздники]>=Перечень[[#This Row],[ДАТА НАЧАЛА]])*(Праздники[праздники]<=(Перечень[[#This Row],[ДАТА НАЧАЛА]]+Перечень[[#This Row],[ДЛИТЕЛЬНОСТЬ]]-1))),Перечень[[#This Row],[ДАТА НАЧАЛА]]+Перечень[[#This Row],[ДЛИТЕЛЬНОСТЬ]]-1),\"\")","v":""}]
[null,null,null,null,null,{"$f":"IF(ISNUMBER(Перечень[[#This Row],[ДЛИТЕЛЬНОСТЬ]]),IF(Перечень[[#This Row],[ОСНОВАНИЕ]]=\"ОТ (отпуск)\",Перечень[[#This Row],[ДАТА НАЧАЛА]]+Перечень[[#This Row],[ДЛИТЕЛЬНОСТЬ]]-1+SUMPRODUCT((Праздники[праздники]>=Перечень[[#This Row],[ДАТА НАЧАЛА]])*(Праздники[праздники]<=(Перечень[[#This Row],[ДАТА НАЧАЛА]]+Перечень[[#This Row],[ДЛИТЕЛЬНОСТЬ]]-1))),Перечень[[#This Row],[ДАТА НАЧАЛА]]+Перечень[[#This Row],[ДЛИТЕЛЬНОСТЬ]]-1),\"\")","v":""}]
[null,null,null,null,null,{"$f":"IF(ISNUMBER(Перечень[[#This Row],[ДЛИТЕЛЬНОСТЬ]]),IF(Перечень[[#This Row],[ОСНОВАНИЕ]]=\"ОТ (отпуск)\",Перечень[[#This Row],[ДАТА НАЧАЛА]]+Перечень[[#This Row],[ДЛИТЕЛЬНОСТЬ]]-1+SUMPRODUCT((Праздники[праздники]>=Перечень[[#This Row],[ДАТА НАЧАЛА]])*(Праздники[праздники]<=(Перечень[[#This Row],[ДАТА НАЧАЛА]]+Перечень[[#This Row],[ДЛИТЕЛЬНОСТЬ]]-1))),Перечень[[#This Row],[ДАТА НАЧАЛА]]+Перечень[[#This Row],[ДЛИТЕЛЬНОСТЬ]]-1),\"\")","v":""}]
[null,null,null,null,null,{"$f":"IF(ISNUMBER(Перечень[[#This Row],[ДЛИТЕЛЬНОСТЬ]]),IF(Перечень[[#This Row],[ОСНОВАНИЕ]]=\"ОТ (отпуск)\",Перечень[[#This Row],[ДАТА НАЧАЛА]]+Перечень[[#This Row],[ДЛИТЕЛЬНОСТЬ]]-1+SUMPRODUCT((Праздники[праздники]>=Перечень[[#This Row],[ДАТА НАЧАЛА]])*(Праздники[праздники]<=(Перечень[[#This Row],[ДАТА НАЧАЛА]]+Перечень[[#This Row],[ДЛИТЕЛЬНОСТЬ]]-1))),Перечень[[#This Row],[ДАТА НАЧАЛА]]+Перечень[[#This Row],[ДЛИТЕЛЬНОСТЬ]]-1),\"\")","v":""}]
[null,null,null,null,null,{"$f":"IF(ISNUMBER(Перечень[[#This Row],[ДЛИТЕЛЬНОСТЬ]]),IF(Перечень[[#This Row],[ОСНОВАНИЕ]]=\"ОТ (отпуск)\",Перечень[[#This Row],[ДАТА НАЧАЛА]]+Перечень[[#This Row],[ДЛИТЕЛЬНОСТЬ]]-1+SUMPRODUCT((Праздники[праздники]>=Перечень[[#This Row],[ДАТА НАЧАЛА]])*(Праздники[праздники]<=(Перечень[[#This Row],[ДАТА НАЧАЛА]]+Перечень[[#This Row],[ДЛИТЕЛЬНОСТЬ]]-1))),Перечень[[#This Row],[ДАТА НАЧАЛА]]+Перечень[[#This Row],[ДЛИТЕЛЬНОСТЬ]]-1),\"\")","v":""}]
[null,null,null,null,null,{"$f":"IF(ISNUMBER(Перечень[[#This Row],[ДЛИТЕЛЬНОСТЬ]]),IF(Перечень[[#This Row],[ОСНОВАНИЕ]]=\"ОТ (отпуск)\",Перечень[[#This Row],[ДАТА НАЧАЛА]]+Перечень[[#This Row],[ДЛИТЕЛЬНОСТЬ]]-1+SUMPRODUCT((Праздники[праздники]>=Перечень[[#This Row],[ДАТА НАЧАЛА]])*(Праздники[праздники]<=(Перечень[[#This Row],[ДАТА НАЧАЛА]]+Перечень[[#This Row],[ДЛИТЕЛЬНОСТЬ]]-1))),Перечень[[#This Row],[ДАТА НАЧАЛА]]+Перечень[[#This Row],[ДЛИТЕЛЬНОСТЬ]]-1),\"\")","v":""}]
[null,null,null,null,null,{"$f":"IF(ISNUMBER(Перечень[[#This Row],[ДЛИТЕЛЬНОСТЬ]]),IF(Перечень[[#This Row],[ОСНОВАНИЕ]]=\"ОТ (отпуск)\",Перечень[[#This Row],[ДАТА НАЧАЛА]]+Перечень[[#This Row],[ДЛИТЕЛЬНОСТЬ]]-1+SUMPRODUCT((Праздники[праздники]>=Перечень[[#This Row],[ДАТА НАЧАЛА]])*(Праздники[праздники]<=(Перечень[[#This Row],[ДАТА НАЧАЛА]]+Перечень[[#This Row],[ДЛИТЕЛЬНОСТЬ]]-1))),Перечень[[#This Row],[ДАТА НАЧАЛА]]+Перечень[[#This Row],[ДЛИТЕЛЬНОСТЬ]]-1),\"\")","v":""}]
[null,null,null,null,null,{"$f":"IF(ISNUMBER(Перечень[[#This Row],[ДЛИТЕЛЬНОСТЬ]]),IF(Перечень[[#This Row],[ОСНОВАНИЕ]]=\"ОТ (отпуск)\",Перечень[[#This Row],[ДАТА НАЧАЛА]]+Перечень[[#This Row],[ДЛИТЕЛЬНОСТЬ]]-1+SUMPRODUCT((Праздники[праздники]>=Перечень[[#This Row],[ДАТА НАЧАЛА]])*(Праздники[праздники]<=(Перечень[[#This Row],[ДАТА НАЧАЛА]]+Перечень[[#This Row],[ДЛИТЕЛЬНОСТЬ]]-1))),Перечень[[#This Row],[ДАТА НАЧАЛА]]+Перечень[[#This Row],[ДЛИТЕЛЬНОСТЬ]]-1),\"\")","v":""}]
[null,null,null,null,null,{"$f":"IF(ISNUMBER(Перечень[[#This Row],[ДЛИТЕЛЬНОСТЬ]]),IF(Перечень[[#This Row],[ОСНОВАНИЕ]]=\"ОТ (отпуск)\",Перечень[[#This Row],[ДАТА НАЧАЛА]]+Перечень[[#This Row],[ДЛИТЕЛЬНОСТЬ]]-1+SUMPRODUCT((Праздники[праздники]>=Перечень[[#This Row],[ДАТА НАЧАЛА]])*(Праздники[праздники]<=(Перечень[[#This Row],[ДАТА НАЧАЛА]]+Перечень[[#This Row],[ДЛИТЕЛЬНОСТЬ]]-1))),Перечень[[#This Row],[ДАТА НАЧАЛА]]+Перечень[[#This Row],[ДЛИТЕЛЬНОСТЬ]]-1),\"\")","v":""}]
[null,null,null,null,null,{"$f":"IF(ISNUMBER(Перечень[[#This Row],[ДЛИТЕЛЬНОСТЬ]]),IF(Перечень[[#This Row],[ОСНОВАНИЕ]]=\"ОТ (отпуск)\",Перечень[[#This Row],[ДАТА НАЧАЛА]]+Перечень[[#This Row],[ДЛИТЕЛЬНОСТЬ]]-1+SUMPRODUCT((Праздники[праздники]>=Перечень[[#This Row],[ДАТА НАЧАЛА]])*(Праздники[праздники]<=(Перечень[[#This Row],[ДАТА НАЧАЛА]]+Перечень[[#This Row],[ДЛИТЕЛЬНОСТЬ]]-1))),Перечень[[#This Row],[ДАТА НАЧАЛА]]+Перечень[[#This Row],[ДЛИТЕЛЬНОСТЬ]]-1),\"\")","v":""}]
[null,null,null,null,null,{"$f":"IF(ISNUMBER(Перечень[[#This Row],[ДЛИТЕЛЬНОСТЬ]]),IF(Перечень[[#This Row],[ОСНОВАНИЕ]]=\"ОТ (отпуск)\",Перечень[[#This Row],[ДАТА НАЧАЛА]]+Перечень[[#This Row],[ДЛИТЕЛЬНОСТЬ]]-1+SUMPRODUCT((Праздники[праздники]>=Перечень[[#This Row],[ДАТА НАЧАЛА]])*(Праздники[праздники]<=(Перечень[[#This Row],[ДАТА НАЧАЛА]]+Перечень[[#This Row],[ДЛИТЕЛЬНОСТЬ]]-1))),Перечень[[#This Row],[ДАТА НАЧАЛА]]+Перечень[[#This Row],[ДЛИТЕЛЬНОСТЬ]]-1),\"\")","v":""}]
[null,null,null,null,null,{"$f":"IF(ISNUMBER(Перечень[[#This Row],[ДЛИТЕЛЬНОСТЬ]]),IF(Перечень[[#This Row],[ОСНОВАНИЕ]]=\"ОТ (отпуск)\",Перечень[[#This Row],[ДАТА НАЧАЛА]]+Перечень[[#This Row],[ДЛИТЕЛЬНОСТЬ]]-1+SUMPRODUCT((Праздники[праздники]>=Перечень[[#This Row],[ДАТА НАЧАЛА]])*(Праздники[праздники]<=(Перечень[[#This Row],[ДАТА НАЧАЛА]]+Перечень[[#This Row],[ДЛИТЕЛЬНОСТЬ]]-1))),Перечень[[#This Row],[ДАТА НАЧАЛА]]+Перечень[[#This Row],[ДЛИТЕЛЬНОСТЬ]]-1),\"\")","v":""}]
[null,null,null,null,null,{"$f":"IF(ISNUMBER(Перечень[[#This Row],[ДЛИТЕЛЬНОСТЬ]]),IF(Перечень[[#This Row],[ОСНОВАНИЕ]]=\"ОТ (отпуск)\",Перечень[[#This Row],[ДАТА НАЧАЛА]]+Перечень[[#This Row],[ДЛИТЕЛЬНОСТЬ]]-1+SUMPRODUCT((Праздники[праздники]>=Перечень[[#This Row],[ДАТА НАЧАЛА]])*(Праздники[праздники]<=(Перечень[[#This Row],[ДАТА НАЧАЛА]]+Перечень[[#This Row],[ДЛИТЕЛЬНОСТЬ]]-1))),Перечень[[#This Row],[ДАТА НАЧАЛА]]+Перечень[[#This Row],[ДЛИТЕЛЬНОСТЬ]]-1),\"\")","v":""}]
[null,null,null,null,null,{"$f":"IF(ISNUMBER(Перечень[[#This Row],[ДЛИТЕЛЬНОСТЬ]]),IF(Перечень[[#This Row],[ОСНОВАНИЕ]]=\"ОТ (отпуск)\",Перечень[[#This Row],[ДАТА НАЧАЛА]]+Перечень[[#This Row],[ДЛИТЕЛЬНОСТЬ]]-1+SUMPRODUCT((Праздники[праздники]>=Перечень[[#This Row],[ДАТА НАЧАЛА]])*(Праздники[праздники]<=(Перечень[[#This Row],[ДАТА НАЧАЛА]]+Перечень[[#This Row],[ДЛИТЕЛЬНОСТЬ]]-1))),Перечень[[#This Row],[ДАТА НАЧАЛА]]+Перечень[[#This Row],[ДЛИТЕЛЬНОСТЬ]]-1),\"\")","v":""}]
[null,null,null,null,null,{"$f":"IF(ISNUMBER(Перечень[[#This Row],[ДЛИТЕЛЬНОСТЬ]]),IF(Перечень[[#This Row],[ОСНОВАНИЕ]]=\"ОТ (отпуск)\",Перечень[[#This Row],[ДАТА НАЧАЛА]]+Перечень[[#This Row],[ДЛИТЕЛЬНОСТЬ]]-1+SUMPRODUCT((Праздники[праздники]>=Перечень[[#This Row],[ДАТА НАЧАЛА]])*(Праздники[праздники]<=(Перечень[[#This Row],[ДАТА НАЧАЛА]]+Перечень[[#This Row],[ДЛИТЕЛЬНОСТЬ]]-1))),Перечень[[#This Row],[ДАТА НАЧАЛА]]+Перечень[[#This Row],[ДЛИТЕЛЬНОСТЬ]]-1),\"\")","v":""}]
[null,null,null,null,null,{"$f":"IF(ISNUMBER(Перечень[[#This Row],[ДЛИТЕЛЬНОСТЬ]]),IF(Перечень[[#This Row],[ОСНОВАНИЕ]]=\"ОТ (отпуск)\",Перечень[[#This Row],[ДАТА НАЧАЛА]]+Перечень[[#This Row],[ДЛИТЕЛЬНОСТЬ]]-1+SUMPRODUCT((Праздники[праздники]>=Перечень[[#This Row],[ДАТА НАЧАЛА]])*(Праздники[праздники]<=(Перечень[[#This Row],[ДАТА НАЧАЛА]]+Перечень[[#This Row],[ДЛИТЕЛЬНОСТЬ]]-1))),Перечень[[#This Row],[ДАТА НАЧАЛА]]+Перечень[[#This Row],[ДЛИТЕЛЬНОСТЬ]]-1),\"\")","v":""}]
[null,null,null,null,null,{"$f":"IF(ISNUMBER(Перечень[[#This Row],[ДЛИТЕЛЬНОСТЬ]]),IF(Перечень[[#This Row],[ОСНОВАНИЕ]]=\"ОТ (отпуск)\",Перечень[[#This Row],[ДАТА НАЧАЛА]]+Перечень[[#This Row],[ДЛИТЕЛЬНОСТЬ]]-1+SUMPRODUCT((Праздники[праздники]>=Перечень[[#This Row],[ДАТА НАЧАЛА]])*(Праздники[праздники]<=(Перечень[[#This Row],[ДАТА НАЧАЛА]]+Перечень[[#This Row],[ДЛИТЕЛЬНОСТЬ]]-1))),Перечень[[#This Row],[ДАТА НАЧАЛА]]+Перечень[[#This Row],[ДЛИТЕЛЬНОСТЬ]]-1),\"\")","v":""}]
[null,null,null,null,null,{"$f":"IF(ISNUMBER(Перечень[[#This Row],[ДЛИТЕЛЬНОСТЬ]]),IF(Перечень[[#This Row],[ОСНОВАНИЕ]]=\"ОТ (отпуск)\",Перечень[[#This Row],[ДАТА НАЧАЛА]]+Перечень[[#This Row],[ДЛИТЕЛЬНОСТЬ]]-1+SUMPRODUCT((Праздники[праздники]>=Перечень[[#This Row],[ДАТА НАЧАЛА]])*(Праздники[праздники]<=(Перечень[[#This Row],[ДАТА НАЧАЛА]]+Перечень[[#This Row],[ДЛИТЕЛЬНОСТЬ]]-1))),Перечень[[#This Row],[ДАТА НАЧАЛА]]+Перечень[[#This Row],[ДЛИТЕЛЬНОСТЬ]]-1),\"\")","v":""}]
[null,null,null,null,null,{"$f":"IF(ISNUMBER(Перечень[[#This Row],[ДЛИТЕЛЬНОСТЬ]]),IF(Перечень[[#This Row],[ОСНОВАНИЕ]]=\"ОТ (отпуск)\",Перечень[[#This Row],[ДАТА НАЧАЛА]]+Перечень[[#This Row],[ДЛИТЕЛЬНОСТЬ]]-1+SUMPRODUCT((Праздники[праздники]>=Перечень[[#This Row],[ДАТА НАЧАЛА]])*(Праздники[праздники]<=(Перечень[[#This Row],[ДАТА НАЧАЛА]]+Перечень[[#This Row],[ДЛИТЕЛЬНОСТЬ]]-1))),Перечень[[#This Row],[ДАТА НАЧАЛА]]+Перечень[[#This Row],[ДЛИТЕЛЬНОСТЬ]]-1),\"\")","v":""}]
[null,null,null,null,null,{"$f":"IF(ISNUMBER(Перечень[[#This Row],[ДЛИТЕЛЬНОСТЬ]]),IF(Перечень[[#This Row],[ОСНОВАНИЕ]]=\"ОТ (отпуск)\",Перечень[[#This Row],[ДАТА НАЧАЛА]]+Перечень[[#This Row],[ДЛИТЕЛЬНОСТЬ]]-1+SUMPRODUCT((Праздники[праздники]>=Перечень[[#This Row],[ДАТА НАЧАЛА]])*(Праздники[праздники]<=(Перечень[[#This Row],[ДАТА НАЧАЛА]]+Перечень[[#This Row],[ДЛИТЕЛЬНОСТЬ]]-1))),Перечень[[#This Row],[ДАТА НАЧАЛА]]+Перечень[[#This Row],[ДЛИТЕЛЬНОСТЬ]]-1),\"\")","v":""}]
[null,null,null,null,null,{"$f":"IF(ISNUMBER(Перечень[[#This Row],[ДЛИТЕЛЬНОСТЬ]]),IF(Перечень[[#This Row],[ОСНОВАНИЕ]]=\"ОТ (отпуск)\",Перечень[[#This Row],[ДАТА НАЧАЛА]]+Перечень[[#This Row],[ДЛИТЕЛЬНОСТЬ]]-1+SUMPRODUCT((Праздники[праздники]>=Перечень[[#This Row],[ДАТА НАЧАЛА]])*(Праздники[праздники]<=(Перечень[[#This Row],[ДАТА НАЧАЛА]]+Перечень[[#This Row],[ДЛИТЕЛЬНОСТЬ]]-1))),Перечень[[#This Row],[ДАТА НАЧАЛА]]+Перечень[[#This Row],[ДЛИТЕЛЬНОСТЬ]]-1),\"\")","v":""}]
[null,null,null,null,null,{"$f":"IF(ISNUMBER(Перечень[[#This Row],[ДЛИТЕЛЬНОСТЬ]]),IF(Перечень[[#This Row],[ОСНОВАНИЕ]]=\"ОТ (отпуск)\",Перечень[[#This Row],[ДАТА НАЧАЛА]]+Перечень[[#This Row],[ДЛИТЕЛЬНОСТЬ]]-1+SUMPRODUCT((Праздники[праздники]>=Перечень[[#This Row],[ДАТА НАЧАЛА]])*(Праздники[праздники]<=(Перечень[[#This Row],[ДАТА НАЧАЛА]]+Перечень[[#This Row],[ДЛИТЕЛЬНОСТЬ]]-1))),Перечень[[#This Row],[ДАТА НАЧАЛА]]+Перечень[[#This Row],[ДЛИТЕЛЬНОСТЬ]]-1),\"\")","v":""}]
[null,null,null,null,null,{"$f":"IF(ISNUMBER(Перечень[[#This Row],[ДЛИТЕЛЬНОСТЬ]]),IF(Перечень[[#This Row],[ОСНОВАНИЕ]]=\"ОТ (отпуск)\",Перечень[[#This Row],[ДАТА НАЧАЛА]]+Перечень[[#This Row],[ДЛИТЕЛЬНОСТЬ]]-1+SUMPRODUCT((Праздники[праздники]>=Перечень[[#This Row],[ДАТА НАЧАЛА]])*(Праздники[праздники]<=(Перечень[[#This Row],[ДАТА НАЧАЛА]]+Перечень[[#This Row],[ДЛИТЕЛЬНОСТЬ]]-1))),Перечень[[#This Row],[ДАТА НАЧАЛА]]+Перечень[[#This Row],[ДЛИТЕЛЬНОСТЬ]]-1),\"\")","v":""}]
[null,null,null,null,null,{"$f":"IF(ISNUMBER(Перечень[[#This Row],[ДЛИТЕЛЬНОСТЬ]]),IF(Перечень[[#This Row],[ОСНОВАНИЕ]]=\"ОТ (отпуск)\",Перечень[[#This Row],[ДАТА НАЧАЛА]]+Перечень[[#This Row],[ДЛИТЕЛЬНОСТЬ]]-1+SUMPRODUCT((Праздники[праздники]>=Перечень[[#This Row],[ДАТА НАЧАЛА]])*(Праздники[праздники]<=(Перечень[[#This Row],[ДАТА НАЧАЛА]]+Перечень[[#This Row],[ДЛИТЕЛЬНОСТЬ]]-1))),Перечень[[#This Row],[ДАТА НАЧАЛА]]+Перечень[[#This Row],[ДЛИТЕЛЬНОСТЬ]]-1),\"\")","v":""}]
[null,null,null,null,null,{"$f":"IF(ISNUMBER(Перечень[[#This Row],[ДЛИТЕЛЬНОСТЬ]]),IF(Перечень[[#This Row],[ОСНОВАНИЕ]]=\"ОТ (отпуск)\",Перечень[[#This Row],[ДАТА НАЧАЛА]]+Перечень[[#This Row],[ДЛИТЕЛЬНОСТЬ]]-1+SUMPRODUCT((Праздники[праздники]>=Перечень[[#This Row],[ДАТА НАЧАЛА]])*(Праздники[праздники]<=(Перечень[[#This Row],[ДАТА НАЧАЛА]]+Перечень[[#This Row],[ДЛИТЕЛЬНОСТЬ]]-1))),Перечень[[#This Row],[ДАТА НАЧАЛА]]+Перечень[[#This Row],[ДЛИТЕЛЬНОСТЬ]]-1),\"\")","v":""}]
[null,null,null,null,null,{"$f":"IF(ISNUMBER(Перечень[[#This Row],[ДЛИТЕЛЬНОСТЬ]]),IF(Перечень[[#This Row],[ОСНОВАНИЕ]]=\"ОТ (отпуск)\",Перечень[[#This Row],[ДАТА НАЧАЛА]]+Перечень[[#This Row],[ДЛИТЕЛЬНОСТЬ]]-1+SUMPRODUCT((Праздники[праздники]>=Перечень[[#This Row],[ДАТА НАЧАЛА]])*(Праздники[праздники]<=(Перечень[[#This Row],[ДАТА НАЧАЛА]]+Перечень[[#This Row],[ДЛИТЕЛЬНОСТЬ]]-1))),Перечень[[#This Row],[ДАТА НАЧАЛА]]+Перечень[[#This Row],[ДЛИТЕЛЬНОСТЬ]]-1),\"\")","v":""}]
[null,null,null,null,null,{"$f":"IF(ISNUMBER(Перечень[[#This Row],[ДЛИТЕЛЬНОСТЬ]]),IF(Перечень[[#This Row],[ОСНОВАНИЕ]]=\"ОТ (отпуск)\",Перечень[[#This Row],[ДАТА НАЧАЛА]]+Перечень[[#This Row],[ДЛИТЕЛЬНОСТЬ]]-1+SUMPRODUCT((Праздники[праздники]>=Перечень[[#This Row],[ДАТА НАЧАЛА]])*(Праздники[праздники]<=(Перечень[[#This Row],[ДАТА НАЧАЛА]]+Перечень[[#This Row],[ДЛИТЕЛЬНОСТЬ]]-1))),Перечень[[#This Row],[ДАТА НАЧАЛА]]+Перечень[[#This Row],[ДЛИТЕЛЬНОСТЬ]]-1),\"\")","v":""}]
[null,null,null,null,null,{"$f":"IF(ISNUMBER(Перечень[[#This Row],[ДЛИТЕЛЬНОСТЬ]]),IF(Перечень[[#This Row],[ОСНОВАНИЕ]]=\"ОТ (отпуск)\",Перечень[[#This Row],[ДАТА НАЧАЛА]]+Перечень[[#This Row],[ДЛИТЕЛЬНОСТЬ]]-1+SUMPRODUCT((Праздники[праздники]>=Перечень[[#This Row],[ДАТА НАЧАЛА]])*(Праздники[праздники]<=(Перечень[[#This Row],[ДАТА НАЧАЛА]]+Перечень[[#This Row],[ДЛИТЕЛЬНОСТЬ]]-1))),Перечень[[#This Row],[ДАТА НАЧАЛА]]+Перечень[[#This Row],[ДЛИТЕЛЬНОСТЬ]]-1),\"\")","v":""}]
[null,null,null,null,null,{"$f":"IF(ISNUMBER(Перечень[[#This Row],[ДЛИТЕЛЬНОСТЬ]]),IF(Перечень[[#This Row],[ОСНОВАНИЕ]]=\"ОТ (отпуск)\",Перечень[[#This Row],[ДАТА НАЧАЛА]]+Перечень[[#This Row],[ДЛИТЕЛЬНОСТЬ]]-1+SUMPRODUCT((Праздники[праздники]>=Перечень[[#This Row],[ДАТА НАЧАЛА]])*(Праздники[праздники]<=(Перечень[[#This Row],[ДАТА НАЧАЛА]]+Перечень[[#This Row],[ДЛИТЕЛЬНОСТЬ]]-1))),Перечень[[#This Row],[ДАТА НАЧАЛА]]+Перечень[[#This Row],[ДЛИТЕЛЬНОСТЬ]]-1),\"\")","v":""}]
[null,null,null,null,null,{"$f":"IF(ISNUMBER(Перечень[[#This Row],[ДЛИТЕЛЬНОСТЬ]]),IF(Перечень[[#This Row],[ОСНОВАНИЕ]]=\"ОТ (отпуск)\",Перечень[[#This Row],[ДАТА НАЧАЛА]]+Перечень[[#This Row],[ДЛИТЕЛЬНОСТЬ]]-1+SUMPRODUCT((Праздники[праздники]>=Перечень[[#This Row],[ДАТА НАЧАЛА]])*(Праздники[праздники]<=(Перечень[[#This Row],[ДАТА НАЧАЛА]]+Перечень[[#This Row],[ДЛИТЕЛЬНОСТЬ]]-1))),Перечень[[#This Row],[ДАТА НАЧАЛА]]+Перечень[[#This Row],[ДЛИТЕЛЬНОСТЬ]]-1),\"\")","v":""}]
[null,null,null,null,null,{"$f":"IF(ISNUMBER(Перечень[[#This Row],[ДЛИТЕЛЬНОСТЬ]]),IF(Перечень[[#This Row],[ОСНОВАНИЕ]]=\"ОТ (отпуск)\",Перечень[[#This Row],[ДАТА НАЧАЛА]]+Перечень[[#This Row],[ДЛИТЕЛЬНОСТЬ]]-1+SUMPRODUCT((Праздники[праздники]>=Перечень[[#This Row],[ДАТА НАЧАЛА]])*(Праздники[праздники]<=(Перечень[[#This Row],[ДАТА НАЧАЛА]]+Перечень[[#This Row],[ДЛИТЕЛЬНОСТЬ]]-1))),Перечень[[#This Row],[ДАТА НАЧАЛА]]+Перечень[[#This Row],[ДЛИТЕЛЬНОСТЬ]]-1),\"\")","v":""}]
[null,null,null,null,null,{"$f":"IF(ISNUMBER(Перечень[[#This Row],[ДЛИТЕЛЬНОСТЬ]]),IF(Перечень[[#This Row],[ОСНОВАНИЕ]]=\"ОТ (отпуск)\",Перечень[[#This Row],[ДАТА НАЧАЛА]]+Перечень[[#This Row],[ДЛИТЕЛЬНОСТЬ]]-1+SUMPRODUCT((Праздники[праздники]>=Перечень[[#This Row],[ДАТА НАЧАЛА]])*(Праздники[праздники]<=(Перечень[[#This Row],[ДАТА НАЧАЛА]]+Перечень[[#This Row],[ДЛИТЕЛЬНОСТЬ]]-1))),Перечень[[#This Row],[ДАТА НАЧАЛА]]+Перечень[[#This Row],[ДЛИТЕЛЬНОСТЬ]]-1),\"\")","v":""}]
[null,null,null,null,null,{"$f":"IF(ISNUMBER(Перечень[[#This Row],[ДЛИТЕЛЬНОСТЬ]]),IF(Перечень[[#This Row],[ОСНОВАНИЕ]]=\"ОТ (отпуск)\",Перечень[[#This Row],[ДАТА НАЧАЛА]]+Перечень[[#This Row],[ДЛИТЕЛЬНОСТЬ]]-1+SUMPRODUCT((Праздники[праздники]>=Перечень[[#This Row],[ДАТА НАЧАЛА]])*(Праздники[праздники]<=(Перечень[[#This Row],[ДАТА НАЧАЛА]]+Перечень[[#This Row],[ДЛИТЕЛЬНОСТЬ]]-1))),Перечень[[#This Row],[ДАТА НАЧАЛА]]+Перечень[[#This Row],[ДЛИТЕЛЬНОСТЬ]]-1),\"\")","v":""}]
[null,null,null,null,null,{"$f":"IF(ISNUMBER(Перечень[[#This Row],[ДЛИТЕЛЬНОСТЬ]]),IF(Перечень[[#This Row],[ОСНОВАНИЕ]]=\"ОТ (отпуск)\",Перечень[[#This Row],[ДАТА НАЧАЛА]]+Перечень[[#This Row],[ДЛИТЕЛЬНОСТЬ]]-1+SUMPRODUCT((Праздники[праздники]>=Перечень[[#This Row],[ДАТА НАЧАЛА]])*(Праздники[праздники]<=(Перечень[[#This Row],[ДАТА НАЧАЛА]]+Перечень[[#This Row],[ДЛИТЕЛЬНОСТЬ]]-1))),Перечень[[#This Row],[ДАТА НАЧАЛА]]+Перечень[[#This Row],[ДЛИТЕЛЬНОСТЬ]]-1),\"\")","v":""}]
[null,null,null,null,null,{"$f":"IF(ISNUMBER(Перечень[[#This Row],[ДЛИТЕЛЬНОСТЬ]]),IF(Перечень[[#This Row],[ОСНОВАНИЕ]]=\"ОТ (отпуск)\",Перечень[[#This Row],[ДАТА НАЧАЛА]]+Перечень[[#This Row],[ДЛИТЕЛЬНОСТЬ]]-1+SUMPRODUCT((Праздники[праздники]>=Перечень[[#This Row],[ДАТА НАЧАЛА]])*(Праздники[праздники]<=(Перечень[[#This Row],[ДАТА НАЧАЛА]]+Перечень[[#This Row],[ДЛИТЕЛЬНОСТЬ]]-1))),Перечень[[#This Row],[ДАТА НАЧАЛА]]+Перечень[[#This Row],[ДЛИТЕЛЬНОСТЬ]]-1),\"\")","v":""}]
[null,null,null,null,null,{"$f":"IF(ISNUMBER(Перечень[[#This Row],[ДЛИТЕЛЬНОСТЬ]]),IF(Перечень[[#This Row],[ОСНОВАНИЕ]]=\"ОТ (отпуск)\",Перечень[[#This Row],[ДАТА НАЧАЛА]]+Перечень[[#This Row],[ДЛИТЕЛЬНОСТЬ]]-1+SUMPRODUCT((Праздники[праздники]>=Перечень[[#This Row],[ДАТА НАЧАЛА]])*(Праздники[праздники]<=(Перечень[[#This Row],[ДАТА НАЧАЛА]]+Перечень[[#This Row],[ДЛИТЕЛЬНОСТЬ]]-1))),Перечень[[#This Row],[ДАТА НАЧАЛА]]+Перечень[[#This Row],[ДЛИТЕЛЬНОСТЬ]]-1),\"\")","v":""}]
[null,null,null,null,null,{"$f":"IF(ISNUMBER(Перечень[[#This Row],[ДЛИТЕЛЬНОСТЬ]]),IF(Перечень[[#This Row],[ОСНОВАНИЕ]]=\"ОТ (отпуск)\",Перечень[[#This Row],[ДАТА НАЧАЛА]]+Перечень[[#This Row],[ДЛИТЕЛЬНОСТЬ]]-1+SUMPRODUCT((Праздники[праздники]>=Перечень[[#This Row],[ДАТА НАЧАЛА]])*(Праздники[праздники]<=(Перечень[[#This Row],[ДАТА НАЧАЛА]]+Перечень[[#This Row],[ДЛИТЕЛЬНОСТЬ]]-1))),Перечень[[#This Row],[ДАТА НАЧАЛА]]+Перечень[[#This Row],[ДЛИТЕЛЬНОСТЬ]]-1),\"\")","v":""}]
[null,null,null,null,null,{"$f":"IF(ISNUMBER(Перечень[[#This Row],[ДЛИТЕЛЬНОСТЬ]]),IF(Перечень[[#This Row],[ОСНОВАНИЕ]]=\"ОТ (отпуск)\",Перечень[[#This Row],[ДАТА НАЧАЛА]]+Перечень[[#This Row],[ДЛИТЕЛЬНОСТЬ]]-1+SUMPRODUCT((Праздники[праздники]>=Перечень[[#This Row],[ДАТА НАЧАЛА]])*(Праздники[праздники]<=(Перечень[[#This Row],[ДАТА НАЧАЛА]]+Перечень[[#This Row],[ДЛИТЕЛЬНОСТЬ]]-1))),Перечень[[#This Row],[ДАТА НАЧАЛА]]+Перечень[[#This Row],[ДЛИТЕЛЬНОСТЬ]]-1),\"\")","v":""}]
[null,null,null,null,null,{"$f":"IF(ISNUMBER(Перечень[[#This Row],[ДЛИТЕЛЬНОСТЬ]]),IF(Перечень[[#This Row],[ОСНОВАНИЕ]]=\"ОТ (отпуск)\",Перечень[[#This Row],[ДАТА НАЧАЛА]]+Перечень[[#This Row],[ДЛИТЕЛЬНОСТЬ]]-1+SUMPRODUCT((Праздники[праздники]>=Перечень[[#This Row],[ДАТА НАЧАЛА]])*(Праздники[праздники]<=(Перечень[[#This Row],[ДАТА НАЧАЛА]]+Перечень[[#This Row],[ДЛИТЕЛЬНОСТЬ]]-1))),Перечень[[#This Row],[ДАТА НАЧАЛА]]+Перечень[[#This Row],[ДЛИТЕЛЬНОСТЬ]]-1),\"\")","v":""}]
[null,null,null,null,null,{"$f":"IF(ISNUMBER(Перечень[[#This Row],[ДЛИТЕЛЬНОСТЬ]]),IF(Перечень[[#This Row],[ОСНОВАНИЕ]]=\"ОТ (отпуск)\",Перечень[[#This Row],[ДАТА НАЧАЛА]]+Перечень[[#This Row],[ДЛИТЕЛЬНОСТЬ]]-1+SUMPRODUCT((Праздники[праздники]>=Перечень[[#This Row],[ДАТА НАЧАЛА]])*(Праздники[праздники]<=(Перечень[[#This Row],[ДАТА НАЧАЛА]]+Перечень[[#This Row],[ДЛИТЕЛЬНОСТЬ]]-1))),Перечень[[#This Row],[ДАТА НАЧАЛА]]+Перечень[[#This Row],[ДЛИТЕЛЬНОСТЬ]]-1),\"\")","v":""}]
[null,null,null,null,null,{"$f":"IF(ISNUMBER(Перечень[[#This Row],[ДЛИТЕЛЬНОСТЬ]]),IF(Перечень[[#This Row],[ОСНОВАНИЕ]]=\"ОТ (отпуск)\",Перечень[[#This Row],[ДАТА НАЧАЛА]]+Перечень[[#This Row],[ДЛИТЕЛЬНОСТЬ]]-1+SUMPRODUCT((Праздники[праздники]>=Перечень[[#This Row],[ДАТА НАЧАЛА]])*(Праздники[праздники]<=(Перечень[[#This Row],[ДАТА НАЧАЛА]]+Перечень[[#This Row],[ДЛИТЕЛЬНОСТЬ]]-1))),Перечень[[#This Row],[ДАТА НАЧАЛА]]+Перечень[[#This Row],[ДЛИТЕЛЬНОСТЬ]]-1),\"\")","v":""}]
[null,null,null,null,null,{"$f":"IF(ISNUMBER(Перечень[[#This Row],[ДЛИТЕЛЬНОСТЬ]]),IF(Перечень[[#This Row],[ОСНОВАНИЕ]]=\"ОТ (отпуск)\",Перечень[[#This Row],[ДАТА НАЧАЛА]]+Перечень[[#This Row],[ДЛИТЕЛЬНОСТЬ]]-1+SUMPRODUCT((Праздники[праздники]>=Перечень[[#This Row],[ДАТА НАЧАЛА]])*(Праздники[праздники]<=(Перечень[[#This Row],[ДАТА НАЧАЛА]]+Перечень[[#This Row],[ДЛИТЕЛЬНОСТЬ]]-1))),Перечень[[#This Row],[ДАТА НАЧАЛА]]+Перечень[[#This Row],[ДЛИТЕЛЬНОСТЬ]]-1),\"\")","v":""}]
[null,null,null,null,null,{"$f":"IF(ISNUMBER(Перечень[[#This Row],[ДЛИТЕЛЬНОСТЬ]]),IF(Перечень[[#This Row],[ОСНОВАНИЕ]]=\"ОТ (отпуск)\",Перечень[[#This Row],[ДАТА НАЧАЛА]]+Перечень[[#This Row],[ДЛИТЕЛЬНОСТЬ]]-1+SUMPRODUCT((Праздники[праздники]>=Перечень[[#This Row],[ДАТА НАЧАЛА]])*(Праздники[праздники]<=(Перечень[[#This Row],[ДАТА НАЧАЛА]]+Перечень[[#This Row],[ДЛИТЕЛЬНОСТЬ]]-1))),Перечень[[#This Row],[ДАТА НАЧАЛА]]+Перечень[[#This Row],[ДЛИТЕЛЬНОСТЬ]]-1),\"\")","v":""}]
[null,null,null,null,null,{"$f":"IF(ISNUMBER(Перечень[[#This Row],[ДЛИТЕЛЬНОСТЬ]]),IF(Перечень[[#This Row],[ОСНОВАНИЕ]]=\"ОТ (отпуск)\",Перечень[[#This Row],[ДАТА НАЧАЛА]]+Перечень[[#This Row],[ДЛИТЕЛЬНОСТЬ]]-1+SUMPRODUCT((Праздники[праздники]>=Перечень[[#This Row],[ДАТА НАЧАЛА]])*(Праздники[праздники]<=(Перечень[[#This Row],[ДАТА НАЧАЛА]]+Перечень[[#This Row],[ДЛИТЕЛЬНОСТЬ]]-1))),Перечень[[#This Row],[ДАТА НАЧАЛА]]+Перечень[[#This Row],[ДЛИТЕЛЬНОСТЬ]]-1),\"\")","v":""}]
[null,null,null,null,null,{"$f":"IF(ISNUMBER(Перечень[[#This Row],[ДЛИТЕЛЬНОСТЬ]]),IF(Перечень[[#This Row],[ОСНОВАНИЕ]]=\"ОТ (отпуск)\",Перечень[[#This Row],[ДАТА НАЧАЛА]]+Перечень[[#This Row],[ДЛИТЕЛЬНОСТЬ]]-1+SUMPRODUCT((Праздники[праздники]>=Перечень[[#This Row],[ДАТА НАЧАЛА]])*(Праздники[праздники]<=(Перечень[[#This Row],[ДАТА НАЧАЛА]]+Перечень[[#This Row],[ДЛИТЕЛЬНОСТЬ]]-1))),Перечень[[#This Row],[ДАТА НАЧАЛА]]+Перечень[[#This Row],[ДЛИТЕЛЬНОСТЬ]]-1),\"\")","v":""}]
[null,null,null,null,null,{"$f":"IF(ISNUMBER(Перечень[[#This Row],[ДЛИТЕЛЬНОСТЬ]]),IF(Перечень[[#This Row],[ОСНОВАНИЕ]]=\"ОТ (отпуск)\",Перечень[[#This Row],[ДАТА НАЧАЛА]]+Перечень[[#This Row],[ДЛИТЕЛЬНОСТЬ]]-1+SUMPRODUCT((Праздники[праздники]>=Перечень[[#This Row],[ДАТА НАЧАЛА]])*(Праздники[праздники]<=(Перечень[[#This Row],[ДАТА НАЧАЛА]]+Перечень[[#This Row],[ДЛИТЕЛЬНОСТЬ]]-1))),Перечень[[#This Row],[ДАТА НАЧАЛА]]+Перечень[[#This Row],[ДЛИТЕЛЬНОСТЬ]]-1),\"\")","v":""}]
[null,null,null,null,null,{"$f":"IF(ISNUMBER(Перечень[[#This Row],[ДЛИТЕЛЬНОСТЬ]]),IF(Перечень[[#This Row],[ОСНОВАНИЕ]]=\"ОТ (отпуск)\",Перечень[[#This Row],[ДАТА НАЧАЛА]]+Перечень[[#This Row],[ДЛИТЕЛЬНОСТЬ]]-1+SUMPRODUCT((Праздники[праздники]>=Перечень[[#This Row],[ДАТА НАЧАЛА]])*(Праздники[праздники]<=(Перечень[[#This Row],[ДАТА НАЧАЛА]]+Перечень[[#This Row],[ДЛИТЕЛЬНОСТЬ]]-1))),Перечень[[#This Row],[ДАТА НАЧАЛА]]+Перечень[[#This Row],[ДЛИТЕЛЬНОСТЬ]]-1),\"\")","v":""}]
[null,null,null,null,null,{"$f":"IF(ISNUMBER(Перечень[[#This Row],[ДЛИТЕЛЬНОСТЬ]]),IF(Перечень[[#This Row],[ОСНОВАНИЕ]]=\"ОТ (отпуск)\",Перечень[[#This Row],[ДАТА НАЧАЛА]]+Перечень[[#This Row],[ДЛИТЕЛЬНОСТЬ]]-1+SUMPRODUCT((Праздники[праздники]>=Перечень[[#This Row],[ДАТА НАЧАЛА]])*(Праздники[праздники]<=(Перечень[[#This Row],[ДАТА НАЧАЛА]]+Перечень[[#This Row],[ДЛИТЕЛЬНОСТЬ]]-1))),Перечень[[#This Row],[ДАТА НАЧАЛА]]+Перечень[[#This Row],[ДЛИТЕЛЬНОСТЬ]]-1),\"\")","v":""}]
[null,null,null,null,null,{"$f":"IF(ISNUMBER(Перечень[[#This Row],[ДЛИТЕЛЬНОСТЬ]]),IF(Перечень[[#This Row],[ОСНОВАНИЕ]]=\"ОТ (отпуск)\",Перечень[[#This Row],[ДАТА НАЧАЛА]]+Перечень[[#This Row],[ДЛИТЕЛЬНОСТЬ]]-1+SUMPRODUCT((Праздники[праздники]>=Перечень[[#This Row],[ДАТА НАЧАЛА]])*(Праздники[праздники]<=(Перечень[[#This Row],[ДАТА НАЧАЛА]]+Перечень[[#This Row],[ДЛИТЕЛЬНОСТЬ]]-1))),Перечень[[#This Row],[ДАТА НАЧАЛА]]+Перечень[[#This Row],[ДЛИТЕЛЬНОСТЬ]]-1),\"\")","v":""}]
[null,null,null,null,null,{"$f":"IF(ISNUMBER(Перечень[[#This Row],[ДЛИТЕЛЬНОСТЬ]]),IF(Перечень[[#This Row],[ОСНОВАНИЕ]]=\"ОТ (отпуск)\",Перечень[[#This Row],[ДАТА НАЧАЛА]]+Перечень[[#This Row],[ДЛИТЕЛЬНОСТЬ]]-1+SUMPRODUCT((Праздники[праздники]>=Перечень[[#This Row],[ДАТА НАЧАЛА]])*(Праздники[праздники]<=(Перечень[[#This Row],[ДАТА НАЧАЛА]]+Перечень[[#This Row],[ДЛИТЕЛЬНОСТЬ]]-1))),Перечень[[#This Row],[ДАТА НАЧАЛА]]+Перечень[[#This Row],[ДЛИТЕЛЬНОСТЬ]]-1),\"\")","v":""}]
[null,null,null,null,null,{"$f":"IF(ISNUMBER(Перечень[[#This Row],[ДЛИТЕЛЬНОСТЬ]]),IF(Перечень[[#This Row],[ОСНОВАНИЕ]]=\"ОТ (отпуск)\",Перечень[[#This Row],[ДАТА НАЧАЛА]]+Перечень[[#This Row],[ДЛИТЕЛЬНОСТЬ]]-1+SUMPRODUCT((Праздники[праздники]>=Перечень[[#This Row],[ДАТА НАЧАЛА]])*(Праздники[праздники]<=(Перечень[[#This Row],[ДАТА НАЧАЛА]]+Перечень[[#This Row],[ДЛИТЕЛЬНОСТЬ]]-1))),Перечень[[#This Row],[ДАТА НАЧАЛА]]+Перечень[[#This Row],[ДЛИТЕЛЬНОСТЬ]]-1),\"\")","v":""}]
[null,null,null,null,null,{"$f":"IF(ISNUMBER(Перечень[[#This Row],[ДЛИТЕЛЬНОСТЬ]]),IF(Перечень[[#This Row],[ОСНОВАНИЕ]]=\"ОТ (отпуск)\",Перечень[[#This Row],[ДАТА НАЧАЛА]]+Перечень[[#This Row],[ДЛИТЕЛЬНОСТЬ]]-1+SUMPRODUCT((Праздники[праздники]>=Перечень[[#This Row],[ДАТА НАЧАЛА]])*(Праздники[праздники]<=(Перечень[[#This Row],[ДАТА НАЧАЛА]]+Перечень[[#This Row],[ДЛИТЕЛЬНОСТЬ]]-1))),Перечень[[#This Row],[ДАТА НАЧАЛА]]+Перечень[[#This Row],[ДЛИТЕЛЬНОСТЬ]]-1),\"\")","v":""}]
[null,null,null,null,null,{"$f":"IF(ISNUMBER(Перечень[[#This Row],[ДЛИТЕЛЬНОСТЬ]]),IF(Перечень[[#This Row],[ОСНОВАНИЕ]]=\"ОТ (отпуск)\",Перечень[[#This Row],[ДАТА НАЧАЛА]]+Перечень[[#This Row],[ДЛИТЕЛЬНОСТЬ]]-1+SUMPRODUCT((Праздники[праздники]>=Перечень[[#This Row],[ДАТА НАЧАЛА]])*(Праздники[праздники]<=(Перечень[[#This Row],[ДАТА НАЧАЛА]]+Перечень[[#This Row],[ДЛИТЕЛЬНОСТЬ]]-1))),Перечень[[#This Row],[ДАТА НАЧАЛА]]+Перечень[[#This Row],[ДЛИТЕЛЬНОСТЬ]]-1),\"\")","v":""}]
[null,null,null,null,null,{"$f":"IF(ISNUMBER(Перечень[[#This Row],[ДЛИТЕЛЬНОСТЬ]]),IF(Перечень[[#This Row],[ОСНОВАНИЕ]]=\"ОТ (отпуск)\",Перечень[[#This Row],[ДАТА НАЧАЛА]]+Перечень[[#This Row],[ДЛИТЕЛЬНОСТЬ]]-1+SUMPRODUCT((Праздники[праздники]>=Перечень[[#This Row],[ДАТА НАЧАЛА]])*(Праздники[праздники]<=(Перечень[[#This Row],[ДАТА НАЧАЛА]]+Перечень[[#This Row],[ДЛИТЕЛЬНОСТЬ]]-1))),Перечень[[#This Row],[ДАТА НАЧАЛА]]+Перечень[[#This Row],[ДЛИТЕЛЬНОСТЬ]]-1),\"\")","v":""}]
[null,null,null,null,null,{"$f":"IF(ISNUMBER(Перечень[[#This Row],[ДЛИТЕЛЬНОСТЬ]]),IF(Перечень[[#This Row],[ОСНОВАНИЕ]]=\"ОТ (отпуск)\",Перечень[[#This Row],[ДАТА НАЧАЛА]]+Перечень[[#This Row],[ДЛИТЕЛЬНОСТЬ]]-1+SUMPRODUCT((Праздники[праздники]>=Перечень[[#This Row],[ДАТА НАЧАЛА]])*(Праздники[праздники]<=(Перечень[[#This Row],[ДАТА НАЧАЛА]]+Перечень[[#This Row],[ДЛИТЕЛЬНОСТЬ]]-1))),Перечень[[#This Row],[ДАТА НАЧАЛА]]+Перечень[[#This Row],[ДЛИТЕЛЬНОСТЬ]]-1),\"\")","v":""}]
[null,null,null,null,null,{"$f":"IF(ISNUMBER(Перечень[[#This Row],[ДЛИТЕЛЬНОСТЬ]]),IF(Перечень[[#This Row],[ОСНОВАНИЕ]]=\"ОТ (отпуск)\",Перечень[[#This Row],[ДАТА НАЧАЛА]]+Перечень[[#This Row],[ДЛИТЕЛЬНОСТЬ]]-1+SUMPRODUCT((Праздники[праздники]>=Перечень[[#This Row],[ДАТА НАЧАЛА]])*(Праздники[праздники]<=(Перечень[[#This Row],[ДАТА НАЧАЛА]]+Перечень[[#This Row],[ДЛИТЕЛЬНОСТЬ]]-1))),Перечень[[#This Row],[ДАТА НАЧАЛА]]+Перечень[[#This Row],[ДЛИТЕЛЬНОСТЬ]]-1),\"\")","v":""}]
[null,null,null,null,null,{"$f":"IF(ISNUMBER(Перечень[[#This Row],[ДЛИТЕЛЬНОСТЬ]]),IF(Перечень[[#This Row],[ОСНОВАНИЕ]]=\"ОТ (отпуск)\",Перечень[[#This Row],[ДАТА НАЧАЛА]]+Перечень[[#This Row],[ДЛИТЕЛЬНОСТЬ]]-1+SUMPRODUCT((Праздники[праздники]>=Перечень[[#This Row],[ДАТА НАЧАЛА]])*(Праздники[праздники]<=(Перечень[[#This Row],[ДАТА НАЧАЛА]]+Перечень[[#This Row],[ДЛИТЕЛЬНОСТЬ]]-1))),Перечень[[#This Row],[ДАТА НАЧАЛА]]+Перечень[[#This Row],[ДЛИТЕЛЬНОСТЬ]]-1),\"\")","v":""}]
[null,null,null,null,null,{"$f":"IF(ISNUMBER(Перечень[[#This Row],[ДЛИТЕЛЬНОСТЬ]]),IF(Перечень[[#This Row],[ОСНОВАНИЕ]]=\"ОТ (отпуск)\",Перечень[[#This Row],[ДАТА НАЧАЛА]]+Перечень[[#This Row],[ДЛИТЕЛЬНОСТЬ]]-1+SUMPRODUCT((Праздники[праздники]>=Перечень[[#This Row],[ДАТА НАЧАЛА]])*(Праздники[праздники]<=(Перечень[[#This Row],[ДАТА НАЧАЛА]]+Перечень[[#This Row],[ДЛИТЕЛЬНОСТЬ]]-1))),Перечень[[#This Row],[ДАТА НАЧАЛА]]+Перечень[[#This Row],[ДЛИТЕЛЬНОСТЬ]]-1),\"\")","v":""}]
[null,null,null,null,null,{"$f":"IF(ISNUMBER(Перечень[[#This Row],[ДЛИТЕЛЬНОСТЬ]]),IF(Перечень[[#This Row],[ОСНОВАНИЕ]]=\"ОТ (отпуск)\",Перечень[[#This Row],[ДАТА НАЧАЛА]]+Перечень[[#This Row],[ДЛИТЕЛЬНОСТЬ]]-1+SUMPRODUCT((Праздники[праздники]>=Перечень[[#This Row],[ДАТА НАЧАЛА]])*(Праздники[праздники]<=(Перечень[[#This Row],[ДАТА НАЧАЛА]]+Перечень[[#This Row],[ДЛИТЕЛЬНОСТЬ]]-1))),Перечень[[#This Row],[ДАТА НАЧАЛА]]+Перечень[[#This Row],[ДЛИТЕЛЬНОСТЬ]]-1),\"\")","v":""}]
[null,null,null,null,null,{"$f":"IF(ISNUMBER(Перечень[[#This Row],[ДЛИТЕЛЬНОСТЬ]]),IF(Перечень[[#This Row],[ОСНОВАНИЕ]]=\"ОТ (отпуск)\",Перечень[[#This Row],[ДАТА НАЧАЛА]]+Перечень[[#This Row],[ДЛИТЕЛЬНОСТЬ]]-1+SUMPRODUCT((Праздники[праздники]>=Перечень[[#This Row],[ДАТА НАЧАЛА]])*(Праздники[праздники]<=(Перечень[[#This Row],[ДАТА НАЧАЛА]]+Перечень[[#This Row],[ДЛИТЕЛЬНОСТЬ]]-1))),Перечень[[#This Row],[ДАТА НАЧАЛА]]+Перечень[[#This Row],[ДЛИТЕЛЬНОСТЬ]]-1),\"\")","v":""}]
[null,null,null,null,null,{"$f":"IF(ISNUMBER(Перечень[[#This Row],[ДЛИТЕЛЬНОСТЬ]]),IF(Перечень[[#This Row],[ОСНОВАНИЕ]]=\"ОТ (отпуск)\",Перечень[[#This Row],[ДАТА НАЧАЛА]]+Перечень[[#This Row],[ДЛИТЕЛЬНОСТЬ]]-1+SUMPRODUCT((Праздники[праздники]>=Перечень[[#This Row],[ДАТА НАЧАЛА]])*(Праздники[праздники]<=(Перечень[[#This Row],[ДАТА НАЧАЛА]]+Перечень[[#This Row],[ДЛИТЕЛЬНОСТЬ]]-1))),Перечень[[#This Row],[ДАТА НАЧАЛА]]+Перечень[[#This Row],[ДЛИТЕЛЬНОСТЬ]]-1),\"\")","v":""}]
[null,null,null,null,null,{"$f":"IF(ISNUMBER(Перечень[[#This Row],[ДЛИТЕЛЬНОСТЬ]]),IF(Перечень[[#This Row],[ОСНОВАНИЕ]]=\"ОТ (отпуск)\",Перечень[[#This Row],[ДАТА НАЧАЛА]]+Перечень[[#This Row],[ДЛИТЕЛЬНОСТЬ]]-1+SUMPRODUCT((Праздники[праздники]>=Перечень[[#This Row],[ДАТА НАЧАЛА]])*(Праздники[праздники]<=(Перечень[[#This Row],[ДАТА НАЧАЛА]]+Перечень[[#This Row],[ДЛИТЕЛЬНОСТЬ]]-1))),Перечень[[#This Row],[ДАТА НАЧАЛА]]+Перечень[[#This Row],[ДЛИТЕЛЬНОСТЬ]]-1),\"\")","v":""}]
[null,null,null,null,null,{"$f":"IF(ISNUMBER(Перечень[[#This Row],[ДЛИТЕЛЬНОСТЬ]]),IF(Перечень[[#This Row],[ОСНОВАНИЕ]]=\"ОТ (отпуск)\",Перечень[[#This Row],[ДАТА НАЧАЛА]]+Перечень[[#This Row],[ДЛИТЕЛЬНОСТЬ]]-1+SUMPRODUCT((Праздники[праздники]>=Перечень[[#This Row],[ДАТА НАЧАЛА]])*(Праздники[праздники]<=(Перечень[[#This Row],[ДАТА НАЧАЛА]]+Перечень[[#This Row],[ДЛИТЕЛЬНОСТЬ]]-1))),Перечень[[#This Row],[ДАТА НАЧАЛА]]+Перечень[[#This Row],[ДЛИТЕЛЬНОСТЬ]]-1),\"\")","v":""}]
[null,null,null,null,null,{"$f":"IF(ISNUMBER(Перечень[[#This Row],[ДЛИТЕЛЬНОСТЬ]]),IF(Перечень[[#This Row],[ОСНОВАНИЕ]]=\"ОТ (отпуск)\",Перечень[[#This Row],[ДАТА НАЧАЛА]]+Перечень[[#This Row],[ДЛИТЕЛЬНОСТЬ]]-1+SUMPRODUCT((Праздники[праздники]>=Перечень[[#This Row],[ДАТА НАЧАЛА]])*(Праздники[праздники]<=(Перечень[[#This Row],[ДАТА НАЧАЛА]]+Перечень[[#This Row],[ДЛИТЕЛЬНОСТЬ]]-1))),Перечень[[#This Row],[ДАТА НАЧАЛА]]+Перечень[[#This Row],[ДЛИТЕЛЬНОСТЬ]]-1),\"\")","v":""}]
[null,null,null,null,null,{"$f":"IF(ISNUMBER(Перечень[[#This Row],[ДЛИТЕЛЬНОСТЬ]]),IF(Перечень[[#This Row],[ОСНОВАНИЕ]]=\"ОТ (отпуск)\",Перечень[[#This Row],[ДАТА НАЧАЛА]]+Перечень[[#This Row],[ДЛИТЕЛЬНОСТЬ]]-1+SUMPRODUCT((Праздники[праздники]>=Перечень[[#This Row],[ДАТА НАЧАЛА]])*(Праздники[праздники]<=(Перечень[[#This Row],[ДАТА НАЧАЛА]]+Перечень[[#This Row],[ДЛИТЕЛЬНОСТЬ]]-1))),Перечень[[#This Row],[ДАТА НАЧАЛА]]+Перечень[[#This Row],[ДЛИТЕЛЬНОСТЬ]]-1),\"\")","v":""}]
[null,null,null,null,null,{"$f":"IF(ISNUMBER(Перечень[[#This Row],[ДЛИТЕЛЬНОСТЬ]]),IF(Перечень[[#This Row],[ОСНОВАНИЕ]]=\"ОТ (отпуск)\",Перечень[[#This Row],[ДАТА НАЧАЛА]]+Перечень[[#This Row],[ДЛИТЕЛЬНОСТЬ]]-1+SUMPRODUCT((Праздники[праздники]>=Перечень[[#This Row],[ДАТА НАЧАЛА]])*(Праздники[праздники]<=(Перечень[[#This Row],[ДАТА НАЧАЛА]]+Перечень[[#This Row],[ДЛИТЕЛЬНОСТЬ]]-1))),Перечень[[#This Row],[ДАТА НАЧАЛА]]+Перечень[[#This Row],[ДЛИТЕЛЬНОСТЬ]]-1),\"\")","v":""}]
[null,null,null,null,null,{"$f":"IF(ISNUMBER(Перечень[[#This Row],[ДЛИТЕЛЬНОСТЬ]]),IF(Перечень[[#This Row],[ОСНОВАНИЕ]]=\"ОТ (отпуск)\",Перечень[[#This Row],[ДАТА НАЧАЛА]]+Перечень[[#This Row],[ДЛИТЕЛЬНОСТЬ]]-1+SUMPRODUCT((Праздники[праздники]>=Перечень[[#This Row],[ДАТА НАЧАЛА]])*(Праздники[праздники]<=(Перечень[[#This Row],[ДАТА НАЧАЛА]]+Перечень[[#This Row],[ДЛИТЕЛЬНОСТЬ]]-1))),Перечень[[#This Row],[ДАТА НАЧАЛА]]+Перечень[[#This Row],[ДЛИТЕЛЬНОСТЬ]]-1),\"\")","v":""}]
[null,null,null,null,null,{"$f":"IF(ISNUMBER(Перечень[[#This Row],[ДЛИТЕЛЬНОСТЬ]]),IF(Перечень[[#This Row],[ОСНОВАНИЕ]]=\"ОТ (отпуск)\",Перечень[[#This Row],[ДАТА НАЧАЛА]]+Перечень[[#This Row],[ДЛИТЕЛЬНОСТЬ]]-1+SUMPRODUCT((Праздники[праздники]>=Перечень[[#This Row],[ДАТА НАЧАЛА]])*(Праздники[праздники]<=(Перечень[[#This Row],[ДАТА НАЧАЛА]]+Перечень[[#This Row],[ДЛИТЕЛЬНОСТЬ]]-1))),Перечень[[#This Row],[ДАТА НАЧАЛА]]+Перечень[[#This Row],[ДЛИТЕЛЬНОСТЬ]]-1),\"\")","v":""}]
[null,null,null,null,null,{"$f":"IF(ISNUMBER(Перечень[[#This Row],[ДЛИТЕЛЬНОСТЬ]]),IF(Перечень[[#This Row],[ОСНОВАНИЕ]]=\"ОТ (отпуск)\",Перечень[[#This Row],[ДАТА НАЧАЛА]]+Перечень[[#This Row],[ДЛИТЕЛЬНОСТЬ]]-1+SUMPRODUCT((Праздники[праздники]>=Перечень[[#This Row],[ДАТА НАЧАЛА]])*(Праздники[праздники]<=(Перечень[[#This Row],[ДАТА НАЧАЛА]]+Перечень[[#This Row],[ДЛИТЕЛЬНОСТЬ]]-1))),Перечень[[#This Row],[ДАТА НАЧАЛА]]+Перечень[[#This Row],[ДЛИТЕЛЬНОСТЬ]]-1),\"\")","v":""}]
[null,null,null,null,null,{"$f":"IF(ISNUMBER(Перечень[[#This Row],[ДЛИТЕЛЬНОСТЬ]]),IF(Перечень[[#This Row],[ОСНОВАНИЕ]]=\"ОТ (отпуск)\",Перечень[[#This Row],[ДАТА НАЧАЛА]]+Перечень[[#This Row],[ДЛИТЕЛЬНОСТЬ]]-1+SUMPRODUCT((Праздники[праздники]>=Перечень[[#This Row],[ДАТА НАЧАЛА]])*(Праздники[праздники]<=(Перечень[[#This Row],[ДАТА НАЧАЛА]]+Перечень[[#This Row],[ДЛИТЕЛЬНОСТЬ]]-1))),Перечень[[#This Row],[ДАТА НАЧАЛА]]+Перечень[[#This Row],[ДЛИТЕЛЬНОСТЬ]]-1),\"\")","v":""}]
[null,null,null,null,null,{"$f":"IF(ISNUMBER(Перечень[[#This Row],[ДЛИТЕЛЬНОСТЬ]]),IF(Перечень[[#This Row],[ОСНОВАНИЕ]]=\"ОТ (отпуск)\",Перечень[[#This Row],[ДАТА НАЧАЛА]]+Перечень[[#This Row],[ДЛИТЕЛЬНОСТЬ]]-1+SUMPRODUCT((Праздники[праздники]>=Перечень[[#This Row],[ДАТА НАЧАЛА]])*(Праздники[праздники]<=(Перечень[[#This Row],[ДАТА НАЧАЛА]]+Перечень[[#This Row],[ДЛИТЕЛЬНОСТЬ]]-1))),Перечень[[#This Row],[ДАТА НАЧАЛА]]+Перечень[[#This Row],[ДЛИТЕЛЬНОСТЬ]]-1),\"\")","v":""}]
[null,null,null,null,null,{"$f":"IF(ISNUMBER(Перечень[[#This Row],[ДЛИТЕЛЬНОСТЬ]]),IF(Перечень[[#This Row],[ОСНОВАНИЕ]]=\"ОТ (отпуск)\",Перечень[[#This Row],[ДАТА НАЧАЛА]]+Перечень[[#This Row],[ДЛИТЕЛЬНОСТЬ]]-1+SUMPRODUCT((Праздники[праздники]>=Перечень[[#This Row],[ДАТА НАЧАЛА]])*(Праздники[праздники]<=(Перечень[[#This Row],[ДАТА НАЧАЛА]]+Перечень[[#This Row],[ДЛИТЕЛЬНОСТЬ]]-1))),Перечень[[#This Row],[ДАТА НАЧАЛА]]+Перечень[[#This Row],[ДЛИТЕЛЬНОСТЬ]]-1),\"\")","v":""}]
[null,null,null,null,null,{"$f":"IF(ISNUMBER(Перечень[[#This Row],[ДЛИТЕЛЬНОСТЬ]]),IF(Перечень[[#This Row],[ОСНОВАНИЕ]]=\"ОТ (отпуск)\",Перечень[[#This Row],[ДАТА НАЧАЛА]]+Перечень[[#This Row],[ДЛИТЕЛЬНОСТЬ]]-1+SUMPRODUCT((Праздники[праздники]>=Перечень[[#This Row],[ДАТА НАЧАЛА]])*(Праздники[праздники]<=(Перечень[[#This Row],[ДАТА НАЧАЛА]]+Перечень[[#This Row],[ДЛИТЕЛЬНОСТЬ]]-1))),Перечень[[#This Row],[ДАТА НАЧАЛА]]+Перечень[[#This Row],[ДЛИТЕЛЬНОСТЬ]]-1),\"\")","v":""}]
[null,null,null,null,null,{"$f":"IF(ISNUMBER(Перечень[[#This Row],[ДЛИТЕЛЬНОСТЬ]]),IF(Перечень[[#This Row],[ОСНОВАНИЕ]]=\"ОТ (отпуск)\",Перечень[[#This Row],[ДАТА НАЧАЛА]]+Перечень[[#This Row],[ДЛИТЕЛЬНОСТЬ]]-1+SUMPRODUCT((Праздники[праздники]>=Перечень[[#This Row],[ДАТА НАЧАЛА]])*(Праздники[праздники]<=(Перечень[[#This Row],[ДАТА НАЧАЛА]]+Перечень[[#This Row],[ДЛИТЕЛЬНОСТЬ]]-1))),Перечень[[#This Row],[ДАТА НАЧАЛА]]+Перечень[[#This Row],[ДЛИТЕЛЬНОСТЬ]]-1),\"\")","v":""}]
[null,null,null,null,null,{"$f":"IF(ISNUMBER(Перечень[[#This Row],[ДЛИТЕЛЬНОСТЬ]]),IF(Перечень[[#This Row],[ОСНОВАНИЕ]]=\"ОТ (отпуск)\",Перечень[[#This Row],[ДАТА НАЧАЛА]]+Перечень[[#This Row],[ДЛИТЕЛЬНОСТЬ]]-1+SUMPRODUCT((Праздники[праздники]>=Перечень[[#This Row],[ДАТА НАЧАЛА]])*(Праздники[праздники]<=(Перечень[[#This Row],[ДАТА НАЧАЛА]]+Перечень[[#This Row],[ДЛИТЕЛЬНОСТЬ]]-1))),Перечень[[#This Row],[ДАТА НАЧАЛА]]+Перечень[[#This Row],[ДЛИТЕЛЬНОСТЬ]]-1),\"\")","v":""}]
[null,null,null,null,null,{"$f":"IF(ISNUMBER(Перечень[[#This Row],[ДЛИТЕЛЬНОСТЬ]]),IF(Перечень[[#This Row],[ОСНОВАНИЕ]]=\"ОТ (отпуск)\",Перечень[[#This Row],[ДАТА НАЧАЛА]]+Перечень[[#This Row],[ДЛИТЕЛЬНОСТЬ]]-1+SUMPRODUCT((Праздники[праздники]>=Перечень[[#This Row],[ДАТА НАЧАЛА]])*(Праздники[праздники]<=(Перечень[[#This Row],[ДАТА НАЧАЛА]]+Перечень[[#This Row],[ДЛИТЕЛЬНОСТЬ]]-1))),Перечень[[#This Row],[ДАТА НАЧАЛА]]+Перечень[[#This Row],[ДЛИТЕЛЬНОСТЬ]]-1),\"\")","v":""}]

{"sheet":"списки","index":2,"n_rows":35,"n_cols":16,"rows_kept":35,"cut":false,"hidden":false,"merged":[]}
[]
[null,"поводы","цвет",null,null,"сотрудники","ДР","ДР этот год","таб №",null,"праздники",null,"рабочие",null,"даты","Столбец1"]
[null,"Б  (больничный)",null,null,null,"c1","2001-01-01",{"$f":"DATE(YEAR(#REF!),MONTH(Таблица3[[#This Row],[ДР]]),DAY(Таблица3[[#This Row],[ДР]]))","v":{"$error":"#REF!"}},1,null,"2018-01-01",null,"2018-04-28",null,{"$f":"DATE(YEAR(TODAY()),1,1)","v":"2017-01-01"},{"$f":"TEXT(Таблица5[[#This Row],[даты]],\"ДД.ММ.ГГГГ\")","v":"01.01.2017"}]
[null,"В  (отгул)",null,null,null,"c2","2001-01-02",{"$f":"DATE(YEAR(#REF!),MONTH(Таблица3[[#This Row],[ДР]]),DAY(Таблица3[[#This Row],[ДР]]))","v":{"$error":"#REF!"}},2,null,"2018-01-02",null,"2018-06-09",null,{"$f":"DATE(YEAR(O3),MONTH(O3)+1,1)","v":"2017-02-01"},{"$f":"TEXT(Таблица5[[#This Row],[даты]],\"ДД.ММ.ГГГГ\")","v":"01.02.2017"}]
[null,"ДО (за свой счёт)",null,null,null,"c3","2001-01-03",{"$f":"DATE(YEAR(#REF!),MONTH(Таблица3[[#This Row],[ДР]]),DAY(Таблица3[[#This Row],[ДР]]))","v":{"$error":"#REF!"}},3,null,"2018-01-03",null,"2018-12-29",null,{"$f":"DATE(YEAR(O4),MONTH(O4)+1,1)","v":"2017-03-01"},{"$f":"TEXT(Таблица5[[#This Row],[даты]],\"ДД.ММ.ГГГГ\")","v":"01.03.2017"}]
[null,"К  (командировка)",null,null,null,"c4","2001-01-04",{"$f":"DATE(YEAR(#REF!),MONTH(Таблица3[[#This Row],[ДР]]),DAY(Таблица3[[#This Row],[ДР]]))","v":{"$error":"#REF!"}},4,null,"2018-01-04",null,null,null,"2017-04-01",{"$f":"TEXT(Таблица5[[#This Row],[даты]],\"ДД.ММ.ГГГГ\")","v":"01.04.2017"}]
[null,"МК (местная командировка)",null,null,null,"c5","2001-01-05",{"$f":"DATE(YEAR(#REF!),MONTH(Таблица3[[#This Row],[ДР]]),DAY(Таблица3[[#This Row],[ДР]]))","v":{"$error":"#REF!"}},5,null,"2018-01-05",null,null,null,"2017-05-01",{"$f":"TEXT(Таблица5[[#This Row],[даты]],\"ДД.ММ.ГГГГ\")","v":"01.05.2017"}]
[null,"ОЖ (по уходу за ребёнком)",null,null,null,"c6","2001-01-06",{"$f":"DATE(YEAR(#REF!),MONTH(Таблица3[[#This Row],[ДР]]),DAY(Таблица3[[#This Row],[ДР]]))","v":{"$error":"#REF!"}},6,null,"2018-01-08",null,null,null,"2017-06-01",{"$f":"TEXT(Таблица5[[#This Row],[даты]],\"ДД.ММ.ГГГГ\")","v":"01.06.2017"}]
[null,"ОТ (отпуск)",null,null,null,"c7","2001-01-07",{"$f":"DATE(YEAR(#REF!),MONTH(Таблица3[[#This Row],[ДР]]),DAY(Таблица3[[#This Row],[ДР]]))","v":{"$error":"#REF!"}},7,null,"2018-02-23",null,null,null,"2017-07-01",{"$f":"TEXT(Таблица5[[#This Row],[даты]],\"ДД.ММ.ГГГГ\")","v":"01.07.2017"}]
[null,"ПР (отгул неоф.)",null,null,null,"c8","2001-01-08",{"$f":"DATE(YEAR(#REF!),MONTH(Таблица3[[#This Row],[ДР]]),DAY(Таблица3[[#This Row],[ДР]]))","v":{"$error":"#REF!"}},8,null,"2018-03-08",null,null,null,"2017-08-01",{"$f":"TEXT(Таблица5[[#This Row],[даты]],\"ДД.ММ.ГГГГ\")","v":"01.08.2017"}]
[null,"Р  (декрет)",null,null,null,"c9","2001-01-09",{"$f":"DATE(YEAR(#REF!),MONTH(Таблица3[[#This Row],[ДР]]),DAY(Таблица3[[#This Row],[ДР]]))","v":{"$error":"#REF!"}},9,null,"2018-03-09",null,null,null,"2017-09-01",{"$f":"TEXT(Таблица5[[#This Row],[даты]],\"ДД.ММ.ГГГГ\")","v":"01.09.2017"}]
[null,null,"ДР",null,null,"c10","2001-01-10",{"$f":"DATE(YEAR(#REF!),MONTH(Таблица3[[#This Row],[ДР]]),DAY(Таблица3[[#This Row],[ДР]]))","v":{"$error":"#REF!"}},10,null,"2018-04-30",null,null,null,"2017-10-01",{"$f":"TEXT(Таблица5[[#This Row],[даты]],\"ДД.ММ.ГГГГ\")","v":"01.10.2017"}]
[null,null,null,null,null,"c11","2001-01-11",{"$f":"DATE(YEAR(#REF!),MONTH(Таблица3[[#This Row],[ДР]]),DAY(Таблица3[[#This Row],[ДР]]))","v":{"$error":"#REF!"}},11,null,"2018-05-01",null,null,null,"2017-11-01",{"$f":"TEXT(Таблица5[[#This Row],[даты]],\"ДД.ММ.ГГГГ\")","v":"01.11.2017"}]
[null,null,null,null,null,"c12","2001-01-12",{"$f":"DATE(YEAR(#REF!),MONTH(Таблица3[[#This Row],[ДР]]),DAY(Таблица3[[#This Row],[ДР]]))","v":{"$error":"#REF!"}},12,null,"2018-05-02",null,null,null,"2017-12-01",{"$f":"TEXT(Таблица5[[#This Row],[даты]],\"ДД.ММ.ГГГГ\")","v":"01.12.2017"}]
[null,null,null,null,null,"c13","2001-01-13",{"$f":"DATE(YEAR(#REF!),MONTH(Таблица3[[#This Row],[ДР]]),DAY(Таблица3[[#This Row],[ДР]]))","v":{"$error":"#REF!"}},13,null,"2018-05-09",null,null,null,"2018-01-01",{"$f":"TEXT(Таблица5[[#This Row],[даты]],\"ДД.ММ.ГГГГ\")","v":"01.01.2018"}]
[null,null,null,null,null,"c14","2001-01-14",{"$f":"DATE(YEAR(#REF!),MONTH(Таблица3[[#This Row],[ДР]]),DAY(Таблица3[[#This Row],[ДР]]))","v":{"$error":"#REF!"}},14,null,"2018-06-11",null,null,null,"2018-02-01",{"$f":"TEXT(Таблица5[[#This Row],[даты]],\"ДД.ММ.ГГГГ\")","v":"01.02.2018"}]
[null,null,null,null,null,"c15","2001-01-15",{"$f":"DATE(YEAR(#REF!),MONTH(Таблица3[[#This Row],[ДР]]),DAY(Таблица3[[#This Row],[ДР]]))","v":{"$error":"#REF!"}},15,null,"2018-06-12",null,null,null,"2018-03-01",{"$f":"TEXT(Таблица5[[#This Row],[даты]],\"ДД.ММ.ГГГГ\")","v":"01.03.2018"}]
[null,null,null,null,null,"c16","2001-01-16",{"$f":"DATE(YEAR(#REF!),MONTH(Таблица3[[#This Row],[ДР]]),DAY(Таблица3[[#This Row],[ДР]]))","v":{"$error":"#REF!"}},16,null,"2018-11-05",null,null,null,"2018-04-01",{"$f":"TEXT(Таблица5[[#This Row],[даты]],\"ДД.ММ.ГГГГ\")","v":"01.04.2018"}]
[null,null,null,null,null,"c17","2001-01-17",{"$f":"DATE(YEAR(#REF!),MONTH(Таблица3[[#This Row],[ДР]]),DAY(Таблица3[[#This Row],[ДР]]))","v":{"$error":"#REF!"}},17,null,"2018-12-31",null,null,null,"2018-05-01",{"$f":"TEXT(Таблица5[[#This Row],[даты]],\"ДД.ММ.ГГГГ\")","v":"01.05.2018"}]
[null,null,null,null,null,"c18","2001-01-18",{"$f":"DATE(YEAR(#REF!),MONTH(Таблица3[[#This Row],[ДР]]),DAY(Таблица3[[#This Row],[ДР]]))","v":{"$error":"#REF!"}},18,null,null,null,null,null,"2018-06-01",{"$f":"TEXT(Таблица5[[#This Row],[даты]],\"ДД.ММ.ГГГГ\")","v":"01.06.2018"}]
[null,null,null,null,null,"c19","2001-01-19",{"$f":"DATE(YEAR(#REF!),MONTH(Таблица3[[#This Row],[ДР]]),DAY(Таблица3[[#This Row],[ДР]]))","v":{"$error":"#REF!"}},19,null,null,null,null,null,"2018-07-01",{"$f":"TEXT(Таблица5[[#This Row],[даты]],\"ДД.ММ.ГГГГ\")","v":"01.07.2018"}]
[null,null,null,null,null,"c20","2001-01-20",{"$f":"DATE(YEAR(#REF!),MONTH(Таблица3[[#This Row],[ДР]]),DAY(Таблица3[[#This Row],[ДР]]))","v":{"$error":"#REF!"}},20,null,null,null,null,null,"2018-08-01",{"$f":"TEXT(Таблица5[[#This Row],[даты]],\"ДД.ММ.ГГГГ\")","v":"01.08.2018"}]
[null,null,null,null,null,"c21","2001-01-21",{"$f":"DATE(YEAR(#REF!),MONTH(Таблица3[[#This Row],[ДР]]),DAY(Таблица3[[#This Row],[ДР]]))","v":{"$error":"#REF!"}},21,null,null,null,null,null,"2018-09-01",{"$f":"TEXT(Таблица5[[#This Row],[даты]],\"ДД.ММ.ГГГГ\")","v":"01.09.2018"}]
[null,null,null,null,null,"c22","2001-01-22",{"$f":"DATE(YEAR(#REF!),MONTH(Таблица3[[#This Row],[ДР]]),DAY(Таблица3[[#This Row],[ДР]]))","v":{"$error":"#REF!"}},22,null,null,null,null,null,"2018-10-01",{"$f":"TEXT(Таблица5[[#This Row],[даты]],\"ДД.ММ.ГГГГ\")","v":"01.10.2018"}]
[null,null,null,null,null,"c23","2001-01-23",{"$f":"DATE(YEAR(#REF!),MONTH(Таблица3[[#This Row],[ДР]]),DAY(Таблица3[[#This Row],[ДР]]))","v":{"$error":"#REF!"}},23,null,null,null,null,null,"2018-11-01",{"$f":"TEXT(Таблица5[[#This Row],[даты]],\"ДД.ММ.ГГГГ\")","v":"01.11.2018"}]
[null,null,null,null,null,"c24","2001-01-24",{"$f":"DATE(YEAR(#REF!),MONTH(Таблица3[[#This Row],[ДР]]),DAY(Таблица3[[#This Row],[ДР]]))","v":{"$error":"#REF!"}},24,null,null,null,null,null,"2018-12-01",{"$f":"TEXT(Таблица5[[#This Row],[даты]],\"ДД.ММ.ГГГГ\")","v":"01.12.2018"}]
[null,null,null,null,null,"c25","2001-01-25",{"$f":"DATE(YEAR(#REF!),MONTH(Таблица3[[#This Row],[ДР]]),DAY(Таблица3[[#This Row],[ДР]]))","v":{"$error":"#REF!"}},25]
[null,null,null,null,null,"c26","2001-01-26",{"$f":"DATE(YEAR(#REF!),MONTH(Таблица3[[#This Row],[ДР]]),DAY(Таблица3[[#This Row],[ДР]]))","v":{"$error":"#REF!"}},26]
[null,null,null,null,null,"c27","2001-01-27",{"$f":"DATE(YEAR(#REF!),MONTH(Таблица3[[#This Row],[ДР]]),DAY(Таблица3[[#This Row],[ДР]]))","v":{"$error":"#REF!"}},27]
[null,null,null,null,null,"c28","2001-01-28",{"$f":"DATE(YEAR(#REF!),MONTH(Таблица3[[#This Row],[ДР]]),DAY(Таблица3[[#This Row],[ДР]]))","v":{"$error":"#REF!"}},28]
[null,null,null,null,null,"c29","2001-01-29",{"$f":"DATE(YEAR(#REF!),MONTH(Таблица3[[#This Row],[ДР]]),DAY(Таблица3[[#This Row],[ДР]]))","v":{"$error":"#REF!"}},29]
[null,null,null,null,null,"c30","2001-01-30",{"$f":"DATE(YEAR(#REF!),MONTH(Таблица3[[#This Row],[ДР]]),DAY(Таблица3[[#This Row],[ДР]]))","v":{"$error":"#REF!"}},30]
[null,null,null,null,null,"c31","2001-01-31",{"$f":"DATE(YEAR(#REF!),MONTH(Таблица3[[#This Row],[ДР]]),DAY(Таблица3[[#This Row],[ДР]]))","v":{"$error":"#REF!"}},31]
[null,null,null,null,null,"c32","2001-02-01",{"$f":"DATE(YEAR(#REF!),MONTH(Таблица3[[#This Row],[ДР]]),DAY(Таблица3[[#This Row],[ДР]]))","v":{"$error":"#REF!"}},32]
[null,null,null,null,null,"c33","2001-02-02",{"$f":"DATE(YEAR(#REF!),MONTH(Таблица3[[#This Row],[ДР]]),DAY(Таблица3[[#This Row],[ДР]]))","v":{"$error":"#REF!"}},33]